Workbook

Sheet Abertura
D3: UNIVERSIDADE FEDERAL DO PARANÁ / SETOR DE CIÊNCIAS AGRÁRIAS
D4: DEPARTAMENTO DE SOLOS E ENGENHARIA AGRÍCOLA
D6: LAMOSA - LABORATÓRIO DE MODELAGEM DE SISTEMAS AMBIENTAIS
C8: PLATAFORMA MORETTI: MÓDULO - COEFICIENTE kRs DE HARGREAVES E SAMINI DE LOCALIDADES BRASILEIRAS E CÁLCULO DA RADIAÇÃO SOLAR INCIDENTE
C13: Autores:
C14: Orientador: Jorge Luiz Moretti de Souza (LAMOSA / DSEA / SCA / UFPR)
C15: Graduando orientado: Ricardo Luís Baratto (Graduação em Agronomia / SCA / UFPR)
B17: Endereço:
B18: Rua dos Funcionários, 1540 - Curitiba, PR
B19: CEP: 80035-050
B20: Telefone: (041) 3350-5689 Celular: (041) 99938-0155
B21: e-mail: jmoretti@ufpr.br | H21: Versão 2024/1.0
B22: Site: http://www.moretti.agrarias.ufpr.br/

Sheet Rs_HS
X1: Estado (24) | Y1: H-S (25) | Z1: Estação/Local (26) | AA1: Ordem (27) | AB1: Cidade (28) | AC1: Latitude (29) | AD1: Longitude (30) | AE1: Clima (31) | AF1: Janeiro (32) | AG1: Fevereiro (33) | AH1: Março (34) | AI1: Abril (35) | AJ1: Maio (36) | AK1: Junho (37) | AL1: Julho (38) | AM1: Agosto (39) | AN1: Setembro (40) | AO1: Outubro (41) | AP1: Novembro (42) | AQ1: Dezembro (43) | AR1: Verão (44) | AS1: Outono (45) | AT1: Inverno (46) | AU1: Primavera (47) | AV1: Ano (48) | AW1: Menor (49) | AX1: Maior (50) | AY1: Média (51) | AZ1: Desv. Pad. (52) | BA1: CV (53) | BB1: Amostra (54) | BC1: Equação (55) | BD1: Rs | BE1: n | BF1: Referência | BG1: Latitude em graus | BH1: Longitude em graus
C2: EQUAÇÃO DE HARGREAVES-SAMANI: COEFICIENTE kRs E CÁLCULO DA Rs PARA LOCALIDADES BRASILEIRAS | W2: 1 | X2: 16 | AB2: 3 | AE2: 31 | AF2: =AE2+1 -> 32 | AG2: =AF2+1 -> 33 | AH2: 34 | AI2: 35 | AJ2: 36 | AK2: 37 | AL2: 38 | AM2: 39 | AN2: 40 | AO2: 41 | AP2: 42 | AQ2: 43 | AR2: 44 | AS2: 45 | AT2: 46 | AU2: 47 | AV2: 48 | AW2: 49 | AX2: 50 | AY2: 51 | AZ2: 52 | BA2: 53 | BB2: 54 | BC2: 55 | BD2: 56 | BE2: 57 | BF2: 58 | BG2: 59 | BH2: 60
X3: Acre - AC | Y3: 1 | Z3: Acre - AC | AA3: 159 | AB3: Bujari | AC3: -9.95 | AD3: -68.15 | AE3: Am | AF3: 0.1440536528 | AG3: 0.139140872 | AH3: 0.1503802646 | AI3: 0.1661762969 | AJ3: 0.1719074021 | AK3: 0.1764023739 | AL3: 0.174150226 | AM3: 0.1613495196 | AN3: 0.1489546162 | AO3: 0.1515312485 | AP3: 0.1594857969 | AQ3: 0.1487340262 | AR3: 0.1425297509 | AS3: 0.1695423905 | AT3: 0.1626099428 | AU3: 0.1539448775 | AV3: 0.1573176013 | AW3: 0.02399223631 | AX3: 0.2494927641 | AY3: 0.1579215817 | AZ3: 0.0392174316 | BA3: 24.83348455 | BB3: 1974 | BC3: Hargreaves-Samani | BD3: MJ /m^2 dia^1 | BE3: h | BF3: BARATTO, R. L. Coeficiente de proporcionalidade Krs da equação de Hargreaves e Samani para o Brasil. Curitiba, 2016. 72p. Monografia (Trabalho de Conclusão de Curso - Agronomia) – Setor de Ciências Agrárias, Universidade Federal do Paraná. | BG3: -7.633333333 | BH3: -72.66666667 | BJ3: Latitude | BK3: Longitude | BL3: Localização
E4: Latitude (graus): | F4: -25.4333 | J4: kRs | K4: Ra | L4: Rs | X4: Alagoas - AL | Y4: 6 | Z4: Alagoas - AL | AA4: 71 | AB4: Arapiraca | AC4: -9.8 | AD4: -36.6167 | AE4: As | AF4: 0.1664058675 | AG4: 0.1680828444 | AH4: 0.1746162878 | AI4: 0.1796195694 | AJ4: 0.1735431434 | AK4: 0.1784543143 | AL4: 0.1757637931 | AM4: 0.1735746011 | AN4: 0.169414095 | AO4: 0.1656407792 | AP4: 0.1719658035 | AQ4: 0.1674319922 | AR4: 0.1690114378 | AS4: 0.1747917242 | AT4: 0.1744817913 | AU4: 0.1682327057 | AV4: 0.1717175103 | AW4: 0.03242952949 | AX4: 0.267222492 | AY4: 0.1722258943 | AZ4: 0.03169494411 | BA4: 18.40312355 | BB4: 2067 | BC4: Hargreaves-Samani | BD4: MJ /m^2 dia | BE4: h | BF4: BARATTO, R. L. Coeficiente de proporcionalidade Krs da equação de Hargreaves e Samani para o Brasil. Curitiba, 2016. 72p. Monografia (Trabalho de Conclusão de Curso - Agronomia) – Setor de Ciências Agrárias, Universidade Federal do Paraná. | BG4: -9.966666667 | BH4: -67.8 | BI4: Norte | BJ4: =5+(16/60)+(19/(60*60)) -> 5.271944444 | BK4: =-(60+(12/60)+(45/(60*60))) -> -60.2125 | BL4: Nascente do Rio Ailã (Roraima)
E5: Longitude (graus): | F5: -49.2167 | J5: (oC-0,5) | K5: (MJ m-2 dia-1) | X5: Amapá - AP | Z5: Alagoas - AL | AA5: 72 | AB5: Coruripe | AC5: -10.1167 | AD5: -36.2833 | AE5: As | AF5: 0.194465748 | AG5: 0.2149806316 | AH5: 0.214690168 | AI5: 0.2079753478 | AJ5: 0.1999509318 | AK5: 0.2000860326 | AL5: 0.1978969668 | AM5: 0.198582298 | AN5: 0.2038919088 | AO5: 0.1993942335 | AP5: 0.2056654229 | AQ5: 0.2014219861 | AR5: 0.2030068373 | AS5: 0.2045802093 | AT5: 0.1996992927 | AU5: 0.2028076412 | AV5: 0.2024480915 | AW5: 0.06880483921 | AX5: 0.3015210971 | AY5: 0.2021551532 | AZ5: 0.03785570902 | BA5: 18.72606679 | BB5: 1852 | BC5: Hargreaves-Samani | BD5: MJ /m^2 dia | BE5: h | BF5: BARATTO, R. L. Coeficiente de proporcionalidade Krs da equação de Hargreaves e Samani para o Brasil. Curitiba, 2016. 72p. Monografia (Trabalho de Conclusão de Curso - Agronomia) – Setor de Ciências Agrárias, Universidade Federal do Paraná. | BI5: Sul | BJ5: =-(33+(45/60)+(7/(60*60))) -> -33.75194444 | BK5: =-(53+(23/60)+(50/(60*60))) -> -53.39722222 | BL5: Arroio Chuí (Rio Grande do Sul)
E6: Clima (Köppen): | F6: Cfb | I6: Jan.: | J6: 0.1366987066 | K6: 42.72302841 | L6: 22.61893044 | X6: Amazonas - AM | Z6: Alagoas - AL | AA6: 68 | AB6: Maceió | AC6: -9.55 | AD6: -35.7667 | AE6: Am | AF6: 0.1759297919 | AG6: 0.1844531926 | AH6: 0.2071257782 | AI6: 0.2073970876 | AJ6: 0.188003331 | AK6: 0.1839544002 | AL6: 0.1954207656 | AM6: 0.1941634048 | AN6: 0.2010488996 | AO6: 0.2032272317 | AP6: 0.2086595937 | AQ6: 0.2118340028 | AR6: 0.195751182 | AS6: 0.1876556041 | AT6: 0.1987475599 | AU6: 0.2065146648 | AV6: 0.2003087087 | AW6: 0.01283609942 | AX6: 0.3457554087 | AY6: 0.2003225684 | AZ6: 0.04288768864 | BA6: 21.40931448 | BB6: 1867 | BC6: Hargreaves-Samani | BD6: MJ /m^2 dia | BE6: h | BF6: BARATTO, R. L. Coeficiente de proporcionalidade Krs da equação de Hargreaves e Samani para o Brasil. Curitiba, 2016. 72p. Monografia (Trabalho de Conclusão de Curso - Agronomia) – Setor de Ciências Agrárias, Universidade Federal do Paraná. | BG6: 0.1666666667 | BH6: -51.05 | BI6: Leste | BJ6: =-(7+(9/60)+(18/(60*60))) -> -7.155 | BK6: =-(34+(47/60)+(34/(60*60))) -> -34.79277778 | BL6: Ponta do Seixas (Cabo Branco-Paraíba)
I7: Fev.: | J7: 0.1432510975 | K7: 40.32930419 | L7: 22.37506556 | X7: Bahia - BA | Z7: Alagoas - AL | AA7: 70 | AB7: Palmeira dos Índios | AC7: -9.4167 | AD7: -36.6167 | AE7: As | AF7: 0.1616998429 | AG7: 0.1601059162 | AH7: 0.1726525811 | AI7: 0.1788124639 | AJ7: 0.1778214976 | AK7: 0.1810358168 | AL7: 0.1768071024 | AM7: 0.1756249417 | AN7: 0.1740610819 | AO7: 0.1716695537 | AP7: 0.174635832 | AQ7: 0.165622675 | AR7: 0.1643778776 | AS7: 0.1781042176 | AT7: 0.1756683004 | AU7: 0.1716157025 | AV7: 0.1725732667 | AW7: 0.04792958764 | AX7: 0.2590497206 | AY7: 0.1729078761 | AZ7: 0.03383544576 | BA7: 19.56848151 | BB7: 2288 | BC7: Hargreaves-Samani | BD7: MJ /m^2 dia | BE7: h | BF7: BARATTO, R. L. Coeficiente de proporcionalidade Krs da equação de Hargreaves e Samani para o Brasil. Curitiba, 2016. 72p. Monografia (Trabalho de Conclusão de Curso - Agronomia) – Setor de Ciências Agrárias, Universidade Federal do Paraná. | BG7: -3.133333333 | BH7: -60.03333333 | BI7: Oeste | BJ7: =-(7+(32/60)+(9/(60*60))) -> -7.535833333 | BK7: =-(73+(59/60)+(26/(60*60))) -> -73.99055556 | BL7: Nascente do Rio Moa (Acre)
I8: Mar.: | J8: 0.1498530614 | K8: 36.09923467 | L8: 20.95121647 | X8: Ceará - CE | Z8: Alagoas - AL | AA8: 69 | AB8: Pão de Açúcar | AC8: -9.75 | AD8: -37.4333 | AE8: BSh | AF8: 0.1689879851 | AG8: 0.1675599746 | AH8: 0.1785108702 | AI8: 0.1796878011 | AJ8: 0.1797498258 | AK8: 0.182510937 | AL8: 0.1795166021 | AM8: 0.1782360661 | AN8: 0.1673474066 | AO8: 0.166978594 | AP8: 0.1679716297 | AQ8: 0.168823719 | AR8: 0.1715969914 | AS8: 0.1803243999 | AT8: 0.1763935898 | AU8: 0.1674679078 | AV8: 0.1736702109 | AW8: 0.08250781556 | AX8: 0.2479382261 | AY8: 0.1741724117 | AZ8: 0.03011167202 | BA8: 17.28842802 | BB8: 2231 | BC8: Hargreaves-Samani | BD8: MJ /m^2 dia | BE8: h | BF8: BARATTO, R. L. Coeficiente de proporcionalidade Krs da equação de Hargreaves e Samani para o Brasil. Curitiba, 2016. 72p. Monografia (Trabalho de Conclusão de Curso - Agronomia) – Setor de Ciências Agrárias, Universidade Federal do Paraná. | BG8: -13.26666667 | BH8: -43.41666667 | BI8: Ponto escolhido
I9: Abr.: | J9: 0.1564754177 | K9: 30.17371844 | L9: 18.28607861 | X9: Distrito Federal - DF | Z9: Alagoas - AL | AA9: 73 | AB9: Passo de Camaragibe | AC9: -9.2833 | AD9: -35.55 | AE9: Am | AF9: 0.1551758972 | AG9: 0.1575851569 | AH9: 0.1589003786 | AI9: 0.170516404 | AJ9: 0.1680401781 | AK9: 0.1684577479 | AL9: 0.1703065631 | AM9: 0.1641785456 | AN9: 0.1576356837 | AO9: 0.1570258866 | AP9: 0.1616268831 | AQ9: 0.1621297408 | AR9: 0.1568797082 | AS9: 0.1679832047 | AT9: 0.16720436 | AU9: 0.1594787114 | AV9: 0.1625930177 | AW9: 0.04418513977 | AX9: 0.239547977 | AY9: 0.162656386 | AZ9: 0.03509747145 | BA9: 21.57767815 | BB9: 1823 | BC9: Hargreaves-Samani | BD9: MJ /m^2 dia | BE9: h | BF9: BARATTO, R. L. Coeficiente de proporcionalidade Krs da equação de Hargreaves e Samani para o Brasil. Curitiba, 2016. 72p. Monografia (Trabalho de Conclusão de Curso - Agronomia) – Setor de Ciências Agrárias, Universidade Federal do Paraná. | BG9: -15.66666667 | BH9: -38.95
I10: Mai.: | J10: 0.1579759728 | K10: 25.02646064 | L10: 15.31214743 | X10: Espirito Santo - ES | Z10: Amapá - AP | AA10: Sem parâmetros
I11: Jun.: | J11: 0.1602384879 | K11: 22.49314242 | L11: 13.95926657 | X11: Goiás - GO | Y11: 8 | Z11: Amazonas - AM | AA11: 162 | AB11: Autazes | AC11: -3.5667 | AD11: -59.1167 | AE11: Af | AF11: 0.1324156734 | AG11: 0.1296326646 | AH11: 0.1400730918 | AI11: 0.1415605002 | AJ11: 0.1500571682 | AK11: 0.1611773829 | AL11: 0.1608688299 | AM11: 0.1554395123 | AN11: 0.1509291599 | AO11: 0.1440280922 | AP11: 0.1401465197 | AQ11: 0.1347118955 | AR11: 0.1331927122 | AS11: 0.1488066189 | AT11: 0.1582266853 | AU11: 0.1411151436 | AV11: 0.1458411934 | AW11: 0.01573389225 | AX11: 0.2244981326 | AY11: 0.1461035734 | AZ11: 0.03898829821 | BA11: 26.68538306 | BB11: 1858 | BC11: Hargreaves-Samani | BD11: MJ /m^2 dia | BE11: h | BF11: BARATTO, R. L. Coeficiente de proporcionalidade Krs da equação de Hargreaves e Samani para o Brasil. Curitiba, 2016. 72p. Monografia (Trabalho de Conclusão de Curso - Agronomia) – Setor de Ciências Agrárias, Universidade Federal do Paraná. | BG11: -17.73333333 | BH11: -39.25
I12: Jul.: | J12: 0.1542051797 | K12: 23.71916802 | L12: 14.16589579 | X12: Maranhão - MA | Z12: Amazonas - AM | AA12: 163 | AB12: Itacoatiara (I) | AC12: -3.1167 | AD12: -58.4667 | AE12: Af | AF12: 0.1469839136 | AG12: 0.1466112372 | AH12: 0.1550479459 | AI12: 0.1582618324 | AJ12: 0.1641353699 | AK12: 0.1824058683 | AL12: 0.18833263 | AM12: 0.1929969836 | AN12: 0.1770623691 | AO12: 0.1491860155 | AP12: 0.1619642803 | AQ12: 0.1464768164 | AR12: 0.1472734664 | AS12: 0.1622956228 | AT12: 0.1910521467 | AU12: 0.155632552 | AV12: 0.1647214947 | AW12: 0.01108555133 | AX12: 0.4697143066 | AY12: 0.1649899663 | AZ12: 0.05510032932 | BA12: 33.39616982 | BB12: 1931 | BC12: Hargreaves-Samani | BD12: MJ /m^2 dia | BE12: h | BF12: BARATTO, R. L. Coeficiente de proporcionalidade Krs da equação de Hargreaves e Samani para o Brasil. Curitiba, 2016. 72p. Monografia (Trabalho de Conclusão de Curso - Agronomia) – Setor de Ciências Agrárias, Universidade Federal do Paraná. | BG12: -14.8 | BH12: -39.05
F13: Dia do mês para o cálculo da Rs: | G13: 15 | I13: Ago.: | J13: 0.1518062226 | K13: 28.27909966 | L13: 16.6264979 | X13: Mato Grosso - MT | Z13: Amazonas - AM | AA13: 164 | AB13: Itacoatiara (II) | AC13: -3.3833 | AD13: -58.6667 | AE13: Af | AF13: 0.1324810859 | AG13: 0.1304315921 | AH13: 0.1321812831 | AI13: 0.1424624388 | AJ13: 0.144384652 | AK13: 0.1592827064 | AL13: 0.1606056971 | AM13: 0.1564323501 | AN13: 0.152317026 | AO13: 0.1476771096 | AP13: 0.1405376005 | AQ13: 0.1303510803 | AR13: 0.1329632566 | AS13: 0.1452498898 | AT13: 0.1584164625 | AU13: 0.1417190043 | AV13: 0.1454062654 | AW13: 0.02501620054 | AX13: 0.2337419671 | AY13: 0.1449711476 | AZ13: 0.0389992954 | BA13: 26.90141868 | BB13: 2063 | BC13: Hargreaves-Samani | BD13: MJ /m^2 dia | BE13: h | BF13: BARATTO, R. L. Coeficiente de proporcionalidade Krs da equação de Hargreaves e Samani para o Brasil. Curitiba, 2016. 72p. Monografia (Trabalho de Conclusão de Curso - Agronomia) – Setor de Ciências Agrárias, Universidade Federal do Paraná. | BG13: -11.3 | BH13: -41.86666667
F14: Temperatura mínima (Tmín; oC): | G14: 15 | I14: Set.: | J14: 0.1380925938 | K14: 34.26902233 | L14: 18.32811204 | X14: Mato Grosso do Sul - MS | Z14: Amazonas - AM | AA14: 161 | AB14: Manacapuru | AC14: -3.2833 | AD14: -60.6167 | AE14: Af | AF14: 0.1519301452 | AG14: 0.147915128 | AH14: 0.1535230319 | AI14: 0.1599526229 | AJ14: 0.1728197702 | AK14: 0.1934772215 | AL14: 0.1938071229 | AM14: 0.1810965794 | AN14: 0.1707331225 | AO14: 0.1681344095 | AP14: 0.1645192481 | AQ14: 0.1563228675 | AR14: 0.150690742 | AS14: 0.1712722007 | AT14: 0.1849656175 | AU14: 0.1651601438 | AV14: 0.1689405933 | AW14: 0.02980802408 | AX14: 0.2763570318 | AY14: 0.1691173111 | AZ14: 0.04474122531 | BA14: 26.45573362 | BB14: 2079 | BC14: Hargreaves-Samani | BD14: MJ /m^2 dia | BE14: h | BF14: BARATTO, R. L. Coeficiente de proporcionalidade Krs da equação de Hargreaves e Samani para o Brasil. Curitiba, 2016. 72p. Monografia (Trabalho de Conclusão de Curso - Agronomia) – Setor de Ciências Agrárias, Universidade Federal do Paraná. | BG14: -13.01666667 | BH14: -38.51666667 | BJ14: Encontrando a latitude e longitude em graus | BR14: Latitude em graus
F15: Temperatura máxima (Tmáx; oC): | G15: 30 | I15: Out.: | J15: 0.1366415959 | K15: 39.21952949 | L15: 20.75539173 | X15: Minas Gerais - MG | Z15: Amazonas - AM | AA15: 160 | AB15: Manaus | AC15: -3.1167 | AD15: -59.95 | AE15: Af | AF15: 0.1368112791 | AG15: 0.144354122 | AH15: 0.1487871372 | AI15: 0.1500813795 | AJ15: 0.1609986947 | AK15: 0.1877095989 | AL15: 0.1860334282 | AM15: 0.1822106689 | AN15: 0.1696485706 | AO15: 0.1681179137 | AP15: 0.1575045917 | AQ15: 0.1524949209 | AR15: 0.1487962545 | AS15: 0.1623673082 | AT15: 0.1823298985 | AU15: 0.1649346989 | AV15: 0.1675702413 | AW15: 0.01336377142 | AX15: 0.2543483157 | AY15: 0.1630334538 | AZ15: 0.04714790319 | BA15: 28.91915867 | BB15: 2255 | BC15: Hargreaves-Samani | BD15: MJ /m^2 dia | BE15: h | BF15: BARATTO, R. L. Coeficiente de proporcionalidade Krs da equação de Hargreaves e Samani para o Brasil. Curitiba, 2016. 72p. Monografia (Trabalho de Conclusão de Curso - Agronomia) – Setor de Ciências Agrárias, Universidade Federal do Paraná. | BG15: -7.316666667 | BH15: -39.3 | BJ15: 72° 40’ 00" W | BL15: =LEFT(BJ15,2) -> 72 | BM15: =MID(BJ15,5,2) -> 40 | BN15: =MID(BJ15,9,2) -> 00 | BO15: =MID(BJ15,13,1) -> W | BP15: =BM15/60 -> 0.6666666667 | BQ15: =BN15/(60*60) -> 0 | BR15: =BL15+BP15+BQ15 -> 72.66666667 | BS15: =IF(BO15="W",-BR15,BR15) -> -72.66666667
I16: Nov.: | J16: 0.1434976548 | K16: 42.24365732 | L16: 23.47750511 | X16: Pará - PA | Z16: Amazonas - AM | AA16: 167 | AB16: Presidente Figueiredo | AC16: -2.05 | AD16: -60.0167 | AE16: Af | AF16: 0.1231726469 | AG16: 0.1132027006 | AH16: 0.1228731856 | AI16: 0.1242222638 | AJ16: 0.1327355909 | AK16: 0.1447552988 | AL16: 0.1425667234 | AM16: 0.1412692481 | AN16: 0.1323367683 | AO16: 0.1267182382 | AP16: 0.120189439 | AQ16: 0.1212050043 | AR16: 0.1188374954 | AS16: 0.1312988214 | AT16: 0.1405234074 | AU16: 0.1239943816 | AV16: 0.1298321135 | AW16: 0.02386234833 | AX16: 0.2066586619 | AY16: 0.1297658759 | AZ16: 0.03485394016 | BA16: 26.85909522 | BB16: 1936 | BC16: Hargreaves-Samani | BD16: MJ /m^2 dia | BE16: h | BF16: BARATTO, R. L. Coeficiente de proporcionalidade Krs da equação de Hargreaves e Samani para o Brasil. Curitiba, 2016. 72p. Monografia (Trabalho de Conclusão de Curso - Agronomia) – Setor de Ciências Agrárias, Universidade Federal do Paraná. | BG16: -5.183333333 | BH16: -40.66666667 | BJ16: 67° 48’ 00" W | BL16: =LEFT(BJ16,2) -> 67 | BM16: =MID(BJ16,5,2) -> 48 | BN16: =MID(BJ16,9,2) -> 00 | BO16: =MID(BJ16,13,1) -> W | BP16: =BM16/60 -> 0.8 | BQ16: =BN16/(60*60) -> 0 | BR16: =BL16+BP16+BQ16 -> 67.8 | BS16: =IF(BO16="W",-BR16,BR16) -> -67.8
I17: Dez.: | J17: 0.1375867555 | K17: 43.25707508 | L17: 23.05045005 | X17: Paraíba - PB | Z17: Amazonas - AM | AA17: 166 | AB17: Rio Preto da Eva | AC17: -2.4167 | AD17: -59.55 | AE17: Af | AF17: 0.1404247872 | AG17: 0.1349885336 | AH17: 0.1415209502 | AI17: 0.143790199 | AJ17: 0.1536945233 | AK17: 0.1675081393 | AL17: 0.1612522413 | AM17: 0.1570154883 | AN17: 0.1542645898 | AO17: 0.1495376202 | AP17: 0.1456330776 | AQ17: 0.138826135 | AR17: 0.1374922744 | AS17: 0.1513776547 | AT17: 0.1588115864 | AU17: 0.147109497 | AV17: 0.1495530597 | AW17: 0.01908237437 | AX17: 0.2342012187 | AY17: 0.1495806441 | AZ17: 0.03528928961 | BA17: 23.59214978 | BB17: 1968 | BC17: Hargreaves-Samani | BD17: MJ /m^2 dia | BE17: h | BF17: BARATTO, R. L. Coeficiente de proporcionalidade Krs da equação de Hargreaves e Samani para o Brasil. Curitiba, 2016. 72p. Monografia (Trabalho de Conclusão de Curso - Agronomia) – Setor de Ciências Agrárias, Universidade Federal do Paraná. | BG17: -3.716666667 | BH17: -38.46666667 | BJ17: 51° 03’ 00" W | BL17: 51 | BM17: 03 | BN17: 00 | BO17: W | BP17: 0.05 | BQ17: 0 | BR17: 51.05 | BS17: -51.05
I18: Tendência: | X18: Paraná - PR | Z18: Amazonas - AM | AA18: 165 | AB18: Urucará | AC18: -2.5333 | AD18: -57.75 | AE18: Af | AF18: 0.1383932264 | AG18: 0.1318341124 | AH18: 0.1423074318 | AI18: 0.1502061318 | AJ18: 0.1537019975 | AK18: 0.1813092336 | AL18: 0.1789099288 | AM18: 0.1775795212 | AN18: 0.1720426771 | AO18: 0.1621030095 | AP18: 0.1574977349 | AQ18: 0.1428962245 | AR18: 0.1366107593 | AS18: 0.1570318408 | AT18: 0.1781085075 | AU18: 0.1565396912 | AV18: 0.1583724038 | AW18: 0.02351882191 | AX18: 0.2363380713 | AY18: 0.158502444 | AZ18: 0.04409674837 | BA18: 27.82086337 | BB18: 2006 | BC18: Hargreaves-Samani | BD18: MJ /m^2 dia | BE18: h | BF18: BARATTO, R. L. Coeficiente de proporcionalidade Krs da equação de Hargreaves e Samani para o Brasil. Curitiba, 2016. 72p. Monografia (Trabalho de Conclusão de Curso - Agronomia) – Setor de Ciências Agrárias, Universidade Federal do Paraná. | BG18: -4.833333333 | BH18: -37.78333333 | BJ18: 60° 02’ 00" W | BL18: 60 | BM18: 02 | BN18: 00 | BO18: W | BP18: 0.03333333333 | BQ18: 0 | BR18: 60.03333333 | BS18: -60.03333333
I19: Verão: | J19: 0.1397815408 | X19: Pernanbuco - PE | Y19: 30 | Z19: Bahia - BA | AA19: 94 | AB19: Amargosa | AC19: -13 | AD19: -39.6167 | AE19: Aw | AF19: 0.1731165361 | AG19: 0.1762940802 | AH19: 0.1740661968 | AI19: 0.1762259554 | AJ19: 0.1840831441 | AK19: 0.1877908164 | AL19: 0.1881125414 | AM19: 0.1863616515 | AN19: 0.1783079279 | AO19: 0.1710892137 | AP19: 0.1612753321 | AQ19: 0.1596275269 | AR19: 0.1715321274 | AS19: 0.1805018393 | AT19: 0.1861780472 | AU19: 0.1646986695 | AV19: 0.1760630664 | AW19: 0.06079128809 | AX19: 0.2588670574 | AY19: 0.1764638519 | AZ19: 0.03455476906 | BA19: 19.58178329 | BB19: 1993 | BC19: Hargreaves-Samani | BD19: MJ /m^2 dia | BE19: h | BF19: BARATTO, R. L. Coeficiente de proporcionalidade Krs da equação de Hargreaves e Samani para o Brasil. Curitiba, 2016. 72p. Monografia (Trabalho de Conclusão de Curso - Agronomia) – Setor de Ciências Agrárias, Universidade Federal do Paraná. | BG19: -6.016666667 | BH19: -38.38333333
D20: Menor valor (oC-0,5): | E20: 0.0146339262 | G20: Desvio padrão (oC-0,5): | H20: 0.04580140975 | I20: Outono: | J20: 0.1572500413 | K20: 0.1459241903 | X20: Piauí - PI | Z20: Bahia - BA | AA20: 90 | AB20: Barra | AC20: -11.0833 | AD20: -43.1333 | AE20: BSh | AF20: 0.1749727737 | AG20: 0.1745921902 | AH20: 0.1840471558 | AI20: 0.1914920637 | AJ20: 0.1838796646 | AK20: 0.1770126003 | AL20: 0.1738150951 | AM20: 0.1764535704 | AN20: 0.1784113232 | AO20: 0.1759798534 | AP20: 0.1665655583 | AQ20: 0.1632763591 | AR20: 0.1748227003 | AS20: 0.1845086984 | AT20: 0.1762625484 | AU20: 0.1687679809 | AV20: 0.176199988 | AW20: 0.04373900264 | AX20: 0.2346869557 | AY20: 0.1766789513 | AZ20: 0.03044730252 | BA20: 17.23312387 | BB20: 2015 | BC20: Hargreaves-Samani | BD20: MJ /m^2 dia | BE20: h | BF20: BARATTO, R. L. Coeficiente de proporcionalidade Krs da equação de Hargreaves e Samani para o Brasil. Curitiba, 2016. 72p. Monografia (Trabalho de Conclusão de Curso - Agronomia) – Setor de Ciências Agrárias, Universidade Federal do Paraná. | BG20: -5.183333333 | BH20: -38.3
D21: Maior valor (oC-0,5): | E21: 0.2988030903 | G21: Coef. Variação (%): | H21: 31.39485622 | I21: Inverno: | J21: 0.1511885281 | X21: Rio de Janeiro - RJ | Z21: Bahia - BA | AA21: 85 | AB21: Barra do Choça | AC21: -14.8833 | AD21: -40.4667 | AE21: Cfa | AF21: 0.188970369 | AG21: 0.1884414636 | AH21: 0.1918596634 | AI21: 0.2052651274 | AJ21: 0.2092717049 | AK21: 0.2084306889 | AL21: 0.2120719972 | AM21: 0.2096612943 | AN21: 0.2009549431 | AO21: 0.1822698181 | AP21: 0.162966601 | AQ21: 0.1834129916 | AR21: 0.1877749055 | AS21: 0.2051670317 | AT21: 0.2106500854 | AU21: 0.1756846306 | AV21: 0.1907766333 | AW21: 0.07362978772 | AX21: 0.304370784 | AY21: 0.1958869038 | AZ21: 0.04247161237 | BA21: 21.68170079 | BB21: 1853 | BC21: Hargreaves-Samani | BD21: MJ /m^2 dia | BE21: h | BF21: BARATTO, R. L. Coeficiente de proporcionalidade Krs da equação de Hargreaves e Samani para o Brasil. Curitiba, 2016. 72p. Monografia (Trabalho de Conclusão de Curso - Agronomia) – Setor de Ciências Agrárias, Universidade Federal do Paraná. | BG21: -3.7 | BH21: -40.35
D22: Média (oC-0,5): | E22: 0.1458882609 | G22: Amostra (dados; dias): | H22: 2447 | I22: Primavera: | J22: 0.1385194803 | X22: Rio Grande do Norte - RN | Z22: Bahia - BA | AA22: 75 | AB22: Barreiras | AC22: -12.15 | AD22: -45.0167 | AE22: Aw | AF22: 0.1589895468 | AG22: 0.1568182948 | AH22: 0.1621694443 | AI22: 0.1667525303 | AJ22: 0.1624803664 | AK22: 0.1608755328 | AL22: 0.156987389 | AM22: 0.15719875 | AN22: 0.1492151591 | AO22: 0.1492419211 | AP22: 0.1469046307 | AQ22: 0.1554078667 | AR22: 0.1599150856 | AS22: 0.1640736776 | AT22: 0.1541048181 | AU22: 0.1491093843 | AV22: 0.1566720191 | AW22: 0.02678175375 | AX22: 0.2360596454 | AY22: 0.1571727618 | AZ22: 0.03087958621 | BA22: 19.64690692 | BB22: 2547 | BC22: Hargreaves-Samani | BD22: MJ /m^2 dia | BE22: h | BF22: BARATTO, R. L. Coeficiente de proporcionalidade Krs da equação de Hargreaves e Samani para o Brasil. Curitiba, 2016. 72p. Monografia (Trabalho de Conclusão de Curso - Agronomia) – Setor de Ciências Agrárias, Universidade Federal do Paraná. | BG22: -15.93333333 | BH22: -48.13333333
C23: Sendo: Rs - radiação solar incidente (MJ m-2 dia-1); Ra - radiação solar no topo da atmosfera (MJ m-2 dia-1); kRs - coeficiente de proporcionalidade da equação de | X23: Rio Grande do Sul - RS | Z23: Bahia - BA | AA23: 87 | AB23: Bom Jesus da Lapa | AC23: -13.4167 | AD23: -43.1833 | AE23: As | AF23: 0.1730889981 | AG23: 0.1690169592 | AH23: 0.173006138 | AI23: 0.1826056776 | AJ23: 0.1789740744 | AK23: 0.1735700496 | AL23: 0.1703251643 | AM23: 0.1680018296 | AN23: 0.162475616 | AO23: 0.1592318187 | AP23: 0.1543381071 | AQ23: 0.1662709652 | AR23: 0.17140339 | AS23: 0.1781719852 | AT23: 0.1689342021 | AU23: 0.1589815868 | AV23: 0.1696407629 | AW23: 0.03189959029 | AX23: 0.2242834159 | AY23: 0.1695158961 | AZ23: 0.03086314682 | BA23: 18.20663875 | BB23: 2175 | BC23: Hargreaves-Samani | BD23: MJ /m^2 dia | BE23: h | BF23: BARATTO, R. L. Coeficiente de proporcionalidade Krs da equação de Hargreaves e Samani para o Brasil. Curitiba, 2016. 72p. Monografia (Trabalho de Conclusão de Curso - Agronomia) – Setor de Ciências Agrárias, Universidade Federal do Paraná. | BG23: -15.78333333 | BH23: -47.93333333
C24: Hargreaves-Samani (oC-0,5); Tmín - temperatura mínima do ar (oC); Tmáx - temperatura máxima do ar (oC) | X24: Rondônia - RO | Z24: Bahia - BA | AA24: 76 | AB24: Camaçari | AC24: -12.75 | AD24: -38.15 | AE24: Af | AF24: 0.3469083019 | AG24: 0.3280727457 | AH24: 0.298689736 | AI24: 0.2765813681 | AJ24: 0.2795053747 | AK24: 0.26288121 | AL24: 0.2797240144 | AM24: 0.3001228412 | AN24: 0.3423530569 | AO24: 0.3603315359 | AP24: 0.3510821924 | AQ24: 0.3326113419 | AR24: 0.3255413796 | AS24: 0.2753275675 | AT24: 0.3022307742 | AU24: 0.3442959854 | AV24: 0.3134515693 | AW24: 0.02420929789 | AX24: 0.9494328575 | AY24: 0.3177911117 | AZ24: 0.1307069201 | BA24: 41.1298225 | BB24: 2405 | BC24: Hargreaves-Samani | BD24: MJ /m^2 dia | BE24: h | BF24: BARATTO, R. L. Coeficiente de proporcionalidade Krs da equação de Hargreaves e Samani para o Brasil. Curitiba, 2016. 72p. Monografia (Trabalho de Conclusão de Curso - Agronomia) – Setor de Ciências Agrárias, Universidade Federal do Paraná. | BG24: -19.4 | BH24: -40.06666667
T25: -25.4333 | U25: -49.2167 | X25: Roraima - RR | Z25: Bahia - BA | AA25: 77 | AB25: Caravelas | AC25: -17.7333 | AD25: -39.2667 | AE25: Af | AF25: 0.2065774374 | AG25: 0.2022722279 | AH25: 0.1933283354 | AI25: 0.19452732 | AJ25: 0.189272227 | AK25: 0.1913025763 | AL25: 0.1870351481 | AM25: 0.2027971705 | AN25: 0.18289632 | AO25: 0.1886534124 | AP25: 0.1858803985 | AQ25: 0.2052598553 | AR25: 0.2103952943 | AS25: 0.1911802372 | AT25: 0.1978985021 | AU25: 0.1898685718 | AV25: 0.1942149645 | AW25: 0.02238888176 | AX25: 0.347306278 | AY25: 0.1944055198 | AZ25: 0.0496981934 | BA25: 25.56418843 | BB25: 2352 | BC25: Hargreaves-Samani | BD25: MJ /m^2 dia | BE25: h | BF25: BARATTO, R. L. Coeficiente de proporcionalidade Krs da equação de Hargreaves e Samani para o Brasil. Curitiba, 2016. 72p. Monografia (Trabalho de Conclusão de Curso - Agronomia) – Setor de Ciências Agrárias, Universidade Federal do Paraná. | BG25: -18.7 | BH25: -39.85
T26: Latitude | U26: Longitude | X26: Santa Catarina - SC | Z26: Bahia - BA | AA26: 92 | AB26: Conde | AC26: -11.8 | AD26: -37.5833 | AE26: Af | AF26: 0.2086265828 | AG26: 0.2051421052 | AH26: 0.2117504999 | AI26: 0.1956824197 | AJ26: 0.1892425413 | AK26: 0.2046411798 | AL26: 0.1956693082 | AM26: 0.2048286117 | AN26: 0.2062609791 | AO26: 0.2125493403 | AP26: 0.2248726758 | AQ26: 0.2172871953 | AR26: 0.2133895708 | AS26: 0.196284607 | AT26: 0.2024984329 | AU26: 0.2178084546 | AV26: 0.2065206242 | AW26: 0.04482018109 | AX26: 0.3190133356 | AY26: 0.2070000237 | AZ26: 0.04385114249 | BA26: 21.18412438 | BB26: 2012 | BC26: Hargreaves-Samani | BD26: MJ /m^2 dia | BE26: h | BF26: BARATTO, R. L. Coeficiente de proporcionalidade Krs da equação de Hargreaves e Samani para o Brasil. Curitiba, 2016. 72p. Monografia (Trabalho de Conclusão de Curso - Agronomia) – Setor de Ciências Agrárias, Universidade Federal do Paraná. | BG26: -16.59805556 | BH26: -49.27777778
A27: 1 | B27: =A27+1 -> 2 | C27: =B27+1 -> 3 | D27: 4 | E27: 5 | F27: 6 | G27: 7 | H27: 8 | I27: 9 | J27: 10 | K27: 11 | L27: 12 | M27: 13 | N27: 14 | O27: 15 | P27: 16 | Q27: 17 | R27: 18 | S27: 19 | T27: 20 | U27: 21 | V27: 22 | W27: 23 | X27: São Paulo - SP | Z27: Bahia - BA | AA27: 78 | AB27: Cruz das Almas | AC27: -12.65 | AD27: -39.15 | AE27: Aw | AF27: 0.1614686178 | AG27: 0.1633215314 | AH27: 0.1653839207 | AI27: 0.1708314688 | AJ27: 0.1780736108 | AK27: 0.1758265114 | AL27: 0.180239169 | AM27: 0.179246074 | AN27: 0.1711061497 | AO27: 0.1649669483 | AP27: 0.1608140785 | AQ27: 0.157068681 | AR27: 0.1643775379 | AS27: 0.1739792926 | AT27: 0.1781604542 | AU27: 0.1609458012 | AV27: 0.170476963 | AW27: 0.03212908569 | AX27: 0.2804084868 | AY27: 0.1695307879 | AZ27: 0.03448602093 | BA27: 20.34204014 | BB27: 2427 | BC27: Hargreaves-Samani | BD27: MJ /m^2 dia | BE27: h | BF27: BARATTO, R. L. Coeficiente de proporcionalidade Krs da equação de Hargreaves e Samani para o Brasil. Curitiba, 2016. 72p. Monografia (Trabalho de Conclusão de Curso - Agronomia) – Setor de Ciências Agrárias, Universidade Federal do Paraná. | BG27: -5.5 | BH27: -45.26666667
X28: Sergipe - SE | Z28: Bahia - BA | AA28: 102 | AB28: Euclides da Cunha | AC28: -10.5333 | AD28: -38.9833 | AE28: As | AF28: 0.1573450368 | AG28: 0.1527361243 | AH28: 0.1657371841 | AI28: 0.1665873087 | AJ28: 0.1669250597 | AK28: 0.1717200712 | AL28: 0.1668690645 | AM28: 0.1652365151 | AN28: 0.1631978711 | AO28: 0.1600617953 | AP28: 0.1653128756 | AQ28: 0.154567133 | AR28: 0.1578853236 | AS28: 0.167513652 | AT28: 0.1663389501 | AU28: 0.1607423535 | AV28: 0.1632636769 | AW28: 0.04365373581 | AX28: 0.2437836761 | AY28: 0.1636104879 | AZ28: 0.0332454269 | BA28: 20.31986294 | BB28: 2023 | BC28: Hargreaves-Samani | BD28: MJ /m^2 dia | BE28: h | BF28: BARATTO, R. L. Coeficiente de proporcionalidade Krs da equação de Hargreaves e Samani para o Brasil. Curitiba, 2016. 72p. Monografia (Trabalho de Conclusão de Curso - Agronomia) – Setor de Ciências Agrárias, Universidade Federal do Paraná. | BG28: -7.333333333 | BH28: -47.46666667
B29: 1 | C29: 1 | D29: Acre - AC | E29: 1 | F29: 3 | I29: =F29+E29-1 -> 3 | L29: 0 | X29: Tocantins - TO | Z29: Bahia - BA | AA29: 84 | AB29: Feira de Santana | AC29: -12.25 | AD29: -38.9667 | AE29: As | AF29: 0.1621731268 | AG29: 0.1599990403 | AH29: 0.1649599859 | AI29: 0.1642686607 | AJ29: 0.1585320611 | AK29: 0.1653946875 | AL29: 0.165558854 | AM29: 0.1638011947 | AN29: 0.1591399899 | AO29: 0.1552285201 | AP29: 0.1567411133 | AQ29: 0.1592859162 | AR29: 0.1639269019 | AS29: 0.1622993201 | AT29: 0.1632998297 | AU29: 0.1562047319 | AV29: 0.1609893197 | AW29: 0.03128440273 | AX29: 0.2555670268 | AY29: 0.1616187882 | AZ29: 0.03067984868 | BA29: 18.98284786 | BB29: 2340 | BC29: Hargreaves-Samani | BD29: MJ /m^2 dia | BE29: h | BF29: BARATTO, R. L. Coeficiente de proporcionalidade Krs da equação de Hargreaves e Samani para o Brasil. Curitiba, 2016. 72p. Monografia (Trabalho de Conclusão de Curso - Agronomia) – Setor de Ciências Agrárias, Universidade Federal do Paraná. | BG29: -2.533333333 | BH29: -44.28333333
B30: 2 | C30: 6 | D30: Alagoas - AL | E30: 6 | F30: =I29+1 -> 4 | I30: =I29+E30 -> 9 | L30: =L29+E29 -> 1 | M30: 2 | Q30: Janeiro | R30: =CONCATENATE(G18,"/",Q30) -> /Janeiro | S30: =TEXT((R30),"")&TEXT(((R30) -DATEVALUE("1/1/"&TEXT((R30),"aa"))+1),"000") ->  | Z30: Bahia - BA | AA30: 99 | AB30: Ibotirama | AC30: -12.1833 | AD30: -43.2 | AE30: Aw | AF30: 0.1648741833 | AG30: 0.1651971729 | AH30: 0.170330782 | AI30: 0.1847647114 | AJ30: 0.1695490587 | AK30: 0.1695200182 | AL30: 0.1713583479 | AM30: 0.1799423352 | AN30: 0.1723838114 | AO30: 0.1645627471 | AP30: 0.1547652484 | AQ30: 0.1610983188 | AR30: 0.1658227884 | AS30: 0.1750847561 | AT30: 0.1747522058 | AU30: 0.1606950843 | AV30: 0.1683317673 | AW30: 0.03983735465 | AX30: 0.2476004876 | AY30: 0.168982172 | AZ30: 0.032041766 | BA30: 18.96162513 | BB30: 1927 | BC30: Hargreaves-Samani | BD30: MJ /m^2 dia | BE30: h | BF30: BARATTO, R. L. Coeficiente de proporcionalidade Krs da equação de Hargreaves e Samani para o Brasil. Curitiba, 2016. 72p. Monografia (Trabalho de Conclusão de Curso - Agronomia) – Setor de Ciências Agrárias, Universidade Federal do Paraná. | BG30: -15.6 | BH30: -56.1
B31: 3 | C31: 1 | D31: Amapá - AP | E31: 1 | F31: =I30+1 -> 10 | I31: 10 | L31: =L30+E30 -> 7 | Q31: Mês | R31: Concatenação | S31: J | Z31: Bahia - BA | AA31: 81 | AB31: Ilhéus | AC31: -14.65 | AD31: -39.15 | AE31: Af | AF31: 0.1784402301 | AG31: 0.1838140663 | AH31: 0.1902918452 | AI31: 0.1977696594 | AJ31: 0.178583128 | AK31: 0.1725309836 | AL31: 0.1717259668 | AM31: 0.1749520255 | AN31: 0.1678715882 | AO31: 0.1667965143 | AP31: 0.1618379098 | AQ31: 0.1669236078 | AR31: 0.182827483 | AS31: 0.1888609393 | AT31: 0.1725121234 | AU31: 0.1652343199 | AV31: 0.175598466 | AW31: 0.04035355391 | AX31: 0.3503457119 | AY31: 0.1743989564 | AZ31: 0.04439867183 | BA31: 25.45810637 | BB31: 2054 | BC31: Hargreaves-Samani | BD31: MJ /m^2 dia | BE31: h | BF31: BARATTO, R. L. Coeficiente de proporcionalidade Krs da equação de Hargreaves e Samani para o Brasil. Curitiba, 2016. 72p. Monografia (Trabalho de Conclusão de Curso - Agronomia) – Setor de Ciências Agrárias, Universidade Federal do Paraná. | BG31: -11.84805556 | BH31: -55.64916667
B32: 4 | C32: 8 | D32: Amazonas - AM | E32: 8 | F32: =I31+1 -> 11 | I32: 18 | L32: 8 | Z32: Bahia - BA | AA32: 88 | AB32: Irecê | AC32: -11.3167 | AD32: -41.85 | AE32: BSh | AF32: 0.1708203116 | AG32: 0.1663009882 | AH32: 0.1721748165 | AI32: 0.178850883 | AJ32: 0.1750553966 | AK32: 0.1821139959 | AL32: 0.1827394226 | AM32: 0.1814991466 | AN32: 0.177535432 | AO32: 0.1712420507 | AP32: 0.1601167541 | AQ32: 0.1635890633 | AR32: 0.1688649094 | AS32: 0.1775820832 | AT32: 0.1816783625 | AU32: 0.1655446671 | AV32: 0.1737305791 | AW32: 0.06006078739 | AX32: 0.2435843956 | AY32: 0.174104088 | AZ32: 0.0318985613 | BA32: 18.32154642 | BB32: 2065 | BC32: Hargreaves-Samani | BD32: MJ /m^2 dia | BE32: h | BF32: BARATTO, R. L. Coeficiente de proporcionalidade Krs da equação de Hargreaves e Samani para o Brasil. Curitiba, 2016. 72p. Monografia (Trabalho de Conclusão de Curso - Agronomia) – Setor de Ciências Agrárias, Universidade Federal do Paraná. | BG32: -22.53333333 | BH32: -55.73333333
B33: 5 | C33: 30 | D33: Bahia - BA | E33: 30 | F33: =I32+1 -> 19 | I33: 48 | L33: 16 | Z33: Bahia - BA | AA33: 80 | AB33: Itaberaba | AC33: -12.5167 | AD33: -40.2833 | AE33: BSh | AF33: 0.1727531339 | AG33: 0.172110119 | AH33: 0.1880130043 | AI33: 0.1869798159 | AJ33: 0.1716142566 | AK33: 0.1673622025 | AL33: 0.1693018735 | AM33: 0.1707054488 | AN33: 0.1605431738 | AO33: 0.1516912475 | AP33: 0.1494394437 | AQ33: 0.166317953 | AR33: 0.1773837547 | AS33: 0.1774080794 | AT33: 0.1678923248 | AU33: 0.1561186838 | AV33: 0.1693537075 | AW33: 0.05266055651 | AX33: 0.2714106635 | AY33: 0.1687092407 | AZ33: 0.04041680104 | BA33: 23.95648328 | BB33: 2649 | BC33: Hargreaves-Samani | BD33: MJ /m^2 dia | BE33: h | BF33: BARATTO, R. L. Coeficiente de proporcionalidade Krs da equação de Hargreaves e Samani para o Brasil. Curitiba, 2016. 72p. Monografia (Trabalho de Conclusão de Curso - Agronomia) – Setor de Ciências Agrárias, Universidade Federal do Paraná. | BG33: -21.25 | BH33: -43.76666667
B34: 6 | C34: 8 | D34: Ceará - CE | E34: 8 | F34: =I33+1 -> 49 | I34: 56 | L34: 46 | Z34: Bahia - BA | AA34: 79 | AB34: Itiruçu | AC34: -13.5167 | AD34: -40.1167 | AE34: As | AF34: 0.1464001687 | AG34: 0.1450011945 | AH34: 0.1481653748 | AI34: 0.1574777888 | AJ34: 0.1499253596 | AK34: 0.149714937 | AL34: 0.1639905311 | AM34: 0.1545703496 | AN34: 0.1489835367 | AO34: 0.1401116226 | AP34: 0.1391269788 | AQ34: 0.1387098027 | AR34: 0.1479958611 | AS34: 0.1569085266 | AT34: 0.1585440886 | AU34: 0.1411855013 | AV34: 0.1513650777 | AW34: 0.03833790499 | AX34: 0.2627162835 | AY34: 0.1478814002 | AZ34: 0.03617873785 | BA34: 24.46469793 | BB34: 2343 | BC34: Hargreaves-Samani | BD34: MJ /m^2 dia | BE34: h | BF34: BARATTO, R. L. Coeficiente de proporcionalidade Krs da equação de Hargreaves e Samani para o Brasil. Curitiba, 2016. 72p. Monografia (Trabalho de Conclusão de Curso - Agronomia) – Setor de Ciências Agrárias, Universidade Federal do Paraná. | BG34: -19.93333333 | BH34: -43.93333333
B35: 7 | C35: 3 | D35: Distrito Federal - DF | E35: 3 | F35: =I34+1 -> 57 | I35: 59 | L35: 54 | Z35: Bahia - BA | AA35: 100 | AB35: Jacobina | AC35: -11.2 | AD35: -40.45 | AE35: Aw | AF35: 0.1609397798 | AG35: 0.1556285658 | AH35: 0.1602845852 | AI35: 0.1519757943 | AJ35: 0.1393869109 | AK35: 0.1404569171 | AL35: 0.145122504 | AM35: 0.1481644403 | AN35: 0.1471367047 | AO35: 0.1444267826 | AP35: 0.1480559667 | AQ35: 0.1492359258 | AR35: 0.1573192813 | AS35: 0.1455882915 | AT35: 0.1460583298 | AU35: 0.146106633 | AV35: 0.1486437767 | AW35: 0.03971650598 | AX35: 0.2199520243 | AY35: 0.1492807361 | AZ35: 0.03429674902 | BA35: 22.97466499 | BB35: 2040 | BC35: Hargreaves-Samani | BD35: MJ /m^2 dia | BE35: h | BF35: BARATTO, R. L. Coeficiente de proporcionalidade Krs da equação de Hargreaves e Samani para o Brasil. Curitiba, 2016. 72p. Monografia (Trabalho de Conclusão de Curso - Agronomia) – Setor de Ciências Agrárias, Universidade Federal do Paraná. | BG35: -18.68333333 | BH35: -49.56666667
B36: 8 | C36: 7 | D36: Espirito Santo - ES | E36: 7 | F36: 60 | I36: 66 | L36: 57 | Z36: Bahia - BA | AA36: 89 | AB36: Lençóis | AC36: -12.55 | AD36: -41.3833 | AE36: Aw | AF36: 0.1581381465 | AG36: 0.1602783437 | AH36: 0.1636532357 | AI36: 0.1740981633 | AJ36: 0.1655729364 | AK36: 0.1667087933 | AL36: 0.157383762 | AM36: 0.1560133035 | AN36: 0.1507822791 | AO36: 0.1447883856 | AP36: 0.1366614627 | AQ36: 0.1496167169 | AR36: 0.1571573056 | AS36: 0.1690758787 | AT36: 0.156591991 | AU36: 0.1452473798 | AV36: 0.1569662593 | AW36: 0.05351762027 | AX36: 0.2452479566 | AY36: 0.1573778963 | AZ36: 0.03608925306 | BA36: 22.93158945 | BB36: 1882 | BC36: Hargreaves-Samani | BD36: MJ /m^2 dia | BE36: h | BF36: BARATTO, R. L. Coeficiente de proporcionalidade Krs da equação de Hargreaves e Samani para o Brasil. Curitiba, 2016. 72p. Monografia (Trabalho de Conclusão de Curso - Agronomia) – Setor de Ciências Agrárias, Universidade Federal do Paraná. | BG36: -19.8 | BH36: -42.15
B37: 9 | C37: 20 | D37: Goiás - GO | E37: 20 | F37: 67 | I37: 86 | L37: 64 | Z37: Bahia - BA | AA37: 83 | AB37: Macajuba | AC37: -12.1167 | AD37: -40.35 | AE37: Aw | AF37: 0.1677344418 | AG37: 0.1627335973 | AH37: 0.176532419 | AI37: 0.1672228805 | AJ37: 0.1570272571 | AK37: 0.1604921805 | AL37: 0.1662017095 | AM37: 0.1572276339 | AN37: 0.154196662 | AO37: 0.1463215323 | AP37: 0.1526940408 | AQ37: 0.1605307284 | AR37: 0.16830706 | AS37: 0.1647062355 | AT37: 0.157791099 | AU37: 0.154195866 | AV37: 0.1583414745 | AW37: 0.04529689042 | AX37: 0.2721089246 | AY37: 0.1593516116 | AZ37: 0.0424484636 | BA37: 26.63823929 | BB37: 2298 | BC37: Hargreaves-Samani | BD37: MJ /m^2 dia | BE37: h | BF37: BARATTO, R. L. Coeficiente de proporcionalidade Krs da equação de Hargreaves e Samani para o Brasil. Curitiba, 2016. 72p. Monografia (Trabalho de Conclusão de Curso - Agronomia) – Setor de Ciências Agrárias, Universidade Federal do Paraná. | BG37: -21.22555556 | BH37: -45.97916667
B38: 10 | C38: 9 | D38: Maranhão - MA | E38: 9 | F38: 87 | I38: 95 | L38: 84 | Z38: Bahia - BA | AA38: 98 | AB38: Maraú | AC38: -13.9 | AD38: -38.9667 | AE38: Af | AF38: 0.2205645641 | AG38: 0.2101549924 | AH38: 0.2282049337 | AI38: 0.2034500044 | AJ38: 0.20382548 | AK38: 0.1967899007 | AL38: 0.2067943444 | AM38: 0.2083707613 | AN38: 0.2148217399 | AO38: 0.2247798876 | AP38: 0.2297743867 | AQ38: 0.2341065607 | AR38: 0.2221648753 | AS38: 0.2047913799 | AT38: 0.2097320021 | AU38: 0.227944349 | AV38: 0.2156361472 | AW38: 0.0298017021 | AX38: 0.3774138165 | AY38: 0.2162673855 | AZ38: 0.05431232488 | BA38: 25.11350694 | BB38: 1889 | BC38: Hargreaves-Samani | BD38: MJ /m^2 dia | BE38: h | BF38: BARATTO, R. L. Coeficiente de proporcionalidade Krs da equação de Hargreaves e Samani para o Brasil. Curitiba, 2016. 72p. Monografia (Trabalho de Conclusão de Curso - Agronomia) – Setor de Ciências Agrárias, Universidade Federal do Paraná. | BG38: -21.23333333 | BH38: -45
B39: 11 | C39: 24 | D39: Mato Grosso - MT | E39: 24 | F39: 96 | I39: =I38+E39 -> 119 | L39: 93 | Z39: Bahia - BA | AA39: 82 | AB39: Paulo Afonso | AC39: -9.3667 | AD39: -38.2167 | AE39: BSh | AF39: 0.1771403896 | AG39: 0.1820768825 | AH39: 0.1971762872 | AI39: 0.1975012373 | AJ39: 0.192871412 | AK39: 0.1901102414 | AL39: 0.1906589274 | AM39: 0.1870337602 | AN39: 0.1785289347 | AO39: 0.1829893142 | AP39: 0.1876386315 | AQ39: 0.180370392 | AR39: 0.1830421113 | AS39: 0.1944051904 | AT39: 0.1860819517 | AU39: 0.1846478852 | AV39: 0.1879815934 | AW39: 0.06908893114 | AX39: 0.3042078369 | AY39: 0.1871154475 | AZ39: 0.03495183342 | BA39: 18.67928805 | BB39: 2634 | BC39: Hargreaves-Samani | BD39: MJ /m^2 dia | BE39: h | BF39: BARATTO, R. L. Coeficiente de proporcionalidade Krs da equação de Hargreaves e Samani para o Brasil. Curitiba, 2016. 72p. Monografia (Trabalho de Conclusão de Curso - Agronomia) – Setor de Ciências Agrárias, Universidade Federal do Paraná. | BG39: -21.66666667 | BH39: -45.91666667
B40: 12 | C40: 20 | D40: Mato Grosso do Sul - MS | E40: 20 | F40: 120 | I40: 139 | L40: 117 | Z40: Bahia - BA | AA40: 91 | AB40: Piatã | AC40: -13.15 | AD40: -41.7667 | AE40: Cfb | AF40: 0.1747379639 | AG40: 0.1736307099 | AH40: 0.1743161152 | AI40: 0.1806330882 | AJ40: 0.1832980773 | AK40: 0.18704606 | AL40: 0.1949173479 | AM40: 0.1910262948 | AN40: 0.1828215403 | AO40: 0.16798059 | AP40: 0.1533225498 | AQ40: 0.1646598786 | AR40: 0.1718947547 | AS40: 0.1842695997 | AT40: 0.1902167761 | AU40: 0.1626400633 | AV40: 0.177593815 | AW40: 0.03990013555 | AX40: 0.270355722 | AY40: 0.1778773811 | AZ40: 0.04302939426 | BA40: 24.1904811 | BB40: 2059 | BC40: Hargreaves-Samani | BD40: MJ /m^2 dia | BE40: h | BF40: BARATTO, R. L. Coeficiente de proporcionalidade Krs da equação de Hargreaves e Samani para o Brasil. Curitiba, 2016. 72p. Monografia (Trabalho de Conclusão de Curso - Agronomia) – Setor de Ciências Agrárias, Universidade Federal do Paraná. | BG40: -16.71666667 | BH40: -43.86666667
B41: 13 | C41: 52 | D41: Minas Gerais - MG | E41: 52 | F41: 140 | I41: 191 | L41: 137 | Z41: Bahia - BA | AA41: 96 | AB41: Queimadas | AC41: -10.9833 | AD41: -39.6167 | AE41: BSh | AF41: 0.1600860932 | AG41: 0.1550701374 | AH41: 0.1662448008 | AI41: 0.1606681085 | AJ41: 0.1517044862 | AK41: 0.1545785026 | AL41: 0.1550347352 | AM41: 0.1514722105 | AN41: 0.1537488259 | AO41: 0.1543118668 | AP41: 0.1467047485 | AQ41: 0.1553109212 | AR41: 0.1613550347 | AS41: 0.1559551695 | AT41: 0.1532662932 | AU41: 0.1506707707 | AV41: 0.1545427689 | AW41: 0.03098777436 | AX41: 0.2281169792 | AY41: 0.1554140955 | AZ41: 0.03313721124 | BA41: 21.32188276 | BB41: 1836 | BC41: Hargreaves-Samani | BD41: MJ /m^2 dia | BE41: h | BF41: BARATTO, R. L. Coeficiente de proporcionalidade Krs da equação de Hargreaves e Samani para o Brasil. Curitiba, 2016. 72p. Monografia (Trabalho de Conclusão de Curso - Agronomia) – Setor de Ciências Agrárias, Universidade Federal do Paraná. | BG41: -18.6 | BH41: -46.51666667
B42: 14 | C42: 14 | D42: Pará - PA | E42: 14 | F42: 192 | I42: 205 | L42: 189 | Z42: Bahia - BA | AA42: 74 | AB42: Salvador | AC42: -13.0167 | AD42: -38.5167 | AE42: Af | AF42: 0.2188128418 | AG42: 0.2208857769 | AH42: 0.215225146 | AI42: 0.2066404271 | AJ42: 0.2192229228 | AK42: 0.2140915748 | AL42: 0.2270522671 | AM42: 0.2234677229 | AN42: 0.2188382779 | AO42: 0.2038218894 | AP42: 0.20828077 | AQ42: 0.2047543116 | AR42: 0.2231427141 | AS42: 0.2215455971 | AT42: 0.2235225979 | AU42: 0.2058529964 | AV42: 0.2180065441 | AW42: 0.03530920348 | AX42: 0.4185555957 | AY42: 0.2150784469 | AZ42: 0.05292406336 | BA42: 24.60686513 | BB42: 2033 | BC42: Hargreaves-Samani | BD42: MJ /m^2 dia | BE42: h | BF42: BARATTO, R. L. Coeficiente de proporcionalidade Krs da equação de Hargreaves e Samani para o Brasil. Curitiba, 2016. 72p. Monografia (Trabalho de Conclusão de Curso - Agronomia) – Setor de Ciências Agrárias, Universidade Federal do Paraná. | BG42: -15.24444444 | BH42: -40.22916667
B43: 15 | C43: 6 | D43: Paraíba - PB | E43: 6 | F43: 206 | I43: 211 | L43: 203 | Z43: Bahia - BA | AA43: 86 | AB43: Santa Rita de Cássia | AC43: -11.0167 | AD43: -44.5167 | AE43: Aw | AF43: 0.1638904464 | AG43: 0.1629804541 | AH43: 0.1666989878 | AI43: 0.1808928768 | AJ43: 0.1826797545 | AK43: 0.1772273979 | AL43: 0.1711551371 | AM43: 0.1661916886 | AN43: 0.1610016489 | AO43: 0.1543500003 | AP43: 0.1541200384 | AQ43: 0.1604990042 | AR43: 0.1669687221 | AS43: 0.1784081089 | AT43: 0.1678855896 | AU43: 0.1553807163 | AV43: 0.1664337132 | AW43: 0.01892349449 | AX43: 0.246767945 | AY43: 0.1669363122 | AZ43: 0.03156706285 | BA43: 18.9096443 | BB43: 2358 | BC43: Hargreaves-Samani | BD43: MJ /m^2 dia | BE43: h | BF43: BARATTO, R. L. Coeficiente de proporcionalidade Krs da equação de Hargreaves e Samani para o Brasil. Curitiba, 2016. 72p. Monografia (Trabalho de Conclusão de Curso - Agronomia) – Setor de Ciências Agrárias, Universidade Federal do Paraná. | BG43: -19.46666667 | BH43: -44.25
B44: 16 | C44: 19 | D44: Paraná - PR | E44: 19 | F44: 212 | I44: 230 | L44: 209 | Z44: Bahia - BA | AA44: 101 | AB44: Serrinha | AC44: -11.65 | AD44: -39.0167 | AE44: As | AF44: 0.1614912012 | AG44: 0.1616531157 | AH44: 0.1701193354 | AI44: 0.1660415951 | AJ44: 0.1643632261 | AK44: 0.1660277152 | AL44: 0.1652911627 | AM44: 0.1600463661 | AN44: 0.1574839545 | AO44: 0.160085124 | AP44: 0.163528507 | AQ44: 0.1611188046 | AR44: 0.1649839984 | AS44: 0.1655399576 | AT44: 0.1619706719 | AU44: 0.1606963461 | AV44: 0.1629082755 | AW44: 0.0317332076 | AX44: 0.2422934416 | AY44: 0.163490758 | AZ44: 0.03273867274 | BA44: 20.02478497 | BB44: 2042 | BC44: Hargreaves-Samani | BD44: MJ /m^2 dia | BE44: h | BF44: BARATTO, R. L. Coeficiente de proporcionalidade Krs da equação de Hargreaves e Samani para o Brasil. Curitiba, 2016. 72p. Monografia (Trabalho de Conclusão de Curso - Agronomia) – Setor de Ciências Agrárias, Universidade Federal do Paraná. | BG44: -19.76666667 | BH44: -47.93333333
B45: 17 | C45: 10 | D45: Pernanbuco - PE | E45: 10 | F45: 231 | I45: 240 | L45: 228 | Z45: Bahia - BA | AA45: 93 | AB45: Tanhaçu | AC45: -14.1833 | AD45: -41.3333 | AE45: BSh | AF45: 0.1731990714 | AG45: 0.1643816416 | AH45: 0.1658071623 | AI45: 0.1653452613 | AJ45: 0.1531205682 | AK45: 0.1532373536 | AL45: 0.1624984513 | AM45: 0.160241886 | AN45: 0.1653464273 | AO45: 0.1597842543 | AP45: 0.1602876914 | AQ45: 0.1648750228 | AR45: 0.164840393 | AS45: 0.1567215284 | AT45: 0.1618768506 | AU45: 0.161691306 | AV45: 0.1611354149 | AW45: 0.03062265483 | AX45: 0.3225575079 | AY45: 0.1620148697 | AZ45: 0.0411976995 | BA45: 25.42834468 | BB45: 2062 | BC45: Hargreaves-Samani | BD45: MJ /m^2 dia | BE45: h | BF45: BARATTO, R. L. Coeficiente de proporcionalidade Krs da equação de Hargreaves e Samani para o Brasil. Curitiba, 2016. 72p. Monografia (Trabalho de Conclusão de Curso - Agronomia) – Setor de Ciências Agrárias, Universidade Federal do Paraná. | BG45: -20.75 | BH45: -42.85
B46: 18 | C46: 13 | D46: Piauí - PI | E46: 13 | F46: 241 | I46: 253 | L46: 238 | Z46: Bahia - BA | AA46: 95 | AB46: Uauá | AC46: -9.8333 | AD46: -39.4833 | AE46: BSh | AF46: 0.1651848369 | AG46: 0.1646222443 | AH46: 0.1776649836 | AI46: 0.1833527093 | AJ46: 0.1718812879 | AK46: 0.1771739832 | AL46: 0.1775799329 | AM46: 0.1756159655 | AN46: 0.1766568031 | AO46: 0.1710453046 | AP46: 0.1739120834 | AQ46: 0.1660759334 | AR46: 0.1634407631 | AS46: 0.1752895074 | AT46: 0.1767203803 | AU46: 0.1716092215 | AV46: 0.1726138351 | AW46: 0.04656575526 | AX46: 0.2643930605 | AY46: 0.1741854388 | AZ46: 0.03343061149 | BA46: 19.19254085 | BB46: 1930 | BC46: Hargreaves-Samani | BD46: MJ /m^2 dia | BE46: h | BF46: BARATTO, R. L. Coeficiente de proporcionalidade Krs da equação de Hargreaves e Samani para o Brasil. Curitiba, 2016. 72p. Monografia (Trabalho de Conclusão de Curso - Agronomia) – Setor de Ciências Agrárias, Universidade Federal do Paraná. | BG46: -1.466666667 | BH46: -48.48333333
B47: 19 | C47: 15 | D47: Rio de Janeiro - RJ | E47: 15 | F47: 254 | I47: 268 | L47: 251 | Z47: Bahia - BA | AA47: 97 | AB47: Uma | AC47: -15.2667 | AD47: -39.0833 | AE47: Af | AF47: 0.1847580194 | AG47: 0.185246034 | AH47: 0.1796314353 | AI47: 0.1761125672 | AJ47: 0.1740903545 | AK47: 0.1703389565 | AL47: 0.1786678684 | AM47: 0.1846941843 | AN47: 0.1718952295 | AO47: 0.1738842769 | AP47: 0.1631335664 | AQ47: 0.1746814365 | AR47: 0.1823819201 | AS47: 0.1756327281 | AT47: 0.1812505849 | AU47: 0.168688183 | AV47: 0.176171587 | AW47: 0.01743701967 | AX47: 0.2744977797 | AY47: 0.1772015536 | AZ47: 0.0408697747 | BA47: 23.06400473 | BB47: 1926 | BC47: Hargreaves-Samani | BD47: MJ /m^2 dia | BE47: h | BF47: BARATTO, R. L. Coeficiente de proporcionalidade Krs da equação de Hargreaves e Samani para o Brasil. Curitiba, 2016. 72p. Monografia (Trabalho de Conclusão de Curso - Agronomia) – Setor de Ciências Agrárias, Universidade Federal do Paraná. | BG47: -2.633333333 | BH47: -54.95
B48: 20 | C48: 5 | D48: Rio Grande do Norte - RN | E48: 5 | F48: 269 | I48: 273 | L48: 266 | Z48: Bahia - BA | AA48: 103 | AB48: Umburanas | AC48: -10.45 | AD48: -41.2 | AE48: BSh | AF48: 0.158812578 | AG48: 0.1534421698 | AH48: 0.1615726075 | AI48: 0.1549079686 | AJ48: 0.1393663691 | AK48: 0.1470530514 | AL48: 0.1547292675 | AM48: 0.16125103 | AN48: 0.1611720106 | AO48: 0.1536583848 | AP48: 0.1513416207 | AQ48: 0.1477826069 | AR48: 0.1546532122 | AS48: 0.1470481727 | AT48: 0.1583096315 | AU48: 0.1516036228 | AV48: 0.1539227082 | AW48: 0.04050719363 | AX48: 0.2274891242 | AY48: 0.1542192554 | AZ48: 0.03398279097 | BA48: 22.03537483 | BB48: 1934 | BC48: Hargreaves-Samani | BD48: MJ /m^2 dia | BE48: h | BF48: BARATTO, R. L. Coeficiente de proporcionalidade Krs da equação de Hargreaves e Samani para o Brasil. Curitiba, 2016. 72p. Monografia (Trabalho de Conclusão de Curso - Agronomia) – Setor de Ciências Agrárias, Universidade Federal do Paraná. | BG48: -1.5 | BH48: -46.81666667
B49: 21 | C49: 31 | D49: Rio Grande do Sul - RS | E49: 31 | F49: 274 | I49: 304 | L49: 271 | Y49: 8 | Z49: Ceará - CE | AA49: 106 | AB49: Barbalha | AC49: -7.3 | AD49: -39.2667 | AE49: As | AF49: 0.1708509284 | AG49: 0.1744618684 | AH49: 0.1841534778 | AI49: 0.1911350563 | AJ49: 0.1926592811 | AK49: 0.1922864304 | AL49: 0.1861982336 | AM49: 0.1849182514 | AN49: 0.1807684431 | AO49: 0.1753253576 | AP49: 0.1767268692 | AQ49: 0.1663647087 | AR49: 0.1724646035 | AS49: 0.1919476633 | AT49: 0.1848863825 | AU49: 0.1743065819 | AV49: 0.1813672573 | AW49: 0.0643361551 | AX49: 0.281586571 | AY49: 0.1817328146 | AZ49: 0.03234483436 | BA49: 17.79801542 | BB49: 2324 | BC49: Hargreaves-Samani | BD49: MJ /m^2 dia | BE49: h | BF49: BARATTO, R. L. Coeficiente de proporcionalidade Krs da equação de Hargreaves e Samani para o Brasil. Curitiba, 2016. 72p. Monografia (Trabalho de Conclusão de Curso - Agronomia) – Setor de Ciências Agrárias, Universidade Federal do Paraná. | BG49: -5.35 | BH49: -49.15
B50: 22 | C50: 3 | D50: Rondônia - RO | E50: 3 | F50: 305 | I50: 307 | L50: 302 | M50: 22 | Z50: Ceará - CE | AA50: 105 | AB50: Beberibe | AC50: -4.25 | AD50: -38.1833 | AE50: As | AF50: 0.1446461262 | AG50: 0.1469217647 | AH50: 0.1479329391 | AI50: 0.150499963 | AJ50: 0.1630112515 | AK50: 0.1689202823 | AL50: 0.1751724146 | AM50: 0.1822399604 | AN50: 0.1793687718 | AO50: 0.1627109821 | AP50: 0.1622581113 | AQ50: 0.1540438101 | AR50: 0.1485775448 | AS50: 0.1610186005 | AT50: 0.1787768741 | AU50: 0.1620570159 | AV50: 0.1623975075 | AW50: 0.0546405374 | AX50: 0.2780163171 | AY50: 0.1617374651 | AZ50: 0.04042117945 | BA50: 24.99184678 | BB50: 2298 | BC50: Hargreaves-Samani | BD50: MJ /m^2 dia | BE50: h | BF50: BARATTO, R. L. Coeficiente de proporcionalidade Krs da equação de Hargreaves e Samani para o Brasil. Curitiba, 2016. 72p. Monografia (Trabalho de Conclusão de Curso - Agronomia) – Setor de Ciências Agrárias, Universidade Federal do Paraná. | BG50: -6.633333333 | BH50: -51.96666667
B51: 23 | C51: 1 | D51: Roraima - RR | E51: 1 | F51: 308 | I51: 308 | L51: 305 | M51: 23 | Z51: Ceará - CE | AA51: 110 | AB51: Campos Sales | AC51: -7.0667 | AD51: -40.35 | AE51: BSh | AF51: 0.1503207727 | AG51: 0.1622831286 | AH51: 0.1705080464 | AI51: 0.1728568562 | AJ51: 0.1774546002 | AK51: 0.1811819837 | AL51: 0.1876110866 | AM51: 0.1887964803 | AN51: 0.1820072484 | AO51: 0.1700653413 | AP51: 0.1661784043 | AQ51: 0.1573509846 | AR51: 0.1608581408 | AS51: 0.175697321 | AT51: 0.1865601349 | AU51: 0.1666681303 | AV51: 0.1734163418 | AW51: 0.05861295941 | AX51: 0.2510090377 | AY51: 0.1737113045 | AZ51: 0.03338577654 | BA51: 19.21911567 | BB51: 2035 | BC51: Hargreaves-Samani | BD51: MJ /m^2 dia | BE51: h | BF51: BARATTO, R. L. Coeficiente de proporcionalidade Krs da equação de Hargreaves e Samani para o Brasil. Curitiba, 2016. 72p. Monografia (Trabalho de Conclusão de Curso - Agronomia) – Setor de Ciências Agrárias, Universidade Federal do Paraná. | BG51: -1.066666667 | BH51: -42.93333333
B52: 24 | C52: 15 | D52: Santa Catarina - SC | E52: 15 | F52: 309 | I52: 323 | L52: 306 | Z52: Ceará - CE | AA52: 109 | AB52: Crateús | AC52: -5.1833 | AD52: -40.6667 | AE52: BSh | AF52: 0.1305337707 | AG52: 0.1363252587 | AH52: 0.1465873342 | AI52: 0.1570137544 | AJ52: 0.1665080549 | AK52: 0.1585266381 | AL52: 0.1517086275 | AM52: 0.1573180966 | AN52: 0.1616168123 | AO52: 0.1630640482 | AP52: 0.1693847453 | AQ52: 0.156477082 | AR52: 0.1432978915 | AS52: 0.1597544986 | AT52: 0.155096427 | AU52: 0.1646549149 | AV52: 0.1564308573 | AW52: 0.02736787264 | AX52: 0.2242230675 | AY52: 0.1550116345 | AZ52: 0.03870733435 | BA52: 24.97059944 | BB52: 1835 | BC52: Hargreaves-Samani | BD52: MJ /m^2 dia | BE52: h | BF52: BARATTO, R. L. Coeficiente de proporcionalidade Krs da equação de Hargreaves e Samani para o Brasil. Curitiba, 2016. 72p. Monografia (Trabalho de Conclusão de Curso - Agronomia) – Setor de Ciências Agrárias, Universidade Federal do Paraná. | BG52: -6.5 | BH52: -35.73333333
B53: 25 | C53: 24 | D53: São Paulo - SP | E53: 24 | F53: 324 | I53: 347 | L53: 321 | Z53: Ceará - CE | AA53: 111 | AB53: Jaguaribe | AC53: -5.9 | AD53: -38.6167 | AE53: BSh | AF53: 0.1529923183 | AG53: 0.1711482162 | AH53: 0.1757944921 | AI53: 0.1640107592 | AJ53: 0.1655852424 | AK53: 0.1665188375 | AL53: 0.1635802868 | AM53: 0.1620503018 | AN53: 0.1798316554 | AO53: 0.1703026986 | AP53: 0.1675636758 | AQ53: 0.1548446731 | AR53: 0.1631533613 | AS53: 0.1661910726 | AT53: 0.1704391638 | AU53: 0.1664553187 | AV53: 0.1667379341 | AW53: 0.06726958475 | AX53: 0.2350773714 | AY53: 0.1663157908 | AZ53: 0.03119817716 | BA53: 18.75839751 | BB53: 1883 | BC53: Hargreaves-Samani | BD53: MJ /m^2 dia | BE53: h | BF53: BARATTO, R. L. Coeficiente de proporcionalidade Krs da equação de Hargreaves e Samani para o Brasil. Curitiba, 2016. 72p. Monografia (Trabalho de Conclusão de Curso - Agronomia) – Setor de Ciências Agrárias, Universidade Federal do Paraná. | BG53: -6.966666667 | BH53: -35.68333333
B54: 26 | C54: 4 | D54: Sergipe - SE | E54: 4 | F54: 348 | I54: 351 | L54: 345 | M54: 26 | Z54: Ceará - CE | AA54: 108 | AB54: Jaguaruana | AC54: -4.7833 | AD54: -37.7667 | AE54: As | AF54: 0.1674804817 | AG54: 0.1677603412 | AH54: 0.1798559553 | AI54: 0.1796338611 | AJ54: 0.1910679345 | AK54: 0.1937879235 | AL54: 0.1915971933 | AM54: 0.1801792476 | AN54: 0.1790655324 | AO54: 0.1812350697 | AP54: 0.1878969698 | AQ54: 0.1756282301 | AR54: 0.170868393 | AS54: 0.1859696069 | AT54: 0.1831883958 | AU54: 0.1784765826 | AV54: 0.1803869955 | AW54: 0.03705420677 | AX54: 0.2776038553 | AY54: 0.1810833362 | AZ54: 0.03416098735 | BA54: 18.86478793 | BB54: 1959 | BC54: Hargreaves-Samani | BD54: MJ /m^2 dia | BE54: h | BF54: BARATTO, R. L. Coeficiente de proporcionalidade Krs da equação de Hargreaves e Samani para o Brasil. Curitiba, 2016. 72p. Monografia (Trabalho de Conclusão de Curso - Agronomia) – Setor de Ciências Agrárias, Universidade Federal do Paraná. | BG54: -6.716666667 | BH54: -36.06666667
B55: 27 | C55: 8 | D55: Tocantins - TO | E55: 8 | F55: 352 | I55: 359 | L55: 349 | M55: 27 | Z55: Ceará - CE | AA55: 104 | AB55: Sobral | AC55: -3.7167 | AD55: -40.3333 | AE55: As | AF55: 0.1564517164 | AG55: 0.1589976206 | AH55: 0.1631831561 | AI55: 0.1750134472 | AJ55: 0.1807179083 | AK55: 0.1718719519 | AL55: 0.168469042 | AM55: 0.1669465524 | AN55: 0.1715388007 | AO55: 0.1628059223 | AP55: 0.1589200122 | AQ55: 0.1537741313 | AR55: 0.1584519122 | AS55: 0.1760601346 | AT55: 0.1686746595 | AU55: 0.1586065143 | AV55: 0.1653396006 | AW55: 0.05984860298 | AX55: 0.2601162108 | AY55: 0.1668832608 | AZ55: 0.03348229616 | BA55: 20.06330414 | BB55: 1908 | BC55: Hargreaves-Samani | BD55: MJ /m^2 dia | BE55: h | BF55: BARATTO, R. L. Coeficiente de proporcionalidade Krs da equação de Hargreaves e Samani para o Brasil. Curitiba, 2016. 72p. Monografia (Trabalho de Conclusão de Curso - Agronomia) – Setor de Ciências Agrárias, Universidade Federal do Paraná. | BG55: -6.183333333 | BH55: -37.53333333
Z56: Ceará - CE | AA56: 107 | AB56: Tauá | AC56: -6.0167 | AD56: -40.2667 | AE56: BSh | AF56: 0.1506120088 | AG56: 0.1574927147 | AH56: 0.1637990782 | AI56: 0.1676831658 | AJ56: 0.1772682681 | AK56: 0.1735366477 | AL56: 0.1681721937 | AM56: 0.179363711 | AN56: 0.1822653241 | AO56: 0.1735450721 | AP56: 0.1676645109 | AQ56: 0.1554147088 | AR56: 0.1567267731 | AS56: 0.1719537258 | AT56: 0.1761428544 | AU56: 0.1678923228 | AV56: 0.1691247906 | AW56: 0.06037921086 | AX56: 0.2897180464 | AY56: 0.1686766683 | AZ56: 0.0332591262 | BA56: 19.7176803 | BB56: 2326 | BC56: Hargreaves-Samani | BD56: MJ /m^2 dia | BE56: h | BF56: BARATTO, R. L. Coeficiente de proporcionalidade Krs da equação de Hargreaves e Samani para o Brasil. Curitiba, 2016. 72p. Monografia (Trabalho de Conclusão de Curso - Agronomia) – Setor de Ciências Agrárias, Universidade Federal do Paraná. | BG56: -6.35 | BH56: -37.5
Y57: 3 | Z57: Distrito Federal - DF | AA57: 1 | AB57: Brasília (I) | AC57: -15.5833 | AD57: -47.6167 | AE57: Aw | AF57: 0.1454943732 | AG57: 0.1545200862 | AH57: 0.1567122064 | AI57: 0.1635972373 | AJ57: 0.1666574181 | AK57: 0.1727083794 | AL57: 0.1753457595 | AM57: 0.1741729897 | AN57: 0.158006518 | AO57: 0.1428858971 | AP57: 0.1387260945 | AQ57: 0.1392116395 | AR57: 0.1482313462 | AS57: 0.1655803822 | AT57: 0.1719953104 | AU57: 0.1403515822 | AV57: 0.1543656797 | AW57: 0.02176681268 | AX57: 0.240098365 | AY57: 0.1569531828 | AZ57: 0.03656676967 | BA57: 23.2978835 | BB57: 1905 | BC57: Hargreaves-Samani | BD57: MJ /m^2 dia | BE57: h | BF57: BARATTO, R. L. Coeficiente de proporcionalidade Krs da equação de Hargreaves e Samani para o Brasil. Curitiba, 2016. 72p. Monografia (Trabalho de Conclusão de Curso - Agronomia) – Setor de Ciências Agrárias, Universidade Federal do Paraná. | BG57: -7.483333333 | BH57: -36.28333333
Z58: Distrito Federal - DF | AA58: 2 | AB58: Brasília (II) | AC58: -15.7833 | AD58: -47.9167 | AE58: Aw | AF58: 0.1509398592 | AG58: 0.1610220167 | AH58: 0.1681348709 | AI58: 0.1799101263 | AJ58: 0.1875172041 | AK58: 0.1923721728 | AL58: 0.1922712314 | AM58: 0.1912877851 | AN58: 0.1758648243 | AO58: 0.1505604924 | AP58: 0.1453471898 | AQ58: 0.1483329562 | AR58: 0.1567706623 | AS58: 0.1846976629 | AT58: 0.1895272196 | AU58: 0.1484623436 | AV58: 0.170590456 | AW58: 0.02955729694 | AX58: 0.2735912543 | AY58: 0.1707127903 | AZ58: 0.04059257315 | BA58: 23.77828462 | BB58: 2759 | BC58: Hargreaves-Samani | BD58: MJ /m^2 dia | BE58: h | BF58: BARATTO, R. L. Coeficiente de proporcionalidade Krs da equação de Hargreaves e Samani para o Brasil. Curitiba, 2016. 72p. Monografia (Trabalho de Conclusão de Curso - Agronomia) – Setor de Ciências Agrárias, Universidade Federal do Paraná. | BG58: -7.5 | BH58: -36.28333333
Z59: Distrito Federal - DF | AA59: 3 | AB59: Brasília (III) | AC59: -15.9 | AD59: -48.1167 | AE59: Aw | AF59: 0.142240256 | AG59: 0.1549432741 | AH59: 0.1630362517 | AI59: 0.1722951142 | AJ59: 0.1841095178 | AK59: 0.1923785992 | AL59: 0.1929909251 | AM59: 0.1858400164 | AN59: 0.1644102873 | AO59: 0.1454147108 | AP59: 0.1403092068 | AQ59: 0.1376214963 | AR59: 0.1475189269 | AS59: 0.1802799184 | AT59: 0.1854697379 | AU59: 0.1423407679 | AV59: 0.1627024592 | AW59: 0.03387098375 | AX59: 0.2756743498 | AY59: 0.1655941984 | AZ59: 0.04048434571 | BA59: 24.44792517 | BB59: 2429 | BC59: Hargreaves-Samani | BD59: MJ /m^2 dia | BE59: h | BF59: BARATTO, R. L. Coeficiente de proporcionalidade Krs da equação de Hargreaves e Samani para o Brasil. Curitiba, 2016. 72p. Monografia (Trabalho de Conclusão de Curso - Agronomia) – Setor de Ciências Agrárias, Universidade Federal do Paraná. | BG59: -6.883333333 | BH59: -38.55
Y60: 7 | Z60: Espirito Santo - ES | AA60: 198 | AB60: Alegre | AC60: -20.75 | AD60: -41.4833 | AE60: Cwa | AF60: 0.1574495392 | AG60: 0.1698150884 | AH60: 0.1647193246 | AI60: 0.1779967567 | AJ60: 0.1740963258 | AK60: 0.1782525424 | AL60: 0.1733952815 | AM60: 0.1668475377 | AN60: 0.1559811961 | AO60: 0.1479263408 | AP60: 0.1477178422 | AQ60: 0.1546615939 | AR60: 0.1600782533 | AS60: 0.1766934841 | AT60: 0.1676457876 | AU60: 0.1474001439 | AV60: 0.1616769157 | AW60: 0.03051300813 | AX60: 0.2639979594 | AY60: 0.1639458137 | AZ60: 0.04078154666 | BA60: 24.87501555 | BB60: 2545 | BC60: Hargreaves-Samani | BD60: MJ /m^2 dia | BE60: h | BF60: BARATTO, R. L. Coeficiente de proporcionalidade Krs da equação de Hargreaves e Samani para o Brasil. Curitiba, 2016. 72p. Monografia (Trabalho de Conclusão de Curso - Agronomia) – Setor de Ciências Agrárias, Universidade Federal do Paraná. | BG60: -7.216666667 | BH60: -35.88333333
Z61: Espirito Santo - ES | AA61: 196 | AB61: Alfredo Chaves | AC61: -20.6333 | AD61: -40.7333 | AE61: Cfa | AF61: 0.1500561237 | AG61: 0.1634083556 | AH61: 0.1530273336 | AI61: 0.1600524071 | AJ61: 0.1617268086 | AK61: 0.1647259513 | AL61: 0.1644312764 | AM61: 0.1572619682 | AN61: 0.1476521647 | AO61: 0.1373321982 | AP61: 0.1303742668 | AQ61: 0.1391125171 | AR61: 0.1520549943 | AS61: 0.1617642479 | AT61: 0.1593677202 | AU61: 0.1328396631 | AV61: 0.1491112669 | AW61: 0.0218478743 | AX61: 0.2554050835 | AY61: 0.1523562905 | AZ61: 0.04690152678 | BA61: 30.78410916 | BB61: 2596 | BC61: Hargreaves-Samani | BD61: MJ /m^2 dia | BE61: h | BF61: BARATTO, R. L. Coeficiente de proporcionalidade Krs da equação de Hargreaves e Samani para o Brasil. Curitiba, 2016. 72p. Monografia (Trabalho de Conclusão de Curso - Agronomia) – Setor de Ciências Agrárias, Universidade Federal do Paraná. | BG61: -7.016666667 | BH61: -35.85
Z62: Espirito Santo - ES | AA62: 195 | AB62: Linhares | AC62: -19.35 | AD62: -40.0667 | AE62: Aw | AF62: 0.1728507444 | AG62: 0.1770429117 | AH62: 0.1825825114 | AI62: 0.1887665079 | AJ62: 0.1882695382 | AK62: 0.1882286141 | AL62: 0.183810115 | AM62: 0.1728552842 | AN62: 0.1672725787 | AO62: 0.1515641659 | AP62: 0.1538217661 | AQ62: 0.1615716135 | AR62: 0.1744519022 | AS62: 0.188693109 | AT62: 0.1768922729 | AU62: 0.1557294566 | AV62: 0.171769797 | AW62: 0.03982170175 | AX62: 0.291595087 | AY62: 0.1744257166 | AZ62: 0.04081079662 | BA62: 23.39723603 | BB62: 2500 | BC62: Hargreaves-Samani | BD62: MJ /m^2 dia | BE62: h | BF62: BARATTO, R. L. Coeficiente de proporcionalidade Krs da equação de Hargreaves e Samani para o Brasil. Curitiba, 2016. 72p. Monografia (Trabalho de Conclusão de Curso - Agronomia) – Setor de Ciências Agrárias, Universidade Federal do Paraná. | BG62: -7.116666667 | BH62: -34.86666667
Z63: Espirito Santo - ES | AA63: 200 | AB63: Nova Venécia | AC63: -18.6833 | AD63: -40.3833 | AE63: Aw | AF63: 0.1538704041 | AG63: 0.1600525831 | AH63: 0.1532451267 | AI63: 0.1512483144 | AJ63: 0.1408686688 | AK63: 0.1508560213 | AL63: 0.1564495805 | AM63: 0.1483150446 | AN63: 0.1430733561 | AO63: 0.1342920746 | AP63: 0.1345424185 | AQ63: 0.145652767 | AR63: 0.153659988 | AS63: 0.1484373713 | AT63: 0.150775415 | AU63: 0.1367104915 | AV63: 0.1469983407 | AW63: 0.04397855263 | AX63: 0.2846578461 | AY63: 0.1476518406 | AZ63: 0.03658652934 | BA63: 24.77891857 | BB63: 1931 | BC63: Hargreaves-Samani | BD63: MJ /m^2 dia | BE63: h | BF63: BARATTO, R. L. Coeficiente de proporcionalidade Krs da equação de Hargreaves e Samani para o Brasil. Curitiba, 2016. 72p. Monografia (Trabalho de Conclusão de Curso - Agronomia) – Setor de Ciências Agrárias, Universidade Federal do Paraná. | BG63: -7.3 | BH63: -35.46666667
Z64: Espirito Santo - ES | AA64: 199 | AB64: Presidente Kenedy | AC64: -21.1 | AD64: -41.0333 | AE64: Aw | AF64: 0.1816747245 | AG64: 0.195236636 | AH64: 0.1588956045 | AI64: 0.1754318132 | AJ64: 0.1710516183 | AK64: 0.1763704643 | AL64: 0.1743569583 | AM64: 0.1748978777 | AN64: 0.1615184057 | AO64: 0.150491196 | AP64: 0.154986756 | AQ64: 0.1611935652 | AR64: 0.1757288504 | AS64: 0.1732904962 | AT64: 0.1729707841 | AU64: 0.152593465 | AV64: 0.1686594408 | AW64: 0.03800822579 | AX64: 0.2800046506 | AY64: 0.1699328479 | AZ64: 0.04821330178 | BA64: 28.37197303 | BB64: 1954 | BC64: Hargreaves-Samani | BD64: MJ /m^2 dia | BE64: h | BF64: BARATTO, R. L. Coeficiente de proporcionalidade Krs da equação de Hargreaves e Samani para o Brasil. Curitiba, 2016. 72p. Monografia (Trabalho de Conclusão de Curso - Agronomia) – Setor de Ciências Agrárias, Universidade Federal do Paraná. | BG64: -7.883333333 | BH64: -37.11666667
Z65: Espirito Santo - ES | AA65: 194 | AB65: Santa Teresa | AC65: -19.9833 | AD65: -40.5667 | AE65: Cfa | AF65: 0.1646656044 | AG65: 0.1794075596 | AH65: 0.1697924872 | AI65: 0.1793863869 | AJ65: 0.1897482249 | AK65: 0.1958115871 | AL65: 0.196696742 | AM65: 0.1834057695 | AN65: 0.1633267628 | AO65: 0.1484420032 | AP65: 0.1430630827 | AQ65: 0.156693972 | AR65: 0.1733653802 | AS65: 0.1862388088 | AT65: 0.1849182496 | AU65: 0.1464009057 | AV65: 0.1714323446 | AW65: 0.04652050675 | AX65: 0.2923154117 | AY65: 0.172051948 | AZ65: 0.05145689827 | BA65: 29.90776847 | BB65: 2240 | BC65: Hargreaves-Samani | BD65: MJ /m^2 dia | BE65: h | BF65: BARATTO, R. L. Coeficiente de proporcionalidade Krs da equação de Hargreaves e Samani para o Brasil. Curitiba, 2016. 72p. Monografia (Trabalho de Conclusão de Curso - Agronomia) – Setor de Ciências Agrárias, Universidade Federal do Paraná. | BG65: -7.033333333 | BH65: -37.26666667
Z66: Espirito Santo - ES | AA66: 197 | AB66: São Mateus | AC66: -18.7 | AD66: -39.8333 | AE66: Aw | AF66: 0.1910369961 | AG66: 0.1954057889 | AH66: 0.1885725216 | AI66: 0.1834509441 | AJ66: 0.174066073 | AK66: 0.1746374295 | AL66: 0.1759268785 | AM66: 0.1765522034 | AN66: 0.170521131 | AO66: 0.1669753439 | AP66: 0.1650592804 | AQ66: 0.1786938149 | AR66: 0.1919979077 | AS66: 0.1808699459 | AT66: 0.1760061966 | AU66: 0.1675914304 | AV66: 0.1770676313 | AW66: 0.03355887899 | AX66: 0.2799191304 | AY66: 0.1786440015 | AZ66: 0.042644089 | BA66: 23.87098847 | BB66: 2545 | BC66: Hargreaves-Samani | BD66: MJ /m^2 dia | BE66: h | BF66: BARATTO, R. L. Coeficiente de proporcionalidade Krs da equação de Hargreaves e Samani para o Brasil. Curitiba, 2016. 72p. Monografia (Trabalho de Conclusão de Curso - Agronomia) – Setor de Ciências Agrárias, Universidade Federal do Paraná. | BG66: -6.5 | BH66: -36.33333333
Y67: 20 | Z67: Goiás - GO | AA67: 16 | AB67: Alto Paraíso de Goiás | AC67: -14.1167 | AD67: -47.5167 | AE67: Cwb | AF67: 0.1423025378 | AG67: 0.148003468 | AH67: 0.1521134195 | AI67: 0.1670742086 | AJ67: 0.1772024383 | AK67: 0.1878434726 | AL67: 0.1933305402 | AM67: 0.1890966086 | AN67: 0.1696377593 | AO67: 0.1434626704 | AP67: 0.1297922218 | AQ67: 0.1402072218 | AR67: 0.1465094863 | AS67: 0.1778655537 | AT67: 0.1861583251 | AU67: 0.1397602711 | AV67: 0.1628895958 | AW67: 0.03212884918 | AX67: 0.2401691397 | AY67: 0.1626999575 | AZ67: 0.04253594425 | BA67: 26.14379554 | BB67: 2331 | BC67: Hargreaves-Samani | BD67: MJ /m^2 dia | BE67: h | BF67: BARATTO, R. L. Coeficiente de proporcionalidade Krs da equação de Hargreaves e Samani para o Brasil. Curitiba, 2016. 72p. Monografia (Trabalho de Conclusão de Curso - Agronomia) – Setor de Ciências Agrárias, Universidade Federal do Paraná. | BG67: -6.766666667 | BH67: -37.8
Z68: Goiás - GO | AA68: 9 | AB68: Aragarças | AC68: -15.9 | AD68: -52.2333 | AE68: Aw | AF68: 0.1518383355 | AG68: 0.1627276354 | AH68: 0.1618327251 | AI68: 0.1712744437 | AJ68: 0.1712546145 | AK68: 0.1689706718 | AL68: 0.1600377795 | AM68: 0.1574606127 | AN68: 0.1470082695 | AO68: 0.1474119038 | AP68: 0.1540212404 | AQ68: 0.153153848 | AR68: 0.1594696035 | AS68: 0.1694856477 | AT68: 0.1562599241 | AU68: 0.1509931415 | AV68: 0.1575665798 | AW68: 0.02828262678 | AX68: 0.2326293063 | AY68: 0.1587301703 | AZ68: 0.03387712176 | BA68: 21.34258516 | BB68: 2170 | BC68: Hargreaves-Samani | BD68: MJ /m^2 dia | BE68: h | BF68: BARATTO, R. L. Coeficiente de proporcionalidade Krs da equação de Hargreaves e Samani para o Brasil. Curitiba, 2016. 72p. Monografia (Trabalho de Conclusão de Curso - Agronomia) – Setor de Ciências Agrárias, Universidade Federal do Paraná. | BG68: -7.733333333 | BH68: -37.98333333
Z69: Goiás - GO | AA69: 15 | AB69: Caiapônia | AC69: -16.9667 | AD69: -51.8167 | AE69: Aw | AF69: 0.1553020689 | AG69: 0.1620457548 | AH69: 0.1648800554 | AI69: 0.1751870216 | AJ69: 0.1798022435 | AK69: 0.1814862916 | AL69: 0.1773261754 | AM69: 0.1715472327 | AN69: 0.1565842795 | AO69: 0.1484429136 | AP69: 0.1554004418 | AQ69: 0.1560204056 | AR69: 0.1606833886 | AS69: 0.1779803087 | AT69: 0.1717367194 | AU69: 0.1527125259 | AV69: 0.164826871 | AW69: 0.03986042652 | AX69: 0.246690548 | AY69: 0.1653312386 | AZ69: 0.03457161297 | BA69: 20.91051472 | BB69: 2318 | BC69: Hargreaves-Samani | BD69: MJ /m^2 dia | BE69: h | BF69: BARATTO, R. L. Coeficiente de proporcionalidade Krs da equação de Hargreaves e Samani para o Brasil. Curitiba, 2016. 72p. Monografia (Trabalho de Conclusão de Curso - Agronomia) – Setor de Ciências Agrárias, Universidade Federal do Paraná. | BG69: -7.216666667 | BH69: -37.25
Z70: Goiás - GO | AA70: 21 | AB70: Catalão | AC70: -18.15 | AD70: -47.9167 | AE70: Cwa | AF70: 0.1419922214 | AG70: 0.1635079112 | AH70: 0.1613371562 | AI70: 0.1740722681 | AJ70: 0.1791000912 | AK70: 0.1858181261 | AL70: 0.1860461513 | AM70: 0.179025615 | AN70: 0.1643187666 | AO70: 0.153857187 | AP70: 0.1496504546 | AQ70: 0.1438917188 | AR70: 0.1502052004 | AS70: 0.1773647472 | AT70: 0.1799550956 | AU70: 0.1507954 | AV70: 0.1658676986 | AW70: 0.02638744506 | AX70: 0.2328661191 | AY70: 0.1662264194 | AZ70: 0.03848124963 | BA70: 23.14989985 | BB70: 2076 | BC70: Hargreaves-Samani | BD70: MJ /m^2 dia | BE70: h | BF70: BARATTO, R. L. Coeficiente de proporcionalidade Krs da equação de Hargreaves e Samani para o Brasil. Curitiba, 2016. 72p. Monografia (Trabalho de Conclusão de Curso - Agronomia) – Setor de Ciências Agrárias, Universidade Federal do Paraná. | BG70: -24.88333333 | BH70: -53.38333333
Z71: Goiás - GO | AA71: 23 | AB71: Cristalina | AC71: -16.7833 | AD71: -47.6 | AE71: Cwb | AF71: 0.1598184141 | AG71: 0.1755030354 | AH71: 0.174260357 | AI71: 0.1892972421 | AJ71: 0.1946605175 | AK71: 0.1986724402 | AL71: 0.2009070713 | AM71: 0.1934300629 | AN71: 0.173919748 | AO71: 0.1614468049 | AP71: 0.153718341 | AQ71: 0.159787156 | AR71: 0.1700431118 | AS71: 0.1919325032 | AT71: 0.1922523604 | AU71: 0.15869931 | AV71: 0.1779266794 | AW71: 0.04254917071 | AX71: 0.2529373659 | AY71: 0.1780952966 | AZ71: 0.04001522625 | BA71: 22.46843517 | BB71: 2195 | BC71: Hargreaves-Samani | BD71: MJ /m^2 dia | BE71: h | BF71: BARATTO, R. L. Coeficiente de proporcionalidade Krs da equação de Hargreaves e Samani para o Brasil. Curitiba, 2016. 72p. Monografia (Trabalho de Conclusão de Curso - Agronomia) – Setor de Ciências Agrárias, Universidade Federal do Paraná. | BG71: -24.78333333 | BH71: -50
Z72: Goiás - GO | AA72: 14 | AB72: Goianésia | AC72: -15.2167 | AD72: -48.9833 | AE72: Aw | AF72: 0.1499733738 | AG72: 0.1590347954 | AH72: 0.166648088 | AI72: 0.1768101205 | AJ72: 0.1752149406 | AK72: 0.1763021282 | AL72: 0.1758524319 | AM72: 0.1709499839 | AN72: 0.1522854918 | AO72: 0.1433680141 | AP72: 0.1449642654 | AQ72: 0.1472893303 | AR72: 0.1573067609 | AS72: 0.1759595289 | AT72: 0.1682233234 | AU72: 0.1448741717 | AV72: 0.1614485303 | AW72: 0.0235195121 | AX72: 0.2370205771 | AY72: 0.1613865782 | AZ72: 0.03443239229 | BA72: 21.33535061 | BB72: 2270 | BC72: Hargreaves-Samani | BD72: MJ /m^2 dia | BE72: h | BF72: BARATTO, R. L. Coeficiente de proporcionalidade Krs da equação de Hargreaves e Samani para o Brasil. Curitiba, 2016. 72p. Monografia (Trabalho de Conclusão de Curso - Agronomia) – Setor de Ciências Agrárias, Universidade Federal do Paraná. | BG72: -25.43333333 | BH72: -49.26666667
Z73: Goiás - GO | AA73: 4 | AB73: Goiânia | AC73: -16.6333 | AD73: -49.2167 | AE73: Aw | AF73: 0.1415724845 | AG73: 0.1472563887 | AH73: 0.1520607327 | AI73: 0.1629288914 | AJ73: 0.1582251341 | AK73: 0.1598136686 | AL73: 0.1533197024 | AM73: 0.15248299 | AN73: 0.1458140574 | AO73: 0.1401258419 | AP73: 0.143499699 | AQ73: 0.1412208265 | AR73: 0.1470075274 | AS73: 0.1596243908 | AT73: 0.1521384577 | AU73: 0.14158569 | AV73: 0.1502632138 | AW73: 0.02859602458 | AX73: 0.2312925144 | AY73: 0.1499888876 | AZ73: 0.03039744094 | BA73: 20.26646201 | BB73: 2774 | BC73: Hargreaves-Samani | BD73: MJ /m^2 dia | BE73: h | BF73: BARATTO, R. L. Coeficiente de proporcionalidade Krs da equação de Hargreaves e Samani para o Brasil. Curitiba, 2016. 72p. Monografia (Trabalho de Conclusão de Curso - Agronomia) – Setor de Ciências Agrárias, Universidade Federal do Paraná. | BG73: -25.53333333 | BH73: -54.58333333
Z74: Goiás - GO | AA74: 10 | AB74: Goiás | AC74: -15.9333 | AD74: -50.1333 | AE74: Aw | AF74: 0.1428643098 | AG74: 0.1473128341 | AH74: 0.1599036044 | AI74: 0.1762943058 | AJ74: 0.1780686791 | AK74: 0.1814991156 | AL74: 0.180823749 | AM74: 0.1767009215 | AN74: 0.1609579434 | AO74: 0.1481889532 | AP74: 0.1502312927 | AQ74: 0.1442692387 | AR74: 0.1476694071 | AS74: 0.1761312011 | AT74: 0.1760679609 | AU74: 0.1478041043 | AV74: 0.1618079859 | AW74: 0.05014004698 | AX74: 0.2608480037 | AY74: 0.1626138776 | AZ74: 0.03681210716 | BA74: 22.63774022 | BB74: 2315 | BC74: Hargreaves-Samani | BD74: MJ /m^2 dia | BE74: h | BF74: BARATTO, R. L. Coeficiente de proporcionalidade Krs da equação de Hargreaves e Samani para o Brasil. Curitiba, 2016. 72p. Monografia (Trabalho de Conclusão de Curso - Agronomia) – Setor de Ciências Agrárias, Universidade Federal do Paraná. | BG74: -24.08333333 | BH74: -54.25
Z75: Goiás - GO | AA75: 11 | AB75: Itapaci | AC75: -14.9667 | AD75: -49.5333 | AE75: Aw | AF75: 0.1404680776 | AG75: 0.1488432446 | AH75: 0.1495698419 | AI75: 0.1491958396 | AJ75: 0.1278766761 | AK75: 0.1272488148 | AL75: 0.1362437392 | AM75: 0.13006823 | AN75: 0.1340825741 | AO75: 0.1305217935 | AP75: 0.139683346 | AQ75: 0.139113371 | AR75: 0.1466084383 | AS75: 0.1395081986 | AT75: 0.1311074597 | AU75: 0.1353648899 | AV75: 0.1388162742 | AW75: 0.02782010098 | AX75: 0.2316297303 | AY75: 0.1401344512 | AZ75: 0.03490621215 | BA75: 24.90908684 | BB75: 2196 | BC75: Hargreaves-Samani | BD75: MJ /m^2 dia | BE75: h | BF75: BARATTO, R. L. Coeficiente de proporcionalidade Krs da equação de Hargreaves e Samani para o Brasil. Curitiba, 2016. 72p. Monografia (Trabalho de Conclusão de Curso - Agronomia) – Setor de Ciências Agrárias, Universidade Federal do Paraná. | BG75: -25.38472222 | BH75: -51.49361111
Z76: Goiás - GO | AA76: 22 | AB76: Itumbiara | AC76: -18.4 | AD76: -49.1833 | AE76: Aw | AF76: 0.1482354841 | AG76: 0.1615695659 | AH76: 0.1597087398 | AI76: 0.1698829108 | AJ76: 0.1727504161 | AK76: 0.1694102363 | AL76: 0.1651899389 | AM76: 0.1636967874 | AN76: 0.1498716005 | AO76: 0.1526476091 | AP76: 0.1579038461 | AQ76: 0.1497607857 | AR76: 0.1562782672 | AS76: 0.1697094044 | AT76: 0.1622902901 | AU76: 0.1518825761 | AV76: 0.1588686472 | AW76: 0.02744254305 | AX76: 0.2692945921 | AY76: 0.160174848 | AZ76: 0.03538417541 | BA76: 22.09096862 | BB76: 2206 | BC76: Hargreaves-Samani | BD76: MJ /m^2 dia | BE76: h | BF76: BARATTO, R. L. Coeficiente de proporcionalidade Krs da equação de Hargreaves e Samani para o Brasil. Curitiba, 2016. 72p. Monografia (Trabalho de Conclusão de Curso - Agronomia) – Setor de Ciências Agrárias, Universidade Federal do Paraná. | BG76: -25.46666667 | BH76: -50.63333333
Z77: Goiás - GO | AA77: 12 | AB77: Jataí | AC77: -17.9167 | AD77: -51.7167 | AE77: Aw | AF77: 0.1532956532 | AG77: 0.1461179601 | AH77: 0.1579152604 | AI77: 0.1628221329 | AJ77: 0.161452703 | AK77: 0.1574051182 | AL77: 0.1530905797 | AM77: 0.1502412237 | AN77: 0.142031055 | AO77: 0.1386044458 | AP77: 0.1554320671 | AQ77: 0.1556350103 | AR77: 0.1525045364 | AS77: 0.1608248012 | AT77: 0.1501130912 | AU77: 0.1479495718 | AV77: 0.1524187095 | AW77: 0.02686304682 | AX77: 0.2529097238 | AY77: 0.152997225 | AZ77: 0.03214889932 | BA77: 21.0127336 | BB77: 2348 | BC77: Hargreaves-Samani | BD77: MJ /m^2 dia | BE77: h | BF77: BARATTO, R. L. Coeficiente de proporcionalidade Krs da equação de Hargreaves e Samani para o Brasil. Curitiba, 2016. 72p. Monografia (Trabalho de Conclusão de Curso - Agronomia) – Setor de Ciências Agrárias, Universidade Federal do Paraná. | BG77: -26.48333333 | BH77: -51.98333333
Z78: Goiás - GO | AA78: 8 | AB78: Luziânia | AC78: -16.2667 | AD78: -47.95 | AE78: Aw | AF78: 0.1513767677 | AG78: 0.1661902035 | AH78: 0.1712856372 | AI78: 0.1811492173 | AJ78: 0.1886746804 | AK78: 0.1947243203 | AL78: 0.1958133835 | AM78: 0.19097467 | AN78: 0.1706320459 | AO78: 0.1559941298 | AP78: 0.1497116081 | AQ78: 0.152952906 | AR78: 0.1613123961 | AS78: 0.1853341264 | AT78: 0.189463047 | AU78: 0.1524140323 | AV78: 0.1701971241 | AW78: 0.03992627152 | AX78: 0.2395799902 | AY78: 0.1722354323 | AZ78: 0.03699848647 | BA78: 21.48134445 | BB78: 2608 | BC78: Hargreaves-Samani | BD78: MJ /m^2 dia | BE78: h | BF78: BARATTO, R. L. Coeficiente de proporcionalidade Krs da equação de Hargreaves e Samani para o Brasil. Curitiba, 2016. 72p. Monografia (Trabalho de Conclusão de Curso - Agronomia) – Setor de Ciências Agrárias, Universidade Federal do Paraná. | BG78: -24.28333333 | BH78: -53.83333333
Z79: Goiás - GO | AA79: 19 | AB79: Monte Alegre de Goiás | AC79: -13.2333 | AD79: -46.8833 | AE79: Aw | AF79: 0.1617254685 | AG79: 0.1632581405 | AH79: 0.1678329093 | AI79: 0.1785346525 | AJ79: 0.1788652386 | AK79: 0.1810966668 | AL79: 0.1806846727 | AM79: 0.1815950307 | AN79: 0.1712874113 | AO79: 0.1564326147 | AP79: 0.1492230306 | AQ79: 0.1591866735 | AR79: 0.1625479356 | AS79: 0.1803914774 | AT79: 0.1791984394 | AU79: 0.1548932141 | AV79: 0.1701736042 | AW79: 0.04709710751 | AX79: 0.2447044065 | AY79: 0.1701456446 | AZ79: 0.03353469444 | BA79: 19.70940515 | BB79: 2277 | BC79: Hargreaves-Samani | BD79: MJ /m^2 dia | BE79: h | BF79: BARATTO, R. L. Coeficiente de proporcionalidade Krs da equação de Hargreaves e Samani para o Brasil. Curitiba, 2016. 72p. Monografia (Trabalho de Conclusão de Curso - Agronomia) – Setor de Ciências Agrárias, Universidade Federal do Paraná. | BG79: -25.1 | BH79: -50.16666667
Z80: Goiás - GO | AA80: 5 | AB80: Morrinhos | AC80: -17.7167 | AD80: -49.1 | AE80: Aw | AF80: 0.1501471845 | AG80: 0.1561756628 | AH80: 0.1602678727 | AI80: 0.1672307825 | AJ80: 0.1668145777 | AK80: 0.1685061022 | AL80: 0.1630692448 | AM80: 0.1588788747 | AN80: 0.146259769 | AO80: 0.1435975206 | AP80: 0.1510520119 | AQ80: 0.1531500172 | AR80: 0.1552072971 | AS80: 0.1654624814 | AT80: 0.1587390507 | AU80: 0.1480764922 | AV80: 0.1556661725 | AW80: 0.02628048269 | AX80: 0.2224983677 | AY80: 0.1571133796 | AZ80: 0.03151522688 | BA80: 20.05890711 | BB80: 2305 | BC80: Hargreaves-Samani | BD80: MJ /m^2 dia | BE80: h | BF80: BARATTO, R. L. Coeficiente de proporcionalidade Krs da equação de Hargreaves e Samani para o Brasil. Curitiba, 2016. 72p. Monografia (Trabalho de Conclusão de Curso - Agronomia) – Setor de Ciências Agrárias, Universidade Federal do Paraná. | BG80: -24.21666667 | BH80: -50.53333333
Z81: Goiás - GO | AA81: 6 | AB81: Niquelândia | AC81: -14.45 | AD81: -48.45 | AE81: Aw | AF81: 0.182225984 | AG81: 0.1735926995 | AH81: 0.18665825 | AI81: 0.1978557432 | AJ81: 0.2361519782 | AK81: 0.2502009434 | AL81: 0.2418221229 | AM81: 0.1913381442 | AN81: 0.180480289 | AO81: 0.1641262847 | AP81: 0.1738390249 | AQ81: 0.1816247814 | AR81: 0.173935531 | AS81: 0.2143439874 | AT81: 0.2154649301 | AU81: 0.1733602794 | AV81: 0.1893225737 | AW81: 0.01964045589 | AX81: 0.3709428244 | AY81: 0.1898702511 | AZ81: 0.05246359563 | BA81: 27.63128785 | BB81: 1847 | BC81: Hargreaves-Samani | BD81: MJ /m^2 dia | BE81: h | BF81: BARATTO, R. L. Coeficiente de proporcionalidade Krs da equação de Hargreaves e Samani para o Brasil. Curitiba, 2016. 72p. Monografia (Trabalho de Conclusão de Curso - Agronomia) – Setor de Ciências Agrárias, Universidade Federal do Paraná. | BG81: -8.05 | BH81: -34.91666667
Z82: Goiás - GO | AA82: 18 | AB82: Paraúna | AC82: -16.95 | AD82: -50.4167 | AE82: Aw | AF82: 0.1560895126 | AG82: 0.1620661496 | AH82: 0.1650620761 | AI82: 0.1723624434 | AJ82: 0.1634484183 | AK82: 0.1616215406 | AL82: 0.1629246713 | AM82: 0.1582422853 | AN82: 0.1527093445 | AO82: 0.1464391804 | AP82: 0.1586141658 | AQ82: 0.1540933456 | AR82: 0.1615499 | AS82: 0.1656508882 | AT82: 0.15959948 | AU82: 0.1510651825 | AV82: 0.1594329983 | AW82: 0.03165693692 | AX82: 0.2315769458 | AY82: 0.1598559196 | AZ82: 0.03312250226 | BA82: 20.72022252 | BB82: 1989 | BC82: Hargreaves-Samani | BD82: MJ /m^2 dia | BE82: h | BF82: BARATTO, R. L. Coeficiente de proporcionalidade Krs da equação de Hargreaves e Samani para o Brasil. Curitiba, 2016. 72p. Monografia (Trabalho de Conclusão de Curso - Agronomia) – Setor de Ciências Agrárias, Universidade Federal do Paraná. | BG82: -8.890277778 | BH82: -36.49277778
Z83: Goiás - GO | AA83: 20 | AB83: Pires do Rio | AC83: -17.3 | AD83: -48.2667 | AE83: Aw | AF83: 0.1474394177 | AG83: 0.1629695132 | AH83: 0.1617770888 | AI83: 0.1731374393 | AJ83: 0.1705924737 | AK83: 0.1663089218 | AL83: 0.1633585429 | AM83: 0.1610828516 | AN83: 0.1505065229 | AO83: 0.1441124741 | AP83: 0.1522067474 | AQ83: 0.1500233712 | AR83: 0.1542021967 | AS83: 0.1695730473 | AT83: 0.1606630425 | AU83: 0.1495779597 | AV83: 0.1567054385 | AW83: 0.05081950344 | AX83: 0.2369497952 | AY83: 0.1589668452 | AZ83: 0.03294964953 | BA83: 20.72737211 | BB83: 2207 | BC83: Hargreaves-Samani | BD83: MJ /m^2 dia | BE83: h | BF83: BARATTO, R. L. Coeficiente de proporcionalidade Krs da equação de Hargreaves e Samani para o Brasil. Curitiba, 2016. 72p. Monografia (Trabalho de Conclusão de Curso - Agronomia) – Setor de Ciências Agrárias, Universidade Federal do Paraná. | BG83: 9.136111111 | BH83: -40.30861111
Z84: Goiás - GO | AA84: 13 | AB84: Posse | AC84: -14.0833 | AD84: -46.35 | AE84: Aw | AF84: 0.1637790409 | AG84: 0.1705263546 | AH84: 0.1793626177 | AI84: 0.1906625856 | AJ84: 0.1980391898 | AK84: 0.2086845766 | AL84: 0.2140195047 | AM84: 0.2087007121 | AN84: 0.1880502864 | AO84: 0.1623123608 | AP84: 0.1501615777 | AQ84: 0.1643102077 | AR84: 0.1686937614 | AS84: 0.1975093377 | AT84: 0.2067529402 | AU84: 0.1601373881 | AV84: 0.1824211624 | AW84: 0.04723656145 | AX84: 0.2511169567 | AY84: 0.1831668701 | AZ84: 0.04091545496 | BA84: 22.3378032 | BB84: 2157 | BC84: Hargreaves-Samani | BD84: MJ /m^2 dia | BE84: h | BF84: BARATTO, R. L. Coeficiente de proporcionalidade Krs da equação de Hargreaves e Samani para o Brasil. Curitiba, 2016. 72p. Monografia (Trabalho de Conclusão de Curso - Agronomia) – Setor de Ciências Agrárias, Universidade Federal do Paraná. | BG84: -9.383333333 | BH84: -40.5
Z85: Goiás - GO | AA85: 17 | AB85: Rio Verde | AC85: -17.7833 | AD85: -50.95 | AE85: Aw | AF85: 0.1534326945 | AG85: 0.151077753 | AH85: 0.1561663588 | AI85: 0.1719618683 | AJ85: 0.1739743198 | AK85: 0.1729371376 | AL85: 0.1737278178 | AM85: 0.1684992746 | AN85: 0.1491393495 | AO85: 0.1415477765 | AP85: 0.1510734256 | AQ85: 0.1553179211 | AR85: 0.1548282809 | AS85: 0.1717637651 | AT85: 0.1666945074 | AU85: 0.1474988377 | AV85: 0.1598398179 | AW85: 0.03256651255 | AX85: 0.2332262579 | AY85: 0.1602401405 | AZ85: 0.03462274196 | BA85: 21.60678457 | BB85: 2366 | BC85: Hargreaves-Samani | BD85: MJ /m^2 dia | BE85: h | BF85: BARATTO, R. L. Coeficiente de proporcionalidade Krs da equação de Hargreaves e Samani para o Brasil. Curitiba, 2016. 72p. Monografia (Trabalho de Conclusão de Curso - Agronomia) – Setor de Ciências Agrárias, Universidade Federal do Paraná. | BG85: -7.833333333 | BH85: -35.76666667
Z86: Goiás - GO | AA86: 7 | AB86: São Simão | AC86: -18.9667 | AD86: -50.6167 | AE86: Aw | AF86: 0.1489491362 | AG86: 0.158618036 | AH86: 0.161713204 | AI86: 0.1671077819 | AJ86: 0.1641497911 | AK86: 0.1643726856 | AL86: 0.1638037592 | AM86: 0.1559440404 | AN86: 0.143594892 | AO86: 0.1459921589 | AP86: 0.1566248296 | AQ86: 0.1527731035 | AR86: 0.1541515605 | AS86: 0.1649860278 | AT86: 0.1573552699 | AU86: 0.1502023399 | AV86: 0.1566412448 | AW86: 0.03043710555 | AX86: 0.2304084619 | AY86: 0.1570993259 | AZ86: 0.03373215158 | BA86: 21.47186272 | BB86: 2578 | BC86: Hargreaves-Samani | BD86: MJ /m^2 dia | BE86: h | BF86: BARATTO, R. L. Coeficiente de proporcionalidade Krs da equação de Hargreaves e Samani para o Brasil. Curitiba, 2016. 72p. Monografia (Trabalho de Conclusão de Curso - Agronomia) – Setor de Ciências Agrárias, Universidade Federal do Paraná. | BG86: -6.766666667 | BH86: -43.03333333
Y87: 9 | Z87: Maranhão - MA | AA87: 118 | AB87: Alto Parnaíba | AC87: -9.1 | AD87: -45.9167 | AE87: Aw | AF87: 0.1443866488 | AG87: 0.1390971453 | AH87: 0.1475090292 | AI87: 0.1589435991 | AJ87: 0.1613641617 | AK87: 0.1583906591 | AL87: 0.1500696283 | AM87: 0.1419658677 | AN87: 0.1322655636 | AO87: 0.1375625285 | AP87: 0.1365364232 | AQ87: 0.1432460602 | AR87: 0.1440456342 | AS87: 0.160158445 | AT87: 0.1439032971 | AU87: 0.1393851211 | AV87: 0.146070062 | AW87: 0.04130608847 | AX87: 0.2171999322 | AY87: 0.1462590034 | AZ87: 0.0336873643 | BA87: 23.03267731 | BB87: 1918 | BC87: Hargreaves-Samani | BD87: MJ /m^2 dia | BE87: h | BF87: BARATTO, R. L. Coeficiente de proporcionalidade Krs da equação de Hargreaves e Samani para o Brasil. Curitiba, 2016. 72p. Monografia (Trabalho de Conclusão de Curso - Agronomia) – Setor de Ciências Agrárias, Universidade Federal do Paraná. | BG87: -7.85 | BH87: -41.9
Z88: Maranhão - MA | AA88: 112 | AB88: Balsas | AC88: -7.45 | AD88: -46.0167 | AE88: Aw | AF88: 0.14762213 | AG88: 0.1539477108 | AH88: 0.1616134862 | AI88: 0.1742021185 | AJ88: 0.1805502073 | AK88: 0.1777286215 | AL88: 0.173055414 | AM88: 0.1655576593 | AN88: 0.1594773999 | AO88: 0.153313434 | AP88: 0.1404068352 | AQ88: 0.1492740132 | AR88: 0.1542422405 | AS88: 0.1764999605 | AT88: 0.1676072299 | AU88: 0.1507747691 | AV88: 0.1611929675 | AW88: 0.03080965932 | AX88: 0.2362050543 | AY88: 0.1629649059 | AZ88: 0.03514405863 | BA88: 21.56541523 | BB88: 2017 | BC88: Hargreaves-Samani | BD88: MJ /m^2 dia | BE88: h | BF88: BARATTO, R. L. Coeficiente de proporcionalidade Krs da equação de Hargreaves e Samani para o Brasil. Curitiba, 2016. 72p. Monografia (Trabalho de Conclusão de Curso - Agronomia) – Setor de Ciências Agrárias, Universidade Federal do Paraná. | BG88: -3.083333333 | BH88: -41.76666667
Z89: Maranhão - MA | AA89: 116 | AB89: Barra do Corda | AC89: -5.5 | AD89: -45.2333 | AE89: Aw | AF89: 0.1528964928 | AG89: 0.151677888 | AH89: 0.1618992301 | AI89: 0.1696969782 | AJ89: 0.1738684425 | AK89: 0.1774748651 | AL89: 0.1709036029 | AM89: 0.1624384726 | AN89: 0.1534012164 | AO89: 0.1472694719 | AP89: 0.1516722969 | AQ89: 0.1453060865 | AR89: 0.1522014404 | AS89: 0.1727974807 | AT89: 0.1658078128 | AU89: 0.1491387791 | AV89: 0.1604434253 | AW89: 0.02563409861 | AX89: 0.2415380159 | AY89: 0.1604650433 | AZ89: 0.03196429214 | BA89: 19.91978533 | BB89: 2001 | BC89: Hargreaves-Samani | BD89: MJ /m^2 dia | BE89: h | BF89: BARATTO, R. L. Coeficiente de proporcionalidade Krs da equação de Hargreaves e Samani para o Brasil. Curitiba, 2016. 72p. Monografia (Trabalho de Conclusão de Curso - Agronomia) – Setor de Ciências Agrárias, Universidade Federal do Paraná. | BG89: -22.91666667 | BH89: -43.16666667
Z90: Maranhão - MA | AA90: 113 | AB90: Carolina | AC90: -7.3333 | AD90: -47.45 | AE90: Aw | AF90: 0.1513233759 | AG90: 0.1560561106 | AH90: 0.1638005891 | AI90: 0.1677746618 | AJ90: 0.1737548654 | AK90: 0.1782156973 | AL90: 0.1725340758 | AM90: 0.1664016772 | AN90: 0.1606466811 | AO90: 0.1517865626 | AP90: 0.148749021 | AQ90: 0.1554511693 | AR90: 0.1559269218 | AS90: 0.1715739098 | AT90: 0.1673253376 | AU90: 0.1538135491 | AV90: 0.1618790375 | AW90: 0.02075998663 | AX90: 0.2321042708 | AY90: 0.1622288843 | AZ90: 0.03657627263 | BA90: 22.54609146 | BB90: 1835 | BC90: Hargreaves-Samani | BD90: MJ /m^2 dia | BE90: h | BF90: BARATTO, R. L. Coeficiente de proporcionalidade Krs da equação de Hargreaves e Samani para o Brasil. Curitiba, 2016. 72p. Monografia (Trabalho de Conclusão de Curso - Agronomia) – Setor de Ciências Agrárias, Universidade Federal do Paraná. | BG90: -21.31305556 | BH90: 41.30666667
Z91: Maranhão - MA | AA91: 114 | AB91: Chapadinha | AC91: -3.7333 | AD91: -43.35 | AE91: Aw | AF91: 0.1622599657 | AG91: 0.1621977923 | AH91: 0.1706950852 | AI91: 0.1689110996 | AJ91: 0.1783048519 | AK91: 0.1906012449 | AL91: 0.1902823727 | AM91: 0.1792729649 | AN91: 0.17002637 | AO91: 0.1616398409 | AP91: 0.162614369 | AQ91: 0.1597944186 | AR91: 0.1653641416 | AS91: 0.177600676 | AT91: 0.1815947048 | AU91: 0.1616525811 | AV91: 0.1706144914 | AW91: 0.03005048265 | AX91: 0.2466626767 | AY91: 0.1713051161 | AZ91: 0.03219587904 | BA91: 18.79446439 | BB91: 1914 | BC91: Hargreaves-Samani | BD91: MJ /m^2 dia | BE91: h | BF91: BARATTO, R. L. Coeficiente de proporcionalidade Krs da equação de Hargreaves e Samani para o Brasil. Curitiba, 2016. 72p. Monografia (Trabalho de Conclusão de Curso - Agronomia) – Setor de Ciências Agrárias, Universidade Federal do Paraná. | BG91: -22.75361111 | BH91: -43.67305556
Z92: Maranhão - MA | AA92: 117 | AB92: Colinas | AC92: -6.0333 | AD92: -44.2333 | AE92: Aw | AF92: 0.137022388 | AG92: 0.1385573942 | AH92: 0.1468945295 | AI92: 0.158217688 | AJ92: 0.1626707889 | AK92: 0.173170317 | AL92: 0.1649664 | AM92: 0.1535743223 | AN92: 0.1482573274 | AO92: 0.1490127666 | AP92: 0.1455864241 | AQ92: 0.1373348547 | AR92: 0.1380871763 | AS92: 0.1642558298 | AT92: 0.1574540239 | AU92: 0.1445527393 | AV92: 0.1511909558 | AW92: 0.01413498815 | AX92: 0.2456932031 | AY92: 0.1515165569 | AZ92: 0.0323092157 | BA92: 21.32388457 | BB92: 1921 | BC92: Hargreaves-Samani | BD92: MJ /m^2 dia | BE92: h | BF92: BARATTO, R. L. Coeficiente de proporcionalidade Krs da equação de Hargreaves e Samani para o Brasil. Curitiba, 2016. 72p. Monografia (Trabalho de Conclusão de Curso - Agronomia) – Setor de Ciências Agrárias, Universidade Federal do Paraná. | BG92: -5.62 | BH92: -37.82
Z93: Maranhão - MA | AA93: 119 | AB93: Estreito | AC93: -6.65 | AD93: -47.4167 | AE93: Aw | AF93: 0.1552601401 | AG93: 0.1416145836 | AH93: 0.1557336598 | AI93: 0.1585664286 | AJ93: 0.1625533952 | AK93: 0.1593540272 | AL93: 0.1477020391 | AM93: 0.1398359963 | AN93: 0.133661622 | AO93: 0.1319349021 | AP93: 0.1332973481 | AQ93: 0.1418394836 | AR93: 0.1506354731 | AS93: 0.1605007908 | AT93: 0.1430187966 | AU93: 0.1341470399 | AV93: 0.1471346249 | AW93: 0.02025910562 | AX93: 0.2534800122 | AY93: 0.147647982 | AZ93: 0.03492196011 | BA93: 23.65217568 | BB93: 2039 | BC93: Hargreaves-Samani | BD93: MJ /m^2 dia | BE93: h | BF93: BARATTO, R. L. Coeficiente de proporcionalidade Krs da equação de Hargreaves e Samani para o Brasil. Curitiba, 2016. 72p. Monografia (Trabalho de Conclusão de Curso - Agronomia) – Setor de Ciências Agrárias, Universidade Federal do Paraná. | BG93: -6.47 | BH93: -37.68
Z94: Maranhão - MA | AA94: 120 | AB94: Imperatriz | AC94: -5.55 | AD94: -47.45 | AE94: Aw | AF94: 0.1439716142 | AG94: 0.1414566131 | AH94: 0.1551735211 | AI94: 0.158666304 | AJ94: 0.1630163127 | AK94: 0.1643049054 | AL94: 0.1503200712 | AM94: 0.1387942515 | AN94: 0.1344487474 | AO94: 0.13626049 | AP94: 0.1396153468 | AQ94: 0.1423940359 | AR94: 0.1471908957 | AS94: 0.1618723361 | AT94: 0.1441654545 | AU94: 0.1381356605 | AV94: 0.1475745862 | AW94: 0.02485307459 | AX94: 0.2235144292 | AY94: 0.1478035162 | AZ94: 0.03216417507 | BA94: 21.76144107 | BB94: 2108 | BC94: Hargreaves-Samani | BD94: MJ /m^2 dia | BE94: h | BF94: BARATTO, R. L. Coeficiente de proporcionalidade Krs da equação de Hargreaves e Samani para o Brasil. Curitiba, 2016. 72p. Monografia (Trabalho de Conclusão de Curso - Agronomia) – Setor de Ciências Agrárias, Universidade Federal do Paraná. | BG94: -6.416666667 | BH94: -36.78333333
Z95: Maranhão - MA | AA95: 115 | AB95: Turiaçu | AC95: -1.65 | AD95: -45.3667 | AE95: Aw | AF95: 0.1716488695 | AG95: 0.1621489063 | AH95: 0.1636903649 | AI95: 0.162242653 | AJ95: 0.1663808541 | AK95: 0.1804313607 | AL95: 0.1852765429 | AM95: 0.2006420364 | AN95: 0.1963797906 | AO95: 0.1963031136 | AP95: 0.1922942698 | AQ95: 0.1842015145 | AR95: 0.1702346552 | AS95: 0.1673997771 | AT95: 0.1923625132 | AU95: 0.1919998627 | AV95: 0.1816284986 | AW95: 0.04456178794 | AX95: 0.3068039878 | AY95: 0.1814648445 | AZ95: 0.04257537614 | BA95: 23.46205198 | BB95: 1962 | BC95: Hargreaves-Samani | BD95: MJ /m^2 dia | BE95: h | BF95: BARATTO, R. L. Coeficiente de proporcionalidade Krs da equação de Hargreaves e Samani para o Brasil. Curitiba, 2016. 72p. Monografia (Trabalho de Conclusão de Curso - Agronomia) – Setor de Ciências Agrárias, Universidade Federal do Paraná. | BG95: -5.12 | BH95: -36.77
Y96: 24 | Z96: Mato Grosso - MT | AA96: 49 | AB96: Água Boa | AC96: -14 | AD96: -52.2 | AE96: Aw | AF96: 0.1535207864 | AG96: 0.1572149788 | AH96: 0.1654556203 | AI96: 0.1715699245 | AJ96: 0.1732217084 | AK96: 0.1741534634 | AL96: 0.1679584572 | AM96: 0.1620983609 | AN96: 0.1458942068 | AO96: 0.1466754922 | AP96: 0.1499543493 | AQ96: 0.1534894546 | AR96: 0.156525977 | AS96: 0.1720935808 | AT96: 0.1611736738 | AU96: 0.1512518675 | AV96: 0.1589662975 | AW96: 0.04161373773 | AX96: 0.239795588 | AY96: 0.1600436411 | AZ96: 0.03338096266 | BA96: 20.85741266 | BB96: 2244 | BC96: Hargreaves-Samani | BD96: MJ /m^2 dia | BE96: h | BF96: BARATTO, R. L. Coeficiente de proporcionalidade Krs da equação de Hargreaves e Samani para o Brasil. Curitiba, 2016. 72p. Monografia (Trabalho de Conclusão de Curso - Agronomia) – Setor de Ciências Agrárias, Universidade Federal do Paraná. | BG96: -5.116666667 | BH96: -36.63333333
Z97: Mato Grosso - MT | AA97: 65 | AB97: Alto Taquari | AC97: -17.8 | AD97: -53.2833 | AE97: Aw | AF97: 0.1453519797 | AG97: 0.1494157691 | AH97: 0.1544885648 | AI97: 0.1718550829 | AJ97: 0.1788655491 | AK97: 0.1758857665 | AL97: 0.1741366243 | AM97: 0.1690220321 | AN97: 0.1500391427 | AO97: 0.1438301725 | AP97: 0.1631309095 | AQ97: 0.1555969128 | AR97: 0.150628942 | AS97: 0.1734429214 | AT97: 0.1675534749 | AU97: 0.1513094327 | AV97: 0.1610509258 | AW97: 0.01962168868 | AX97: 0.2434912122 | AY97: 0.161363432 | AZ97: 0.03641442979 | BA97: 22.56671747 | BB97: 2123 | BC97: Hargreaves-Samani | BD97: MJ /m^2 dia | BE97: h | BF97: BARATTO, R. L. Coeficiente de proporcionalidade Krs da equação de Hargreaves e Samani para o Brasil. Curitiba, 2016. 72p. Monografia (Trabalho de Conclusão de Curso - Agronomia) – Setor de Ciências Agrárias, Universidade Federal do Paraná. | BG97: -5.92 | BH97: -32.5
Z98: Mato Grosso - MT | AA98: 50 | AB98: Apiácas | AC98: -9.55 | AD98: -57.3833 | AE98: Am | AF98: 0.1407060274 | AG98: 0.1501379405 | AH98: 0.1581275571 | AI98: 0.1641713301 | AJ98: 0.1701410859 | AK98: 0.1682261963 | AL98: 0.1472608937 | AM98: 0.1295735224 | AN98: 0.1319138617 | AO98: 0.1461792203 | AP98: 0.1446555854 | AQ98: 0.141907927 | AR98: 0.1493229355 | AS98: 0.167797586 | AT98: 0.1392437136 | AU98: 0.1455819787 | AV98: 0.1507790635 | AW98: 0.0301278248 | AX98: 0.2206734556 | AY98: 0.1500012544 | AZ98: 0.03459884812 | BA98: 23.06570586 | BB98: 2164 | BC98: Hargreaves-Samani | BD98: MJ /m^2 dia | BE98: h | BF98: BARATTO, R. L. Coeficiente de proporcionalidade Krs da equação de Hargreaves e Samani para o Brasil. Curitiba, 2016. 72p. Monografia (Trabalho de Conclusão de Curso - Agronomia) – Setor de Ciências Agrárias, Universidade Federal do Paraná. | BG98: -29.78305556 | BH98: -55.78305556
Z99: Mato Grosso - MT | AA99: 61 | AB99: Brasnorte | AC99: -12.5167 | AD99: -58.2167 | AE99: Am | AF99: 0.1641920518 | AG99: 0.1563765578 | AH99: 0.1688828956 | AI99: 0.1775900686 | AJ99: 0.1862494303 | AK99: 0.1867394427 | AL99: 0.1819321089 | AM99: 0.1684772602 | AN99: 0.1521381803 | AO99: 0.1567490073 | AP99: 0.1612977318 | AQ99: 0.1666525499 | AR99: 0.1635397016 | AS99: 0.1819805926 | AT99: 0.1739496192 | AU99: 0.1605869347 | AV99: 0.1713309095 | AW99: 0.04298049745 | AX99: 0.2494789945 | AY99: 0.1711305906 | AZ99: 0.03687743586 | BA99: 21.54929503 | BB99: 1832 | BC99: Hargreaves-Samani | BD99: MJ /m^2 dia | BE99: h | BF99: BARATTO, R. L. Coeficiente de proporcionalidade Krs da equação de Hargreaves e Samani para o Brasil. Curitiba, 2016. 72p. Monografia (Trabalho de Conclusão de Curso - Agronomia) – Setor de Ciências Agrárias, Universidade Federal do Paraná. | BG99: -31.33333333 | BH99: -54.1
Z100: Mato Grosso - MT | AA100: 46 | AB100: Campo Novo do Parecis | AC100: -13.7833 | AD100: -57.8333 | AE100: Aw | AF100: 0.1687040495 | AG100: 0.1648366747 | AH100: 0.1618830631 | AI100: 0.1684930146 | AJ100: 0.1548671732 | AK100: 0.1411122534 | AL100: 0.1365697127 | AM100: 0.1316569751 | AN100: 0.1231683086 | AO100: 0.1363991582 | AP100: 0.1589736435 | AQ100: 0.1661303508 | AR100: 0.165592143 | AS100: 0.1572887462 | AT100: 0.1316958262 | AU100: 0.1521811651 | AV100: 0.1566401125 | AW100: 0.04534590394 | AX100: 0.5447815104 | AY100: 0.151141574 | AZ100: 0.03952019486 | BA100: 26.14779893 | BB100: 2011 | BC100: Hargreaves-Samani | BD100: MJ /m^2 dia | BE100: h | BF100: BARATTO, R. L. Coeficiente de proporcionalidade Krs da equação de Hargreaves e Samani para o Brasil. Curitiba, 2016. 72p. Monografia (Trabalho de Conclusão de Curso - Agronomia) – Setor de Ciências Agrárias, Universidade Federal do Paraná. | BG100: -29.96 | BH100: -51.07277778
Z101: Mato Grosso - MT | AA101: 51 | AB101: Campo Verde | AC101: -15.5167 | AD101: -55.1333 | AE101: Aw | AF101: 0.1589152677 | AG101: 0.1549680571 | AH101: 0.1622642076 | AI101: 0.1812235544 | AJ101: 0.1880935835 | AK101: 0.1861921815 | AL101: 0.1813777137 | AM101: 0.1676027577 | AN101: 0.1507442362 | AO101: 0.1472123384 | AP101: 0.1627964497 | AQ101: 0.1606923592 | AR101: 0.1586189582 | AS101: 0.1828228546 | AT101: 0.1711355035 | AU101: 0.1554561792 | AV101: 0.1655852264 | AW101: 0.02339022252 | AX101: 0.2527302699 | AY101: 0.167135084 | AZ101: 0.03836845094 | BA101: 22.95655108 | BB101: 2521 | BC101: Hargreaves-Samani | BD101: MJ /m^2 dia | BE101: h | BF101: BARATTO, R. L. Coeficiente de proporcionalidade Krs da equação de Hargreaves e Samani para o Brasil. Curitiba, 2016. 72p. Monografia (Trabalho de Conclusão de Curso - Agronomia) – Setor de Ciências Agrárias, Universidade Federal do Paraná. | BG101: -28.63916667 | BH101: -53.60944444
Z102: Mato Grosso - MT | AA102: 60 | AB102: Carlinda | AC102: -10 | AD102: -55.7833 | AE102: Am | AF102: 0.1545830458 | AG102: 0.1542129411 | AH102: 0.1709816691 | AI102: 0.1748040515 | AJ102: 0.1807769684 | AK102: 0.1827400107 | AL102: 0.1727565598 | AM102: 0.1585656088 | AN102: 0.1510565504 | AO102: 0.1597149336 | AP102: 0.1563305484 | AQ102: 0.1576603278 | AR102: 0.1580450506 | AS102: 0.1800342494 | AT102: 0.1629546546 | AU102: 0.1568562382 | AV102: 0.1648341635 | AW102: 0.03158679947 | AX102: 0.2269863619 | AY102: 0.1650586402 | AZ102: 0.03349654197 | BA102: 20.29372225 | BB102: 1948 | BC102: Hargreaves-Samani | BD102: MJ /m^2 dia | BE102: h | BF102: BARATTO, R. L. Coeficiente de proporcionalidade Krs da equação de Hargreaves e Samani para o Brasil. Curitiba, 2016. 72p. Monografia (Trabalho de Conclusão de Curso - Agronomia) – Setor de Ciências Agrárias, Universidade Federal do Paraná. | BG102: -32.01666667 | BH102: -52.25
Z103: Mato Grosso - MT | AA103: 52 | AB103: Comodoro | AC103: -13.7 | AD103: -59.75 | AE103: Am | AF103: 0.143980492 | AG103: 0.1414977899 | AH103: 0.1432663004 | AI103: 0.1574876219 | AJ103: 0.1625578538 | AK103: 0.1626057933 | AL103: 0.1560039457 | AM103: 0.1479739544 | AN103: 0.1367080017 | AO103: 0.1411016889 | AP103: 0.1448286272 | AQ103: 0.1483556379 | AR103: 0.1426387029 | AS103: 0.159437231 | AT103: 0.1483617372 | AU103: 0.143828592 | AV103: 0.1480853879 | AW103: 0.04507951195 | AX103: 0.2428109251 | AY103: 0.1491080542 | AZ103: 0.0336611704 | BA103: 22.57501821 | BB103: 2547 | BC103: Hargreaves-Samani | BD103: MJ /m^2 dia | BE103: h | BF103: BARATTO, R. L. Coeficiente de proporcionalidade Krs da equação de Hargreaves e Samani para o Brasil. Curitiba, 2016. 72p. Monografia (Trabalho de Conclusão de Curso - Agronomia) – Setor de Ciências Agrárias, Universidade Federal do Paraná. | BG103: -30.07361111 | BH103: -51.72833333
Z104: Mato Grosso - MT | AA104: 56 | AB104: Confresa | AC104: -10.65 | AD104: -51.5667 | AE104: Aw | AF104: 0.1456823779 | AG104: 0.1502951207 | AH104: 0.1509247568 | AI104: 0.1472959248 | AJ104: 0.1601396879 | AK104: 0.1680746262 | AL104: 0.156998624 | AM104: 0.1466012741 | AN104: 0.1317816098 | AO104: 0.1413363142 | AP104: 0.1509699863 | AQ104: 0.1503502951 | AR104: 0.1502766439 | AS104: 0.1601266616 | AT104: 0.1479531375 | AU104: 0.1458904973 | AV104: 0.1492824176 | AW104: 0.03952564366 | AX104: 0.2208614954 | AY104: 0.149768814 | AZ104: 0.03469550451 | BA104: 23.16604077 | BB104: 1871 | BC104: Hargreaves-Samani | BD104: MJ /m^2 dia | BE104: h | BF104: BARATTO, R. L. Coeficiente de proporcionalidade Krs da equação de Hargreaves e Samani para o Brasil. Curitiba, 2016. 72p. Monografia (Trabalho de Conclusão de Curso - Agronomia) – Setor de Ciências Agrárias, Universidade Federal do Paraná. | BG104: -30.54305556 | BH104: -52.52222222
Z105: Mato Grosso - MT | AA105: 57 | AB105: Cotriguaçu | AC105: -9.9 | AD105: -58.5667 | AE105: Am | AF105: 0.1312232598 | AG105: 0.1367437003 | AH105: 0.1389279232 | AI105: 0.1521955587 | AJ105: 0.1639941447 | AK105: 0.161635962 | AL105: 0.1513005858 | AM105: 0.1410227433 | AN105: 0.1346834714 | AO105: 0.1426146096 | AP105: 0.1408896707 | AQ105: 0.13986218 | AR105: 0.1382838186 | AS105: 0.1578668338 | AT105: 0.1443520035 | AU105: 0.1410835027 | AV105: 0.1447722059 | AW105: 0.0358678063 | AX105: 0.2206343539 | AY105: 0.145125568 | AZ105: 0.03206106366 | BA105: 22.09194707 | BB105: 2316 | BC105: Hargreaves-Samani | BD105: MJ /m^2 dia | BE105: h | BF105: BARATTO, R. L. Coeficiente de proporcionalidade Krs da equação de Hargreaves e Samani para o Brasil. Curitiba, 2016. 72p. Monografia (Trabalho de Conclusão de Curso - Agronomia) – Setor de Ciências Agrárias, Universidade Federal do Paraná. | BG105: -30.55 | BH105: -51.53333333
Z106: Mato Grosso - MT | AA106: 63 | AB106: Gaúcha do Norte | AC106: -13.1833 | AD106: -53.25 | AE106: Am | AF106: 0.1562363356 | AG106: 0.1601609058 | AH106: 0.1599138352 | AI106: 0.1720526916 | AJ106: 0.1719195567 | AK106: 0.1711687845 | AL106: 0.1657112356 | AM106: 0.1545232726 | AN106: 0.1405930011 | AO106: 0.1490276338 | AP106: 0.1475158466 | AQ106: 0.1537099195 | AR106: 0.1571693203 | AS106: 0.1705713612 | AT106: 0.1544647284 | AU106: 0.1492603919 | AV106: 0.1565259398 | AW106: 0.02562998907 | AX106: 0.241492575 | AY106: 0.1579331172 | AZ106: 0.03383133129 | BA106: 21.42130282 | BB106: 1867 | BC106: Hargreaves-Samani | BD106: MJ /m^2 dia | BE106: h | BF106: BARATTO, R. L. Coeficiente de proporcionalidade Krs da equação de Hargreaves e Samani para o Brasil. Curitiba, 2016. 72p. Monografia (Trabalho de Conclusão de Curso - Agronomia) – Setor de Ciências Agrárias, Universidade Federal do Paraná. | BG106: -27.62944444 | BH106: -52.27583333
Z107: Mato Grosso - MT | AA107: 47 | AB107: Guarantã do Norte | AC107: -9.95 | AD107: -54.8833 | AE107: Am | AF107: 0.1279097599 | AG107: 0.1328717248 | AH107: 0.1381734518 | AI107: 0.1332852503 | AJ107: 0.124868859 | AK107: 0.1168594052 | AL107: 0.1028838812 | AM107: 0.0936258115 | AN107: 0.1104942765 | AO107: 0.128803904 | AP107: 0.1268912782 | AQ107: 0.1277005664 | AR107: 0.1349182692 | AS107: 0.1292594518 | AT107: 0.1045746344 | AU107: 0.1266899313 | AV107: 0.122580619 | AW107: 0.01677837402 | AX107: 0.2018864579 | AY107: 0.1214548156 | AZ107: 0.04012578748 | BA107: 33.03762579 | BB107: 2147 | BC107: Hargreaves-Samani | BD107: MJ /m^2 dia | BE107: h | BF107: BARATTO, R. L. Coeficiente de proporcionalidade Krs da equação de Hargreaves e Samani para o Brasil. Curitiba, 2016. 72p. Monografia (Trabalho de Conclusão de Curso - Agronomia) – Setor de Ciências Agrárias, Universidade Federal do Paraná. | BG107: -29.24166667 | BH107: -51.43888889
Z108: Mato Grosso - MT | AA108: 53 | AB108: Juara | AC108: -11.2667 | AD108: -57.5167 | AE108: Am | AF108: 0.1492275921 | AG108: 0.1465919662 | AH108: 0.1511550741 | AI108: 0.1559767259 | AJ108: 0.1630871939 | AK108: 0.1614698323 | AL108: 0.1535748428 | AM108: 0.1406771737 | AN108: 0.1332551664 | AO108: 0.1480920655 | AP108: 0.1540507413 | AQ108: 0.1498144149 | AR108: 0.1508496867 | AS108: 0.1584215643 | AT108: 0.1467924715 | AU108: 0.1507234642 | AV108: 0.1514585612 | AW108: 0.0427813299 | AX108: 0.2511768945 | AY108: 0.1511803742 | AZ108: 0.03125829894 | BA108: 20.67616191 | BB108: 2304 | BC108: Hargreaves-Samani | BD108: MJ /m^2 dia | BE108: h | BF108: BARATTO, R. L. Coeficiente de proporcionalidade Krs da equação de Hargreaves e Samani para o Brasil. Curitiba, 2016. 72p. Monografia (Trabalho de Conclusão de Curso - Agronomia) – Setor de Ciências Agrárias, Universidade Federal do Paraná. | BG108: -29.23333333 | BH108: -51.43333333
Z109: Mato Grosso - MT | AA109: 58 | AB109: Juína | AC109: -11.3667 | AD109: -58.7167 | AE109: Am | AF109: 0.1463053501 | AG109: 0.1494116996 | AH109: 0.1573878025 | AI109: 0.1652711281 | AJ109: 0.1624045985 | AK109: 0.1509970841 | AL109: 0.1356385475 | AM109: 0.1369662789 | AN109: 0.1447670647 | AO109: 0.1536174921 | AP109: 0.1543426231 | AQ109: 0.1517096511 | AR109: 0.1512708632 | AS109: 0.1609559139 | AT109: 0.1387701678 | AU109: 0.152128659 | AV109: 0.1499774125 | AW109: 0.02530772012 | AX109: 0.2322061376 | AY109: 0.1515436597 | AZ109: 0.03379107876 | BA109: 22.29791654 | BB109: 2190 | BC109: Hargreaves-Samani | BD109: MJ /m^2 dia | BE109: h | BF109: BARATTO, R. L. Coeficiente de proporcionalidade Krs da equação de Hargreaves e Samani para o Brasil. Curitiba, 2016. 72p. Monografia (Trabalho de Conclusão de Curso - Agronomia) – Setor de Ciências Agrárias, Universidade Federal do Paraná. | BG109: -28.38805556 | BH109: -53.91388889
Z110: Mato Grosso - MT | AA110: 62 | AB110: Nova Maringá | AC110: -13.0333 | AD110: -57.0833 | AE110: Aw | AF110: 0.1428597834 | AG110: 0.1452212793 | AH110: 0.1530384683 | AI110: 0.1600254483 | AJ110: 0.1533424944 | AK110: 0.1481162922 | AL110: 0.133654954 | AM110: 0.1269124766 | AN110: 0.1398209349 | AO110: 0.1429703652 | AP110: 0.1435728038 | AQ110: 0.1464763767 | AR110: 0.144714129 | AS110: 0.1540085512 | AT110: 0.1324060249 | AU110: 0.1436772988 | AV110: 0.1447645953 | AW110: 0.02005403593 | AX110: 0.2677435228 | AY110: 0.1455905496 | AZ110: 0.03381706438 | BA110: 23.22751337 | BB110: 1951 | BC110: Hargreaves-Samani | BD110: MJ /m^2 dia | BE110: h | BF110: BARATTO, R. L. Coeficiente de proporcionalidade Krs da equação de Hargreaves e Samani para o Brasil. Curitiba, 2016. 72p. Monografia (Trabalho de Conclusão de Curso - Agronomia) – Setor de Ciências Agrárias, Universidade Federal do Paraná. | BG110: -28.38333333 | BH110: -53.9
Z111: Mato Grosso - MT | AA111: 67 | AB111: Pontes e Lacerda | AC111: -15.25 | AD111: -59.3333 | AE111: Aw | AF111: 0.1507820411 | AG111: 0.1472285467 | AH111: 0.1551917963 | AI111: 0.1583621305 | AJ111: 0.159387157 | AK111: 0.1594931093 | AL111: 0.1518318903 | AM111: 0.1410654864 | AN111: 0.138322843 | AO111: 0.1427017211 | AP111: 0.1484776308 | AQ111: 0.1488639086 | AR111: 0.1497062359 | AS111: 0.1612775258 | AT111: 0.145268891 | AU111: 0.1462058465 | AV111: 0.1492855502 | AW111: 0.02057980051 | AX111: 0.2486670306 | AY111: 0.1502892252 | AZ111: 0.03581663609 | BA111: 23.83180567 | BB111: 1940 | BC111: Hargreaves-Samani | BD111: MJ /m^2 dia | BE111: h | BF111: BARATTO, R. L. Coeficiente de proporcionalidade Krs da equação de Hargreaves e Samani para o Brasil. Curitiba, 2016. 72p. Monografia (Trabalho de Conclusão de Curso - Agronomia) – Setor de Ciências Agrárias, Universidade Federal do Paraná. | BG111: -29.22388889 | BH111: -53.67916667
Z112: Mato Grosso - MT | AA112: 54 | AB112: Querência | AC112: -12.6167 | AD112: -52.2167 | AE112: Aw | AF112: 0.1528964333 | AG112: 0.1491292569 | AH112: 0.1516776993 | AI112: 0.1619789871 | AJ112: 0.1662469674 | AK112: 0.1631281391 | AL112: 0.1567632639 | AM112: 0.1459786945 | AN112: 0.1351731019 | AO112: 0.1391035232 | AP112: 0.1443403152 | AQ112: 0.1493753022 | AR112: 0.1502833209 | AS112: 0.1627759571 | AT112: 0.1484004445 | AU112: 0.1434853742 | AV112: 0.1507228113 | AW112: 0.03793723779 | AX112: 0.2401344544 | AY112: 0.1513989053 | AZ112: 0.03288870659 | BA112: 21.72321293 | BB112: 2137 | BC112: Hargreaves-Samani | BD112: MJ /m^2 dia | BE112: h | BF112: BARATTO, R. L. Coeficiente de proporcionalidade Krs da equação de Hargreaves e Samani para o Brasil. Curitiba, 2016. 72p. Monografia (Trabalho de Conclusão de Curso - Agronomia) – Setor de Ciências Agrárias, Universidade Federal do Paraná. | BG112: -29.21666667 | BH112: -53.66666667
Z113: Mato Grosso - MT | AA113: 48 | AB113: Rondonópolis | AC113: -16.45 | AD113: -54.5667 | AE113: Aw | AF113: 0.1450467309 | AG113: 0.154968445 | AH113: 0.15764996 | AI113: 0.1729952033 | AJ113: 0.1676814466 | AK113: 0.163528327 | AL113: 0.1536189835 | AM113: 0.1465606055 | AN113: 0.1316556677 | AO113: 0.1345267675 | AP113: 0.1478452328 | AQ113: 0.15071021 | AR113: 0.1552868065 | AS113: 0.1697486715 | AT113: 0.1433285219 | AU113: 0.1413579149 | AV113: 0.152060545 | AW113: 0.01119760795 | AX113: 0.2661018057 | AY113: 0.1508065031 | AZ113: 0.03648968587 | BA113: 24.19636097 | BB113: 2458 | BC113: Hargreaves-Samani | BD113: MJ /m^2 dia | BE113: h | BF113: BARATTO, R. L. Coeficiente de proporcionalidade Krs da equação de Hargreaves e Samani para o Brasil. Curitiba, 2016. 72p. Monografia (Trabalho de Conclusão de Curso - Agronomia) – Setor de Ciências Agrárias, Universidade Federal do Paraná. | BG113: -29.68027778 | BH113: -50.23222222
Z114: Mato Grosso - MT | AA114: 66 | AB114: Salto do Céu | AC114: -15.1333 | AD114: -58.1 | AE114: Aw | AF114: 0.1391313764 | AG114: 0.1449117067 | AH114: 0.1489432871 | AI114: 0.1575255802 | AJ114: 0.1558994115 | AK114: 0.1565743689 | AL114: 0.1471373647 | AM114: 0.141158421 | AN114: 0.1321190657 | AO114: 0.1342623973 | AP114: 0.1409447863 | AQ114: 0.1368454489 | AR114: 0.1442735278 | AS114: 0.1557682219 | AT114: 0.1442899832 | AU114: 0.1368922062 | AV114: 0.1450772199 | AW114: 0.0219410331 | AX114: 0.2462799986 | AY114: 0.145278239 | AZ114: 0.03747318647 | BA114: 25.79408088 | BB114: 2074 | BC114: Hargreaves-Samani | BD114: MJ /m^2 dia | BE114: h | BF114: BARATTO, R. L. Coeficiente de proporcionalidade Krs da equação de Hargreaves e Samani para o Brasil. Curitiba, 2016. 72p. Monografia (Trabalho de Conclusão de Curso - Agronomia) – Setor de Ciências Agrárias, Universidade Federal do Paraná. | BG114: -29.66666667 | BH114: -50.21666667
Z115: Mato Grosso - MT | AA115: 64 | AB115: Santo Antônio do Leste | AC115: -14.9167 | AD115: -53.8833 | AE115: Aw | AF115: 0.1630797963 | AG115: 0.1661969218 | AH115: 0.1692449953 | AI115: 0.1862177974 | AJ115: 0.1776412106 | AK115: 0.1791474805 | AL115: 0.1723002898 | AM115: 0.1638533707 | AN115: 0.1502898647 | AO115: 0.1489954739 | AP115: 0.1535492142 | AQ115: 0.1595518212 | AR115: 0.1659657372 | AS115: 0.1813456885 | AT115: 0.1642022888 | AU115: 0.1528077822 | AV115: 0.1646929715 | AW115: 0.03373136327 | AX115: 0.2697840957 | AY115: 0.1653603668 | AZ115: 0.03534988559 | BA115: 21.37748378 | BB115: 1993 | BC115: Hargreaves-Samani | BD115: MJ /m^2 dia | BE115: h | BF115: BARATTO, R. L. Coeficiente de proporcionalidade Krs da equação de Hargreaves e Samani para o Brasil. Curitiba, 2016. 72p. Monografia (Trabalho de Conclusão de Curso - Agronomia) – Setor de Ciências Agrárias, Universidade Federal do Paraná. | BG115: -30.38805556 | BH115: -56.44805556
Z116: Mato Grosso - MT | AA116: 55 | AB116: Sinop | AC116: -11.9667 | AD116: -55.55 | AE116: Am | AF116: 0.1512769426 | AG116: 0.1498260268 | AH116: 0.1584258352 | AI116: 0.1682148639 | AJ116: 0.1716985909 | AK116: 0.170060262 | AL116: 0.1612321831 | AM116: 0.1536362897 | AN116: 0.1357601229 | AO116: 0.1511483814 | AP116: 0.1534331551 | AQ116: 0.1585178359 | AR116: 0.1575941477 | AS116: 0.1695312991 | AT116: 0.1511272798 | AU116: 0.1529997554 | AV116: 0.15653301 | AW116: 0.03391633606 | AX116: 0.240272391 | AY116: 0.1566688696 | AZ116: 0.03427796573 | BA116: 21.87924494 | BB116: 2056 | BC116: Hargreaves-Samani | BD116: MJ /m^2 dia | BE116: h | BF116: BARATTO, R. L. Coeficiente de proporcionalidade Krs da equação de Hargreaves e Samani para o Brasil. Curitiba, 2016. 72p. Monografia (Trabalho de Conclusão de Curso - Agronomia) – Setor de Ciências Agrárias, Universidade Federal do Paraná. | BG116: -32.02888889 | BH116: -52.26027778
Z117: Mato Grosso - MT | AA117: 45 | AB117: Sorriso | AC117: -12.55 | AD117: -55.7167 | AE117: Aw | AF117: 0.155501057 | AG117: 0.1618993387 | AH117: 0.1653652623 | AI117: 0.1751391265 | AJ117: 0.1766171796 | AK117: 0.1740686862 | AL117: 0.1662823112 | AM117: 0.1606509327 | AN117: 0.1401771023 | AO117: 0.1466685605 | AP117: 0.1546179137 | AQ117: 0.1540166782 | AR117: 0.1605276488 | AS117: 0.1754557902 | AT117: 0.154689097 | AU117: 0.1507085006 | AV117: 0.1584349151 | AW117: 0.02832353429 | AX117: 0.4840584932 | AY117: 0.159764152 | AZ117: 0.0365674896 | BA117: 22.88841967 | BB117: 2234 | BC117: Hargreaves-Samani | BD117: MJ /m^2 dia | BE117: h | BF117: BARATTO, R. L. Coeficiente de proporcionalidade Krs da equação de Hargreaves e Samani para o Brasil. Curitiba, 2016. 72p. Monografia (Trabalho de Conclusão de Curso - Agronomia) – Setor de Ciências Agrárias, Universidade Federal do Paraná. | BG117: -29.7 | BH117: -53.7
Z118: Mato Grosso - MT | AA118: 44 | AB118: Tangará da Serra | AC118: -14.65 | AD118: -57.4167 | AE118: Aw | AF118: 0.1686174911 | AG118: 0.164268526 | AH118: 0.1799008083 | AI118: 0.1958587088 | AJ118: 0.1992254688 | AK118: 0.1958937072 | AL118: 0.1926845087 | AM118: 0.1838696302 | AN118: 0.1543060287 | AO118: 0.1550118931 | AP118: 0.1667602986 | AQ118: 0.1591487449 | AR118: 0.1724938439 | AS118: 0.196095959 | AT118: 0.1751321242 | AU118: 0.1609039589 | AV118: 0.1765712724 | AW118: 0.0466956514 | AX118: 0.2968597154 | AY118: 0.17539441 | AZ118: 0.04242522694 | BA118: 24.18847154 | BB118: 2243 | BC118: Hargreaves-Samani | BD118: MJ /m^2 dia | BE118: h | BF118: BARATTO, R. L. Coeficiente de proporcionalidade Krs da equação de Hargreaves e Samani para o Brasil. Curitiba, 2016. 72p. Monografia (Trabalho de Conclusão de Curso - Agronomia) – Setor de Ciências Agrárias, Universidade Federal do Paraná. | BG118: -27.86388889 | BH118: -54.43305556
X119: MS | Z119: Mato Grosso - MT | AA119: 59 | AB119: Vila Bela da Santíssima Trindade | AC119: -15.05 | AD119: -59.8667 | AE119: Am | AF119: 0.1514811883 | AG119: 0.1527503299 | AH119: 0.1610806996 | AI119: 0.1633566392 | AJ119: 0.1581780889 | AK119: 0.1641111395 | AL119: 0.1540020196 | AM119: 0.1456534756 | AN119: 0.1364121692 | AO119: 0.1433075295 | AP119: 0.1503566589 | AQ119: 0.1515565158 | AR119: 0.1551185535 | AS119: 0.1622628973 | AT119: 0.1476371658 | AU119: 0.1469285077 | AV119: 0.1518698846 | AW119: 0.01803473579 | AX119: 0.2516821394 | AY119: 0.1528253134 | AZ119: 0.03636379136 | BA119: 23.79435092 | BB119: 2245 | BC119: Hargreaves-Samani | BD119: MJ /m^2 dia | BE119: h | BF119: BARATTO, R. L. Coeficiente de proporcionalidade Krs da equação de Hargreaves e Samani para o Brasil. Curitiba, 2016. 72p. Monografia (Trabalho de Conclusão de Curso - Agronomia) – Setor de Ciências Agrárias, Universidade Federal do Paraná. | BG119: -27.865 | BH119: -54.78305556
Y120: 20 | Z120: Mato Grosso do Sul - MS | AA120: 41 | AB120: Amambai | AC120: -23 | AD120: -55.3167 | AE120: Cfa | AF120: 0.1572162903 | AG120: 0.1406338064 | AH120: 0.1546412442 | AI120: 0.1520073651 | AJ120: 0.1481390929 | AK120: 0.1430600208 | AL120: 0.1360712069 | AM120: 0.14117787 | AN120: 0.1312882198 | AO120: 0.1401230387 | AP120: 0.1506841942 | AQ120: 0.1528585746 | AR120: 0.1493689685 | AS120: 0.1480450184 | AT120: 0.1366422481 | AU120: 0.1468363292 | AV120: 0.1443821639 | AW120: 0.01317963628 | AX120: 0.2424480007 | AY120: 0.1450921689 | AZ120: 0.04207525596 | BA120: 28.99898478 | BB120: 1909 | BC120: Hargreaves-Samani | BD120: MJ /m^2 dia | BE120: h | BF120: BARATTO, R. L. Coeficiente de proporcionalidade Krs da equação de Hargreaves e Samani para o Brasil. Curitiba, 2016. 72p. Monografia (Trabalho de Conclusão de Curso - Agronomia) – Setor de Ciências Agrárias, Universidade Federal do Paraná. | BG120: -28.65 | BH120: -56
Z121: Mato Grosso do Sul - MS | AA121: 29 | AB121: Aquidauana | AC121: -20.4667 | AD121: -55.7833 | AE121: Aw | AF121: 0.1534273175 | AG121: 0.1618331559 | AH121: 0.1683149912 | AI121: 0.1657942385 | AJ121: 0.1583711789 | AK121: 0.1562475901 | AL121: 0.1513464843 | AM121: 0.149888893 | AN121: 0.1389096747 | AO121: 0.1466019874 | AP121: 0.1607707516 | AQ121: 0.1587602526 | AR121: 0.1592874697 | AS121: 0.1622848685 | AT121: 0.1479006933 | AU121: 0.1545257125 | AV121: 0.1567255634 | AW121: 0.01450515975 | AX121: 0.2550138473 | AY121: 0.156205664 | AZ121: 0.0389131275 | BA121: 24.91147023 | BB121: 2546 | BC121: Hargreaves-Samani | BD121: MJ /m^2 dia | BE121: h | BF121: BARATTO, R. L. Coeficiente de proporcionalidade Krs da equação de Hargreaves e Samani para o Brasil. Curitiba, 2016. 72p. Monografia (Trabalho de Conclusão de Curso - Agronomia) – Setor de Ciências Agrárias, Universidade Federal do Paraná. | BG121: -30.4575 | BH121: -54.31694444
Z122: Mato Grosso do Sul - MS | AA122: 32 | AB122: Bodoquena | AC122: -20.3833 | AD122: -56.4167 | AE122: Am | AF122: 0.156068991 | AG122: 0.1638378674 | AH122: 0.1689925235 | AI122: 0.1708491094 | AJ122: 0.1584170613 | AK122: 0.1595522427 | AL122: 0.1553378564 | AM122: 0.1499290359 | AN122: 0.1383340671 | AO122: 0.1463742135 | AP122: 0.158590874 | AQ122: 0.1596471518 | AR122: 0.1608783445 | AS122: 0.1644979962 | AT122: 0.1497344867 | AU122: 0.153046035 | AV122: 0.1566959471 | AW122: 0.01319427415 | AX122: 0.2459699868 | AY122: 0.157130727 | AZ122: 0.03887603782 | BA122: 24.7412066 | BB122: 2444 | BC122: Hargreaves-Samani | BD122: MJ /m^2 dia | BE122: h | BF122: BARATTO, R. L. Coeficiente de proporcionalidade Krs da equação de Hargreaves e Samani para o Brasil. Curitiba, 2016. 72p. Monografia (Trabalho de Conclusão de Curso - Agronomia) – Setor de Ciências Agrárias, Universidade Federal do Paraná. | BG122: -29.05388889 | BH122: -52.43333333
Z123: Mato Grosso do Sul - MS | AA123: 24 | AB123: Campo Grande | AC123: -20.45 | AD123: -54.6 | AE123: Aw | AF123: 0.1557660589 | AG123: 0.1638379011 | AH123: 0.1637349806 | AI123: 0.1695643752 | AJ123: 0.1655080595 | AK123: 0.1666595865 | AL123: 0.1655982826 | AM123: 0.1609398793 | AN123: 0.1453438784 | AO123: 0.150178163 | AP123: 0.1597798116 | AQ123: 0.1554588914 | AR123: 0.1557335032 | AS123: 0.1681594506 | AT123: 0.159074553 | AU123: 0.1536604711 | AV123: 0.159789176 | AW123: 0.0141115568 | AX123: 0.2361772959 | AY123: 0.1599594273 | AZ123: 0.04029907197 | BA123: 25.19330848 | BB123: 2587 | BC123: Hargreaves-Samani | BD123: MJ /m^2 dia | BE123: h | BF123: BARATTO, R. L. Coeficiente de proporcionalidade Krs da equação de Hargreaves e Samani para o Brasil. Curitiba, 2016. 72p. Monografia (Trabalho de Conclusão de Curso - Agronomia) – Setor de Ciências Agrárias, Universidade Federal do Paraná. | BG123: -29.80416667 | BH123: -51.825
Z124: Mato Grosso do Sul - MS | AA124: 38 | AB124: Cassilândia | AC124: -19.1167 | AD124: -51.7167 | AE124: Am | AF124: 0.1556031957 | AG124: 0.1660287667 | AH124: 0.1706203825 | AI124: 0.1641169156 | AJ124: 0.1621324596 | AK124: 0.1585488398 | AL124: 0.1570653262 | AM124: 0.1517447487 | AN124: 0.1441524262 | AO124: 0.1483395248 | AP124: 0.1603763771 | AQ124: 0.159326875 | AR124: 0.1611227887 | AS124: 0.1633588071 | AT124: 0.1524739417 | AU124: 0.1540886727 | AV124: 0.1573673741 | AW124: 0.02900191913 | AX124: 0.2241406499 | AY124: 0.1577281142 | AZ124: 0.03268012743 | BA124: 20.71927861 | BB124: 1928 | BC124: Hargreaves-Samani | BD124: MJ /m^2 dia | BE124: h | BF124: BARATTO, R. L. Coeficiente de proporcionalidade Krs da equação de Hargreaves e Samani para o Brasil. Curitiba, 2016. 72p. Monografia (Trabalho de Conclusão de Curso - Agronomia) – Setor de Ciências Agrárias, Universidade Federal do Paraná. | BG124: -29.8 | BH124: -51.81666667
Z125: Mato Grosso do Sul - MS | AA125: 35 | AB125: Chapadão do Sul | AC125: -18.8 | AD125: -52.6 | AE125: Am | AF125: 0.1688723168 | AG125: 0.1652666858 | AH125: 0.1718259025 | AI125: 0.1875800789 | AJ125: 0.1879366928 | AK125: 0.1847090571 | AL125: 0.1814828947 | AM125: 0.1754194842 | AN125: 0.1551197966 | AO125: 0.1496584425 | AP125: 0.1619014428 | AQ125: 0.1696768664 | AR125: 0.1663824941 | AS125: 0.1864617661 | AT125: 0.1745014979 | AU125: 0.1575534003 | AV125: 0.1697922516 | AW125: 0.02676077503 | AX125: 0.2712621585 | AY125: 0.1721418387 | AZ125: 0.0394976794 | BA125: 22.94484577 | BB125: 2475 | BC125: Hargreaves-Samani | BD125: MJ /m^2 dia | BE125: h | BF125: BARATTO, R. L. Coeficiente de proporcionalidade Krs da equação de Hargreaves e Samani para o Brasil. Curitiba, 2016. 72p. Monografia (Trabalho de Conclusão de Curso - Agronomia) – Setor de Ciências Agrárias, Universidade Federal do Paraná. | BG125: -29.75638889 | BH125: -57.08666667
Z126: Mato Grosso do Sul - MS | AA126: 28 | AB126: Corumbá | AC126: -18.9667 | AD126: -56.65 | AE126: Aw | AF126: 0.1601488512 | AG126: 0.1642402813 | AH126: 0.1655558441 | AI126: 0.1605715384 | AJ126: 0.151436753 | AK126: 0.1556172603 | AL126: 0.1479851777 | AM126: 0.1446143165 | AN126: 0.1338437002 | AO126: 0.1444174069 | AP126: 0.1525893921 | AQ126: 0.1559159475 | AR126: 0.1584859993 | AS126: 0.1569345867 | AT126: 0.1431287264 | AU126: 0.1488681732 | AV126: 0.1516454862 | AW126: 0.01316223387 | AX126: 0.255863943 | AY126: 0.1523129209 | AZ126: 0.03778181136 | BA126: 24.80538823 | BB126: 2249 | BC126: Hargreaves-Samani | BD126: MJ /m^2 dia | BE126: h | BF126: BARATTO, R. L. Coeficiente de proporcionalidade Krs da equação de Hargreaves e Samani para o Brasil. Curitiba, 2016. 72p. Monografia (Trabalho de Conclusão de Curso - Agronomia) – Setor de Ciências Agrárias, Universidade Federal do Paraná. | BG126: -29.75 | BH126: -57.08333333
Z127: Mato Grosso do Sul - MS | AA127: 34 | AB127: Corumbá | AC127: -18.9833 | AD127: -57.6333 | AE127: Aw | AF127: 0.1649552513 | AG127: 0.1669876113 | AH127: 0.1866221333 | AI127: 0.1993501234 | AJ127: 0.1883499679 | AK127: 0.1950805105 | AL127: 0.1939061457 | AM127: 0.1851625732 | AN127: 0.1606666211 | AO127: 0.1586658247 | AP127: 0.1646214551 | AQ127: 0.1642505559 | AR127: 0.1666867269 | AS127: 0.1961664395 | AT127: 0.1819495578 | AU127: 0.1629073733 | AV127: 0.175053872 | AW127: 0.01673498854 | AX127: 0.3095066411 | AY127: 0.1770249021 | AZ127: 0.04651933112 | BA127: 26.27841088 | BB127: 2333 | BC127: Hargreaves-Samani | BD127: MJ /m^2 dia | BE127: h | BF127: BARATTO, R. L. Coeficiente de proporcionalidade Krs da equação de Hargreaves e Samani para o Brasil. Curitiba, 2016. 72p. Monografia (Trabalho de Conclusão de Curso - Agronomia) – Setor de Ciências Agrárias, Universidade Federal do Paraná. | BG127: -28.5025 | BH127: -50.93666667
Z128: Mato Grosso do Sul - MS | AA128: 30 | AB128: Coxim | AC128: -18.5 | AD128: -54.7333 | AE128: Aw | AF128: 0.1522681794 | AG128: 0.15960654 | AH128: 0.1622651169 | AI128: 0.1561310822 | AJ128: 0.1583657782 | AK128: 0.1556458261 | AL128: 0.1483398683 | AM128: 0.1450183746 | AN128: 0.1360354871 | AO128: 0.1394563097 | AP128: 0.1520009752 | AQ128: 0.1569769069 | AR128: 0.1571563554 | AS128: 0.1579871928 | AT128: 0.1453438216 | AU128: 0.1463120843 | AV128: 0.1509316177 | AW128: 0.0168328722 | AX128: 0.282678652 | AY128: 0.152198782 | AZ128: 0.03660514064 | BA128: 24.05087621 | BB128: 2590 | BC128: Hargreaves-Samani | BD128: MJ /m^2 dia | BE128: h | BF128: BARATTO, R. L. Coeficiente de proporcionalidade Krs da equação de Hargreaves e Samani para o Brasil. Curitiba, 2016. 72p. Monografia (Trabalho de Conclusão de Curso - Agronomia) – Setor de Ciências Agrárias, Universidade Federal do Paraná. | BG128: -28.93722222 | BH128: -51.55305556
Z129: Mato Grosso do Sul - MS | AA129: 31 | AB129: Dourados | AC129: -22.1833 | AD129: -54.9 | AE129: Cfa | AF129: 0.1616832642 | AG129: 0.1578008877 | AH129: 0.1634163061 | AI129: 0.1728529635 | AJ129: 0.1742992004 | AK129: 0.1649219824 | AL129: 0.1573637312 | AM129: 0.1567994412 | AN129: 0.1493021028 | AO129: 0.1469768377 | AP129: 0.1593635872 | AQ129: 0.1603175182 | AR129: 0.1556462674 | AS129: 0.173260227 | AT129: 0.1545960652 | AU129: 0.156198367 | AV129: 0.1593652087 | AW129: 0.01748360242 | AX129: 0.2545472246 | AY129: 0.160257276 | AZ129: 0.04277374712 | BA129: 26.69067401 | BB129: 2401 | BC129: Hargreaves-Samani | BD129: MJ /m^2 dia | BE129: h | BF129: BARATTO, R. L. Coeficiente de proporcionalidade Krs da equação de Hargreaves e Samani para o Brasil. Curitiba, 2016. 72p. Monografia (Trabalho de Conclusão de Curso - Agronomia) – Setor de Ciências Agrárias, Universidade Federal do Paraná. | BG129: -28.93333333 | BH129: -51.55
Z130: Mato Grosso do Sul - MS | AA130: 27 | AB130: Ivinhema | AC130: -22.3 | AD130: -53.8167 | AE130: Aw | AF130: 0.1580128621 | AG130: 0.1630661302 | AH130: 0.1737085139 | AI130: 0.1757697677 | AJ130: 0.1755173955 | AK130: 0.1688820344 | AL130: 0.1672823016 | AM130: 0.1642840762 | AN130: 0.1541376727 | AO130: 0.1554043131 | AP130: 0.1637344819 | AQ130: 0.1625287687 | AR130: 0.1595655047 | AS130: 0.1750120108 | AT130: 0.1622530308 | AU130: 0.1607108963 | AV130: 0.1645748645 | AW130: 0.01272240725 | AX130: 0.2798125098 | AY130: 0.1650215502 | AZ130: 0.04198637344 | BA130: 25.44296389 | BB130: 2538 | BC130: Hargreaves-Samani | BD130: MJ /m^2 dia | BE130: h | BF130: BARATTO, R. L. Coeficiente de proporcionalidade Krs da equação de Hargreaves e Samani para o Brasil. Curitiba, 2016. 72p. Monografia (Trabalho de Conclusão de Curso - Agronomia) – Setor de Ciências Agrárias, Universidade Federal do Paraná.
Z131: Mato Grosso do Sul - MS | AA131: 40 | AB131: Juti | AC131: -22.85 | AD131: -54.6 | AE131: Cfa | AF131: 0.1553169494 | AG131: 0.1516752578 | AH131: 0.1560201001 | AI131: 0.1540710863 | AJ131: 0.1562705705 | AK131: 0.1486573675 | AL131: 0.1451965551 | AM131: 0.151331582 | AN131: 0.1415616661 | AO131: 0.1433997153 | AP131: 0.1559542513 | AQ131: 0.1556654639 | AR131: 0.1515362938 | AS131: 0.1537430276 | AT131: 0.1463365306 | AU131: 0.1505117431 | AV131: 0.1507793236 | AW131: 0.01255666841 | AX131: 0.2571317579 | AY131: 0.151552477 | AZ131: 0.04278250603 | BA131: 28.2294997 | BB131: 2010 | BC131: Hargreaves-Samani | BD131: MJ /m^2 dia | BE131: h | BF131: BARATTO, R. L. Coeficiente de proporcionalidade Krs da equação de Hargreaves e Samani para o Brasil. Curitiba, 2016. 72p. Monografia (Trabalho de Conclusão de Curso - Agronomia) – Setor de Ciências Agrárias, Universidade Federal do Paraná.
Z132: Mato Grosso do Sul - MS | AA132: 36 | AB132: Maracaju | AC132: -21.6 | AD132: -55.1667 | AE132: Am | AF132: 0.1509758773 | AG132: 0.1449774154 | AH132: 0.1526248229 | AI132: 0.1542003229 | AJ132: 0.1524485404 | AK132: 0.1436575203 | AL132: 0.1403701975 | AM132: 0.139716943 | AN132: 0.1335836565 | AO132: 0.1326979799 | AP132: 0.1474532863 | AQ132: 0.1540831222 | AR132: 0.1479705809 | AS132: 0.1526670042 | AT132: 0.1379103621 | AU132: 0.14850971 | AV132: 0.1476497673 | AW132: 0.01240062399 | AX132: 0.2466679232 | AY132: 0.145781834 | AZ132: 0.03877287915 | BA132: 26.59650937 | BB132: 2365 | BC132: Hargreaves-Samani | BD132: MJ /m^2 dia | BE132: h | BF132: BARATTO, R. L. Coeficiente de proporcionalidade Krs da equação de Hargreaves e Samani para o Brasil. Curitiba, 2016. 72p. Monografia (Trabalho de Conclusão de Curso - Agronomia) – Setor de Ciências Agrárias, Universidade Federal do Paraná. | BG132: -26.9 | BH132: -49.21666667
Z133: Mato Grosso do Sul - MS | AA133: 25 | AB133: Ponta Porã | AC133: -22.5333 | AD133: -55.5333 | AE133: Cfa | AF133: 0.1528943895 | AG133: 0.1520999783 | AH133: 0.1609791812 | AI133: 0.1604267047 | AJ133: 0.1629707898 | AK133: 0.1595192005 | AL133: 0.152685592 | AM133: 0.1513443324 | AN133: 0.140422784 | AO133: 0.1417868212 | AP133: 0.1553223903 | AQ133: 0.156281549 | AR133: 0.1507778991 | AS133: 0.1625473011 | AT133: 0.1498541985 | AU133: 0.1493810821 | AV133: 0.1536191169 | AW133: 0.01321147365 | AX133: 0.2654574683 | AY133: 0.1537724994 | AZ133: 0.04612051446 | BA133: 29.99269351 | BB133: 2695 | BC133: Hargreaves-Samani | BD133: MJ /m^2 dia | BE133: h | BF133: BARATTO, R. L. Coeficiente de proporcionalidade Krs da equação de Hargreaves e Samani para o Brasil. Curitiba, 2016. 72p. Monografia (Trabalho de Conclusão de Curso - Agronomia) – Setor de Ciências Agrárias, Universidade Federal do Paraná. | BG133: -22.3 | BH133: -47.38333333
Z134: Mato Grosso do Sul - MS | AA134: 33 | AB134: Porto Murtinho | AC134: -21.7 | AD134: -57.55 | AE134: Af | AF134: 0.1639057954 | AG134: 0.1711148566 | AH134: 0.1722086099 | AI134: 0.1634501956 | AJ134: 0.1563909781 | AK134: 0.1521331298 | AL134: 0.1432327295 | AM134: 0.1451841814 | AN134: 0.1341126744 | AO134: 0.1498189988 | AP134: 0.1595174673 | AQ134: 0.16298178 | AR134: 0.1645301197 | AS134: 0.1605193866 | AT134: 0.1420877617 | AU134: 0.1549483293 | AV134: 0.1561047151 | AW134: 0.01414629569 | AX134: 0.2643750373 | AY134: 0.1558522798 | AZ134: 0.04465699103 | BA134: 28.65340891 | BB134: 2466 | BC134: Hargreaves-Samani | BD134: MJ /m^2 dia | BE134: h | BF134: BARATTO, R. L. Coeficiente de proporcionalidade Krs da equação de Hargreaves e Samani para o Brasil. Curitiba, 2016. 72p. Monografia (Trabalho de Conclusão de Curso - Agronomia) – Setor de Ciências Agrárias, Universidade Federal do Paraná. | BG134: -22.85 | BH134: -48.43333333
Z135: Mato Grosso do Sul - MS | AA135: 39 | AB135: Rio Brilhante | AC135: -21.7667 | AD135: -54.5167 | AE135: Am | AF135: 0.1520543893 | AG135: 0.1481193635 | AH135: 0.151388262 | AI135: 0.1528277008 | AJ135: 0.147759436 | AK135: 0.1418390587 | AL135: 0.1361259081 | AM135: 0.1390296766 | AN135: 0.1297162464 | AO135: 0.1374880224 | AP135: 0.1489770034 | AQ135: 0.1519282228 | AR135: 0.1503217466 | AS135: 0.1498213195 | AT135: 0.1355118475 | AU135: 0.1441225628 | AV135: 0.1439892482 | AW135: 0.01445548654 | AX135: 0.2490415182 | AY135: 0.1448111392 | AZ135: 0.03950835002 | BA135: 27.28267331 | BB135: 1996 | BC135: Hargreaves-Samani | BD135: MJ /m^2 dia | BE135: h | BF135: BARATTO, R. L. Coeficiente de proporcionalidade Krs da equação de Hargreaves e Samani para o Brasil. Curitiba, 2016. 72p. Monografia (Trabalho de Conclusão de Curso - Agronomia) – Setor de Ciências Agrárias, Universidade Federal do Paraná. | BG135: -22.70833333 | BH135: -47.63333333
Z136: Mato Grosso do Sul - MS | AA136: 37 | AB136: São Gabriel do Oeste | AC136: -19.4167 | AD136: -54.55 | AE136: Am | AF136: 0.1617402839 | AG136: 0.1564334778 | AH136: 0.1620475551 | AI136: 0.1751308254 | AJ136: 0.1858537208 | AK136: 0.176426181 | AL136: 0.1716879757 | AM136: 0.1663394867 | AN136: 0.1502741131 | AO136: 0.1510092453 | AP136: 0.1609090768 | AQ136: 0.1643966621 | AR136: 0.1583092662 | AS136: 0.1768497113 | AT136: 0.1651691153 | AU136: 0.1598396761 | AV136: 0.1637195566 | AW136: 0.01908775747 | AX136: 0.2470132695 | AY136: 0.1647965772 | AZ136: 0.0378520046 | BA136: 22.96892645 | BB136: 2365 | BC136: Hargreaves-Samani | BD136: MJ /m^2 dia | BE136: h | BF136: BARATTO, R. L. Coeficiente de proporcionalidade Krs da equação de Hargreaves e Samani para o Brasil. Curitiba, 2016. 72p. Monografia (Trabalho de Conclusão de Curso - Agronomia) – Setor de Ciências Agrárias, Universidade Federal do Paraná.
Z137: Mato Grosso do Sul - MS | AA137: 42 | AB137: Sete Quedas | AC137: -23.9667 | AD137: -55.0167 | AE137: Cfa | AF137: 0.175298862 | AG137: 0.1595140593 | AH137: 0.1716236132 | AI137: 0.1671809439 | AJ137: 0.1626433598 | AK137: 0.1548776862 | AL137: 0.1486670478 | AM137: 0.1557585555 | AN137: 0.1453793877 | AO137: 0.1525887054 | AP137: 0.1689519199 | AQ137: 0.1684847909 | AR137: 0.1678904517 | AS137: 0.1606667865 | AT137: 0.1498545265 | AU137: 0.1622934649 | AV137: 0.1601940849 | AW137: 0.01460485313 | AX137: 0.3033070252 | AY137: 0.1610592296 | AZ137: 0.04929760618 | BA137: 30.60837079 | BB137: 1977 | BC137: Hargreaves-Samani | BD137: MJ /m^2 dia | BE137: h | BF137: BARATTO, R. L. Coeficiente de proporcionalidade Krs da equação de Hargreaves e Samani para o Brasil. Curitiba, 2016. 72p. Monografia (Trabalho de Conclusão de Curso - Agronomia) – Setor de Ciências Agrárias, Universidade Federal do Paraná.
Z138: Mato Grosso do Sul - MS | AA138: 43 | AB138: Sidrolândia | AC138: -20.9667 | AD138: -54.9667 | AE138: Am | AF138: 0.155542437 | AG138: 0.1630219833 | AH138: 0.1613788478 | AI138: 0.1643533638 | AJ138: 0.1628962052 | AK138: 0.1607406613 | AL138: 0.1551222347 | AM138: 0.155912196 | AN138: 0.1355396854 | AO138: 0.1477881248 | AP138: 0.1586620415 | AQ138: 0.1570455875 | AR138: 0.1600407627 | AS138: 0.1638801395 | AT138: 0.1518246165 | AU138: 0.1518462965 | AV138: 0.155172242 | AW138: 0.01398014188 | AX138: 0.2341728446 | AY138: 0.1568129395 | AZ138: 0.04213132174 | BA138: 26.86724825 | BB138: 1911 | BC138: Hargreaves-Samani | BD138: MJ /m^2 dia | BE138: h | BF138: BARATTO, R. L. Coeficiente de proporcionalidade Krs da equação de Hargreaves e Samani para o Brasil. Curitiba, 2016. 72p. Monografia (Trabalho de Conclusão de Curso - Agronomia) – Setor de Ciências Agrárias, Universidade Federal do Paraná.
Z139: Mato Grosso do Sul - MS | AA139: 26 | AB139: Três Lagoas | AC139: -20.7667 | AD139: -51.7 | AE139: Aw | AF139: 0.1496993999 | AG139: 0.1631131503 | AH139: 0.1600785211 | AI139: 0.1597247627 | AJ139: 0.1601323405 | AK139: 0.1615629047 | AL139: 0.1596428416 | AM139: 0.1568861372 | AN139: 0.1466072253 | AO139: 0.146074981 | AP139: 0.1596086561 | AQ139: 0.1549222901 | AR139: 0.1558452303 | AS139: 0.1604065278 | AT139: 0.1573418208 | AU139: 0.1525149632 | AV139: 0.156994773 | AW139: 0.02486168879 | AX139: 0.2804121524 | AY139: 0.1569384572 | AZ139: 0.03611509584 | BA139: 23.01226639 | BB139: 2172 | BC139: Hargreaves-Samani | BD139: MJ /m^2 dia | BE139: h | BF139: BARATTO, R. L. Coeficiente de proporcionalidade Krs da equação de Hargreaves e Samani para o Brasil. Curitiba, 2016. 72p. Monografia (Trabalho de Conclusão de Curso - Agronomia) – Setor de Ciências Agrárias, Universidade Federal do Paraná.
Y140: 52 | Z140: Minas Gerais - MG | AA140: 246 | AB140: Aguas Vermelhas | AC140: -15.6833 | AD140: -41.4333 | AE140: Cwa | AF140: 0.1552769692 | AG140: 0.1583541752 | AH140: 0.1532260919 | AI140: 0.1541329618 | AJ140: 0.1494627723 | AK140: 0.1444668172 | AL140: 0.1455678062 | AM140: 0.1500884655 | AN140: 0.1440635687 | AO140: 0.1396012435 | AP140: 0.137996985 | AQ140: 0.1472152616 | AR140: 0.1555834411 | AS140: 0.1498734744 | AT140: 0.1476618716 | AU140: 0.1401614121 | AV140: 0.1475483654 | AW140: 0.03309766901 | AX140: 0.2340182538 | AY140: 0.1484153733 | AZ140: 0.0328874612 | BA140: 22.15906646 | BB140: 2276 | BC140: Hargreaves-Samani | BD140: MJ /m^2 dia | BE140: h | BF140: BARATTO, R. L. Coeficiente de proporcionalidade Krs da equação de Hargreaves e Samani para o Brasil. Curitiba, 2016. 72p. Monografia (Trabalho de Conclusão de Curso - Agronomia) – Setor de Ciências Agrárias, Universidade Federal do Paraná.
Z141: Minas Gerais - MG | AA141: 231 | AB141: Aimorés | AC141: -19.4667 | AD141: -41.05 | AE141: Aw | AF141: 0.1783062738 | AG141: 0.1835540764 | AH141: 0.1704591431 | AI141: 0.1793267848 | AJ141: 0.1790299472 | AK141: 0.1799417982 | AL141: 0.1780987572 | AM141: 0.1813464742 | AN141: 0.158070917 | AO141: 0.1561488035 | AP141: 0.1576375185 | AQ141: 0.1744360074 | AR141: 0.1793574596 | AS141: 0.1782670021 | AT141: 0.1768069907 | AU141: 0.1592562533 | AV141: 0.172505715 | AW141: 0.04228600144 | AX141: 0.2919613028 | AY141: 0.1727820026 | AZ141: 0.0423136657 | BA141: 24.4896257 | BB141: 2047 | BC141: Hargreaves-Samani | BD141: MJ /m^2 dia | BE141: h | BF141: BARATTO, R. L. Coeficiente de proporcionalidade Krs da equação de Hargreaves e Samani para o Brasil. Curitiba, 2016. 72p. Monografia (Trabalho de Conclusão de Curso - Agronomia) – Setor de Ciências Agrárias, Universidade Federal do Paraná.
Z142: Minas Gerais - MG | AA142: 205 | AB142: Almenara | AC142: -16.2667 | AD142: -40.6667 | AE142: Aw | AF142: 0.1740372311 | AG142: 0.1760664385 | AH142: 0.1682699193 | AI142: 0.1786813734 | AJ142: 0.1728004619 | AK142: 0.1648122491 | AL142: 0.1609976766 | AM142: 0.1649210372 | AN142: 0.1562577278 | AO142: 0.15245754 | AP142: 0.1468883724 | AQ142: 0.1666362745 | AR142: 0.1733762919 | AS142: 0.1738565877 | AT142: 0.1634350529 | AU142: 0.1529267487 | AV142: 0.1646641589 | AW142: 0.02326069058 | AX142: 0.2605384569 | AY142: 0.1655464454 | AZ142: 0.03824503357 | BA142: 23.10229825 | BB142: 2285 | BC142: Hargreaves-Samani | BD142: MJ /m^2 dia | BE142: h | BF142: BARATTO, R. L. Coeficiente de proporcionalidade Krs da equação de Hargreaves e Samani para o Brasil. Curitiba, 2016. 72p. Monografia (Trabalho de Conclusão de Curso - Agronomia) – Setor de Ciências Agrárias, Universidade Federal do Paraná.
Z143: Minas Gerais - MG | AA143: 202 | AB143: Araxá | AC143: -19.6 | AD143: -46.9333 | AE143: Cwb | AF143: 0.1597434547 | AG143: 0.1880729919 | AH143: 0.1773237074 | AI143: 0.1952716801 | AJ143: 0.2092535905 | AK143: 0.2163115097 | AL143: 0.2134580329 | AM143: 0.2094288126 | AN143: 0.186987455 | AO143: 0.1725896442 | AP143: 0.1668536224 | AQ143: 0.1616702812 | AR143: 0.1684105998 | AS143: 0.2067125813 | AT143: 0.2075444006 | AU143: 0.1682762481 | AV143: 0.1897952186 | AW143: 0.02931466245 | AX143: 0.3840040691 | AY143: 0.1894288047 | AZ143: 0.04428477223 | BA143: 23.37805611 | BB143: 2595 | BC143: Hargreaves-Samani | BD143: MJ /m^2 dia | BE143: h | BF143: BARATTO, R. L. Coeficiente de proporcionalidade Krs da equação de Hargreaves e Samani para o Brasil. Curitiba, 2016. 72p. Monografia (Trabalho de Conclusão de Curso - Agronomia) – Setor de Ciências Agrárias, Universidade Federal do Paraná.
Z144: Minas Gerais - MG | AA144: 201 | AB144: Barbacena | AC144: -21.2167 | AD144: -43.7667 | AE144: Cwb | AF144: 0.1384593561 | AG144: 0.1628327748 | AH144: 0.1567733483 | AI144: 0.1667056985 | AJ144: 0.1684049877 | AK144: 0.1746891743 | AL144: 0.1771973929 | AM144: 0.1733298532 | AN144: 0.1530832811 | AO144: 0.1387049573 | AP144: 0.1341187103 | AQ144: 0.139265607 | AR144: 0.1486430976 | AS144: 0.168485318 | AT144: 0.1725416101 | AU144: 0.1368958242 | AV144: 0.1572778361 | AW144: 0.02857845618 | AX144: 0.276598258 | AY144: 0.1574831048 | AZ144: 0.04298332186 | BA144: 27.29392585 | BB144: 2676 | BC144: Hargreaves-Samani | BD144: MJ /m^2 dia | BE144: h | BF144: BARATTO, R. L. Coeficiente de proporcionalidade Krs da equação de Hargreaves e Samani para o Brasil. Curitiba, 2016. 72p. Monografia (Trabalho de Conclusão de Curso - Agronomia) – Setor de Ciências Agrárias, Universidade Federal do Paraná.
Z145: Minas Gerais - MG | AA145: 218 | AB145: Belo Horizonte | AC145: -19.8833 | AD145: -43.9667 | AE145: Cwa | AF145: 0.1499710843 | AG145: 0.1756811065 | AH145: 0.1686443623 | AI145: 0.1798195815 | AJ145: 0.1849420236 | AK145: 0.1940886113 | AL145: 0.1944401601 | AM145: 0.1914195601 | AN145: 0.1770134718 | AO145: 0.1595530305 | AP145: 0.1498310446 | AQ145: 0.1453763707 | AR145: 0.1600789781 | AS145: 0.1839238194 | AT145: 0.1903393421 | AU145: 0.1531101192 | AV145: 0.1693346966 | AW145: 0.01769720828 | AX145: 0.2659649404 | AY145: 0.1723977352 | AZ145: 0.04219309377 | BA145: 24.47427383 | BB145: 2596 | BC145: Hargreaves-Samani | BD145: MJ /m^2 dia | BE145: h | BF145: BARATTO, R. L. Coeficiente de proporcionalidade Krs da equação de Hargreaves e Samani para o Brasil. Curitiba, 2016. 72p. Monografia (Trabalho de Conclusão de Curso - Agronomia) – Setor de Ciências Agrárias, Universidade Federal do Paraná.
Z146: Minas Gerais - MG | AA146: 241 | AB146: Buritis | AC146: -15.5167 | AD146: -46.4333 | AE146: Aw | AF146: 0.1745642862 | AG146: 0.1873641828 | AH146: 0.1757782894 | AI146: 0.1913075528 | AJ146: 0.2003064991 | AK146: 0.2065487952 | AL146: 0.2070475359 | AM146: 0.2010096125 | AN146: 0.1830985011 | AO146: 0.1671736353 | AP146: 0.1508182729 | AQ146: 0.1686277803 | AR146: 0.1788343866 | AS146: 0.1961177202 | AT146: 0.2003646332 | AU146: 0.162434128 | AV146: 0.1852521654 | AW146: 0.041839675 | AX146: 0.2762457721 | AY146: 0.1853952934 | AZ146: 0.03879497331 | BA146: 20.9255438 | BB146: 2305 | BC146: Hargreaves-Samani | BD146: MJ /m^2 dia | BE146: h | BF146: BARATTO, R. L. Coeficiente de proporcionalidade Krs da equação de Hargreaves e Samani para o Brasil. Curitiba, 2016. 72p. Monografia (Trabalho de Conclusão de Curso - Agronomia) – Setor de Ciências Agrárias, Universidade Federal do Paraná.
Z147: Minas Gerais - MG | AA147: 227 | AB147: Caldas | AC147: -21.9167 | AD147: -46.3667 | AE147: Cwb | AF147: 0.1275656462 | AG147: 0.1450526478 | AH147: 0.1450180201 | AI147: 0.1485095658 | AJ147: 0.1486541414 | AK147: 0.1438359502 | AL147: 0.1468615218 | AM147: 0.1472358164 | AN147: 0.1382978925 | AO147: 0.134587643 | AP147: 0.133411928 | AQ147: 0.1375385539 | AR147: 0.1363536361 | AS147: 0.1476193682 | AT147: 0.1447760703 | AU147: 0.1356398036 | AV147: 0.1406335852 | AW147: 0.03000746126 | AX147: 0.2475242309 | AY147: 0.1417422805 | AZ147: 0.03574187938 | BA147: 25.21610295 | BB147: 2570 | BC147: Hargreaves-Samani | BD147: MJ /m^2 dia | BE147: h | BF147: BARATTO, R. L. Coeficiente de proporcionalidade Krs da equação de Hargreaves e Samani para o Brasil. Curitiba, 2016. 72p. Monografia (Trabalho de Conclusão de Curso - Agronomia) – Setor de Ciências Agrárias, Universidade Federal do Paraná.
Z148: Minas Gerais - MG | AA148: 206 | AB148: Camanducaia | AC148: -22.85 | AD148: -46.0333 | AE148: Cfb | AF148: 0.1289849107 | AG148: 0.1413194162 | AH148: 0.1487428626 | AI148: 0.1593822631 | AJ148: 0.1646755974 | AK148: 0.1624936433 | AL148: 0.1625853046 | AM148: 0.164424421 | AN148: 0.1509711027 | AO148: 0.1444899039 | AP148: 0.1429069465 | AQ148: 0.1404830056 | AR148: 0.1366121347 | AS148: 0.1617661898 | AT148: 0.1607555239 | AU148: 0.1436891957 | AV148: 0.1513693067 | AW148: 0.02455737195 | AX148: 0.3110985109 | AY148: 0.151481625 | AZ148: 0.04448468371 | BA148: 29.36638929 | BB148: 2785 | BC148: Hargreaves-Samani | BD148: MJ /m^2 dia | BE148: h | BF148: BARATTO, R. L. Coeficiente de proporcionalidade Krs da equação de Hargreaves e Samani para o Brasil. Curitiba, 2016. 72p. Monografia (Trabalho de Conclusão de Curso - Agronomia) – Setor de Ciências Agrárias, Universidade Federal do Paraná.
Z149: Minas Gerais - MG | AA149: 216 | AB149: Campina Verde | AC149: -19.5333 | AD149: -49.5333 | AE149: Aw | AF149: 0.1549693685 | AG149: 0.1611871736 | AH149: 0.1632122314 | AI149: 0.1726929542 | AJ149: 0.1754945585 | AK149: 0.1751520085 | AL149: 0.1777200945 | AM149: 0.1709707767 | AN149: 0.1536077421 | AO149: 0.1580729012 | AP149: 0.1636535656 | AQ149: 0.1636685328 | AR149: 0.1626936123 | AS149: 0.173365455 | AT149: 0.1703665501 | AU149: 0.1596513688 | AV149: 0.1676078089 | AW149: 0.02538422722 | AX149: 0.2679514776 | AY149: 0.1661340504 | AZ149: 0.03640997628 | BA149: 21.91602274 | BB149: 2687 | BC149: Hargreaves-Samani | BD149: MJ /m^2 dia | BE149: h | BF149: BARATTO, R. L. Coeficiente de proporcionalidade Krs da equação de Hargreaves e Samani para o Brasil. Curitiba, 2016. 72p. Monografia (Trabalho de Conclusão de Curso - Agronomia) – Setor de Ciências Agrárias, Universidade Federal do Paraná.
Z150: Minas Gerais - MG | AA150: 238 | AB150: Capelinha | AC150: -17.7 | AD150: -42.3833 | AE150: Cwb | AF150: 0.1521509465 | AG150: 0.1585247951 | AH150: 0.1553807068 | AI150: 0.1593087218 | AJ150: 0.1590469484 | AK150: 0.1663049468 | AL150: 0.1704090465 | AM150: 0.1630080644 | AN150: 0.1474552283 | AO150: 0.1361358601 | AP150: 0.1326015857 | AQ150: 0.1451632743 | AR150: 0.1571193859 | AS150: 0.1609763182 | AT150: 0.1616641731 | AU150: 0.1367461946 | AV150: 0.1522741328 | AW150: 0.05277460192 | AX150: 0.2413072214 | AY150: 0.1534742186 | AZ150: 0.03621626879 | BA150: 23.59762383 | BB150: 2302 | BC150: Hargreaves-Samani | BD150: MJ /m^2 dia | BE150: h | BF150: BARATTO, R. L. Coeficiente de proporcionalidade Krs da equação de Hargreaves e Samani para o Brasil. Curitiba, 2016. 72p. Monografia (Trabalho de Conclusão de Curso - Agronomia) – Setor de Ciências Agrárias, Universidade Federal do Paraná.
Z151: Minas Gerais - MG | AA151: 251 | AB151: Caratinga | AC151: -19.7333 | AD151: -42.1333 | AE151: Cwa | AF151: 0.1633281108 | AG151: 0.1701690981 | AH151: 0.1623237549 | AI151: 0.1663616037 | AJ151: 0.1589758755 | AK151: 0.1567264845 | AL151: 0.1587924155 | AM151: 0.1622221877 | AN151: 0.1494904125 | AO151: 0.1418875572 | AP151: 0.1458088729 | AQ151: 0.1595774603 | AR151: 0.1661006831 | AS151: 0.161725119 | AT151: 0.1588999592 | AU151: 0.1460204779 | AV151: 0.1577639684 | AW151: 0.03060102865 | AX151: 0.2553275636 | AY151: 0.1579688837 | AZ151: 0.03936864377 | BA151: 24.92177121 | BB151: 2270 | BC151: Hargreaves-Samani | BD151: MJ /m^2 dia | BE151: h | BF151: BARATTO, R. L. Coeficiente de proporcionalidade Krs da equação de Hargreaves e Samani para o Brasil. Curitiba, 2016. 72p. Monografia (Trabalho de Conclusão de Curso - Agronomia) – Setor de Ciências Agrárias, Universidade Federal do Paraná.
Z152: Minas Gerais - MG | AA152: 243 | AB152: Carlos Chagas | AC152: -17.8 | AD152: -41.0167 | AE152: Aw | AF152: 0.1623554763 | AG152: 0.1834627317 | AH152: 0.1620038375 | AI152: 0.1709589246 | AJ152: 0.1819084338 | AK152: 0.1891934018 | AL152: 0.185990841 | AM152: 0.1766174038 | AN152: 0.1632710076 | AO152: 0.1560525111 | AP152: 0.1554713474 | AQ152: 0.1557735826 | AR152: 0.1697514984 | AS152: 0.1775125537 | AT152: 0.1783126077 | AU152: 0.1558612369 | AV152: 0.1701594527 | AW152: 0.04905483219 | AX152: 0.2513897648 | AY152: 0.1700921083 | AZ152: 0.0357410919 | BA152: 21.01278669 | BB152: 2356 | BC152: Hargreaves-Samani | BD152: MJ /m^2 dia | BE152: h | BF152: BARATTO, R. L. Coeficiente de proporcionalidade Krs da equação de Hargreaves e Samani para o Brasil. Curitiba, 2016. 72p. Monografia (Trabalho de Conclusão de Curso - Agronomia) – Setor de Ciências Agrárias, Universidade Federal do Paraná.
Z153: Minas Gerais - MG | AA153: 245 | AB153: Chapada Gaúcha | AC153: -15.3 | AD153: -45.6167 | AE153: Aw | AF153: 0.1635177279 | AG153: 0.1793276768 | AH153: 0.1706678635 | AI153: 0.1833862503 | AJ153: 0.1860212503 | AK153: 0.1954443808 | AL153: 0.1944961262 | AM153: 0.1925421123 | AN153: 0.1757040351 | AO153: 0.1592166707 | AP153: 0.1479233752 | AQ153: 0.1579669624 | AR153: 0.170782631 | AS153: 0.1856224813 | AT153: 0.190405857 | AU153: 0.1557202066 | AV153: 0.1761315426 | AW153: 0.0398699606 | AX153: 0.2412926689 | AY153: 0.176068813 | AZ153: 0.03673433174 | BA153: 20.86362208 | BB153: 2298 | BC153: Hargreaves-Samani | BD153: MJ /m^2 dia | BE153: h | BF153: BARATTO, R. L. Coeficiente de proporcionalidade Krs da equação de Hargreaves e Samani para o Brasil. Curitiba, 2016. 72p. Monografia (Trabalho de Conclusão de Curso - Agronomia) – Setor de Ciências Agrárias, Universidade Federal do Paraná.
Z154: Minas Gerais - MG | AA154: 217 | AB154: Conceição das Alagoas | AC154: -19.9833 | AD154: -48.15 | AE154: Aw | AF154: 0.1357849054 | AG154: 0.1548572452 | AH154: 0.150203757 | AI154: 0.1589349671 | AJ154: 0.1560802608 | AK154: 0.1588596171 | AL154: 0.157555948 | AM154: 0.1527509578 | AN154: 0.1421914665 | AO154: 0.1383638737 | AP154: 0.1413914128 | AQ154: 0.1419658808 | AR154: 0.1404854214 | AS154: 0.1567669209 | AT154: 0.1529307484 | AU154: 0.1401822833 | AV154: 0.1488366533 | AW154: 0.01552390149 | AX154: 0.2421833721 | AY154: 0.1494263412 | AZ154: 0.03425894533 | BA154: 22.92697864 | BB154: 2579 | BC154: Hargreaves-Samani | BD154: MJ /m^2 dia | BE154: h | BF154: BARATTO, R. L. Coeficiente de proporcionalidade Krs da equação de Hargreaves e Samani para o Brasil. Curitiba, 2016. 72p. Monografia (Trabalho de Conclusão de Curso - Agronomia) – Setor de Ciências Agrárias, Universidade Federal do Paraná.
Z155: Minas Gerais - MG | AA155: 235 | AB155: Curvelo | AC155: -18.7333 | AD155: -44.45 | AE155: Cwa | AF155: 0.1567634949 | AG155: 0.1753828193 | AH155: 0.1734707155 | AI155: 0.1769011308 | AJ155: 0.1767477169 | AK155: 0.1756920133 | AL155: 0.1748969499 | AM155: 0.1701663503 | AN155: 0.1630993879 | AO155: 0.1543452258 | AP155: 0.1541414568 | AQ155: 0.1577520088 | AR155: 0.1671272352 | AS155: 0.1765089861 | AT155: 0.1711003904 | AU155: 0.1569738698 | AV155: 0.1683075249 | AW155: 0.03294009538 | AX155: 0.2390570507 | AY155: 0.1676558844 | AZ155: 0.03370264625 | BA155: 20.10227459 | BB155: 2544 | BC155: Hargreaves-Samani | BD155: MJ /m^2 dia | BE155: h | BF155: BARATTO, R. L. Coeficiente de proporcionalidade Krs da equação de Hargreaves e Samani para o Brasil. Curitiba, 2016. 72p. Monografia (Trabalho de Conclusão de Curso - Agronomia) – Setor de Ciências Agrárias, Universidade Federal do Paraná.
Z156: Minas Gerais - MG | AA156: 234 | AB156: Diamantina | AC156: -18.2167 | AD156: -43.6333 | AE156: Cwb | AF156: 0.1614047163 | AG156: 0.1772765942 | AH156: 0.1650359546 | AI156: 0.1799319143 | AJ156: 0.1917308561 | AK156: 0.2022754585 | AL156: 0.2115690904 | AM156: 0.2005911383 | AN156: 0.1795955032 | AO156: 0.1591670651 | AP156: 0.148430871 | AQ156: 0.1542378545 | AR156: 0.1685041993 | AS156: 0.1921575234 | AT156: 0.2009076699 | AU156: 0.1546378816 | AV156: 0.1779682832 | AW156: 0.04148282771 | AX156: 0.3020018311 | AY156: 0.1775822521 | AZ156: 0.04586076147 | BA156: 25.82508157 | BB156: 2339 | BC156: Hargreaves-Samani | BD156: MJ /m^2 dia | BE156: h | BF156: BARATTO, R. L. Coeficiente de proporcionalidade Krs da equação de Hargreaves e Samani para o Brasil. Curitiba, 2016. 72p. Monografia (Trabalho de Conclusão de Curso - Agronomia) – Setor de Ciências Agrárias, Universidade Federal do Paraná.
Z157: Minas Gerais - MG | AA157: 233 | AB157: Dores do Indaiá | AC157: -19.4667 | AD157: -45.5833 | AE157: Cwa | AF157: 0.1528926336 | AG157: 0.1659585347 | AH157: 0.157673468 | AI157: 0.1686158617 | AJ157: 0.1739408515 | AK157: 0.178502386 | AL157: 0.1737559925 | AM157: 0.1738485108 | AN157: 0.1590357197 | AO157: 0.1459785895 | AP157: 0.1459500621 | AQ157: 0.149915661 | AR157: 0.1579831192 | AS157: 0.1728215037 | AT157: 0.1730050148 | AU157: 0.1464456146 | AV157: 0.1624527544 | AW157: 0.02942158313 | AX157: 0.2366771539 | AY157: 0.162565517 | AZ157: 0.03590532105 | BA157: 22.08667724 | BB157: 2265 | BC157: Hargreaves-Samani | BD157: MJ /m^2 dia | BE157: h | BF157: BARATTO, R. L. Coeficiente de proporcionalidade Krs da equação de Hargreaves e Samani para o Brasil. Curitiba, 2016. 72p. Monografia (Trabalho de Conclusão de Curso - Agronomia) – Setor de Ciências Agrárias, Universidade Federal do Paraná.
Z158: Minas Gerais - MG | AA158: 240 | AB158: Espinosa | AC158: -14.9 | AD158: -42.8333 | AE158: As | AF158: 0.1818860835 | AG158: 0.1802528406 | AH158: 0.176803739 | AI158: 0.179629043 | AJ158: 0.1754114245 | AK158: 0.1838697702 | AL158: 0.1890906844 | AM158: 0.1889118452 | AN158: 0.1821641421 | AO158: 0.1694701087 | AP158: 0.1548359245 | AQ158: 0.1696852611 | AR158: 0.182872556 | AS158: 0.1792437017 | AT158: 0.1872674173 | AU158: 0.1647801017 | AV158: 0.1765458839 | AW158: 0.03291220303 | AX158: 0.2720939694 | AY158: 0.177793751 | AZ158: 0.03628113339 | BA158: 20.40630404 | BB158: 2164 | BC158: Hargreaves-Samani | BD158: MJ /m^2 dia | BE158: h | BF158: BARATTO, R. L. Coeficiente de proporcionalidade Krs da equação de Hargreaves e Samani para o Brasil. Curitiba, 2016. 72p. Monografia (Trabalho de Conclusão de Curso - Agronomia) – Setor de Ciências Agrárias, Universidade Federal do Paraná.
Z159: Minas Gerais - MG | AA159: 232 | AB159: Florestal | AC159: -19.8833 | AD159: -44.4167 | AE159: Cwa | AF159: 0.1573970321 | AG159: 0.1706097814 | AH159: 0.1602761917 | AI159: 0.167489166 | AJ159: 0.164830192 | AK159: 0.1692072338 | AL159: 0.1661214096 | AM159: 0.1608660621 | AN159: 0.1549890024 | AO159: 0.1475151183 | AP159: 0.1478406229 | AQ159: 0.1456250292 | AR159: 0.1563020054 | AS159: 0.1659056063 | AT159: 0.1619379827 | AU159: 0.147405265 | AV159: 0.1584822163 | AW159: 0.03314754044 | AX159: 0.221629988 | AY159: 0.1590547752 | AZ159: 0.03367996504 | BA159: 21.17507318 | BB159: 2010 | BC159: Hargreaves-Samani | BD159: MJ /m^2 dia | BE159: h | BF159: BARATTO, R. L. Coeficiente de proporcionalidade Krs da equação de Hargreaves e Samani para o Brasil. Curitiba, 2016. 72p. Monografia (Trabalho de Conclusão de Curso - Agronomia) – Setor de Ciências Agrárias, Universidade Federal do Paraná.
Z160: Minas Gerais - MG | AA160: 221 | AB160: Formiga | AC160: -20.45 | AD160: -45.45 | AE160: Cwb | AF160: 0.1491174315 | AG160: 0.1636644209 | AH160: 0.1606069416 | AI160: 0.1687251748 | AJ160: 0.1662454841 | AK160: 0.1697246459 | AL160: 0.1683079328 | AM160: 0.1688475588 | AN160: 0.1573246644 | AO160: 0.1473510043 | AP160: 0.1475606988 | AQ160: 0.1511382177 | AR160: 0.1568247439 | AS160: 0.1668834402 | AT160: 0.1660598023 | AU160: 0.1481809843 | AV160: 0.1586714594 | AW160: 0.02647151397 | AX160: 0.2439006857 | AY160: 0.1599108969 | AZ160: 0.03546027631 | BA160: 22.17502183 | BB160: 2675 | BC160: Hargreaves-Samani | BD160: MJ /m^2 dia | BE160: h | BF160: BARATTO, R. L. Coeficiente de proporcionalidade Krs da equação de Hargreaves e Samani para o Brasil. Curitiba, 2016. 72p. Monografia (Trabalho de Conclusão de Curso - Agronomia) – Setor de Ciências Agrárias, Universidade Federal do Paraná.
Z161: Minas Gerais - MG | AA161: 229 | AB161: Governador Valadares | AC161: -18.7833 | AD161: -41.9833 | AE161: Aw | AF161: 0.1576729112 | AG161: 0.1635496957 | AH161: 0.1595687841 | AI161: 0.1602393801 | AJ161: 0.1545126875 | AK161: 0.1533147543 | AL161: 0.1513922993 | AM161: 0.1509685542 | AN161: 0.1438727653 | AO161: 0.1355019213 | AP161: 0.1384814226 | AQ161: 0.155792349 | AR161: 0.162890293 | AS161: 0.1574032924 | AT161: 0.1504923831 | AU161: 0.1407267085 | AV161: 0.1525451897 | AW161: 0.01546851372 | AX161: 0.2584394155 | AY161: 0.1522574646 | AZ161: 0.03606611455 | BA161: 23.68758382 | BB161: 2162 | BC161: Hargreaves-Samani | BD161: MJ /m^2 dia | BE161: h | BF161: BARATTO, R. L. Coeficiente de proporcionalidade Krs da equação de Hargreaves e Samani para o Brasil. Curitiba, 2016. 72p. Monografia (Trabalho de Conclusão de Curso - Agronomia) – Setor de Ciências Agrárias, Universidade Federal do Paraná.
Z162: Minas Gerais - MG | AA162: 230 | AB162: Guanhães | AC162: -18.7833 | AD162: -42.9333 | AE162: Cwa | AF162: 0.1543192174 | AG162: 0.1660098498 | AH162: 0.1550148788 | AI162: 0.1583702384 | AJ162: 0.1553267985 | AK162: 0.1580244793 | AL162: 0.1606174007 | AM162: 0.1579066559 | AN162: 0.1478569749 | AO162: 0.1417331119 | AP162: 0.1400905147 | AQ162: 0.1488368359 | AR162: 0.1599981128 | AS162: 0.1588464144 | AT162: 0.1572360252 | AU162: 0.1417803713 | AV162: 0.1538123283 | AW162: 0.03072263049 | AX162: 0.242433058 | AY162: 0.1537139833 | AZ162: 0.03697632209 | BA162: 24.05527545 | BB162: 2388 | BC162: Hargreaves-Samani | BD162: MJ /m^2 dia | BE162: h | BF162: BARATTO, R. L. Coeficiente de proporcionalidade Krs da equação de Hargreaves e Samani para o Brasil. Curitiba, 2016. 72p. Monografia (Trabalho de Conclusão de Curso - Agronomia) – Setor de Ciências Agrárias, Universidade Federal do Paraná.
Z163: Minas Gerais - MG | AA163: 252 | AB163: Ibirité | AC163: -20.0167 | AD163: -44.0667 | AE163: Cwb | AF163: 0.1540695448 | AG163: 0.1778830088 | AH163: 0.1635120837 | AI163: 0.1956999587 | AJ163: 0.2017221657 | AK163: 0.2160690976 | AL163: 0.2143646637 | AM163: 0.1992174694 | AN163: 0.1827428664 | AO163: 0.1630452754 | AP163: 0.1533083249 | AQ163: 0.139073489 | AR163: 0.1539641331 | AS163: 0.2021037068 | AT163: 0.2033105126 | AU163: 0.155792127 | AV163: 0.1802460194 | AW163: 0.02650967548 | AX163: 0.2836996776 | AY163: 0.1804520279 | AZ163: 0.0485902271 | BA163: 26.92694987 | BB163: 2023 | BC163: Hargreaves-Samani | BD163: MJ /m^2 dia | BE163: h | BF163: BARATTO, R. L. Coeficiente de proporcionalidade Krs da equação de Hargreaves e Samani para o Brasil. Curitiba, 2016. 72p. Monografia (Trabalho de Conclusão de Curso - Agronomia) – Setor de Ciências Agrárias, Universidade Federal do Paraná.
Z164: Minas Gerais - MG | AA164: 247 | AB164: Itaobim | AC164: -16.55 | AD164: -41.5 | AE164: As | AF164: 0.1728642171 | AG164: 0.1722260183 | AH164: 0.1627209729 | AI164: 0.1659656191 | AJ164: 0.1599693381 | AK164: 0.1575832563 | AL164: 0.1623699049 | AM164: 0.164748911 | AN164: 0.160635239 | AO164: 0.1559494874 | AP164: 0.1501214608 | AQ164: 0.1627742508 | AR164: 0.1716903335 | AS164: 0.1624152429 | AT164: 0.1643322566 | AU164: 0.1544077137 | AV164: 0.1620056933 | AW164: 0.03812601208 | AX164: 0.2351211894 | AY164: 0.1624161936 | AZ164: 0.03746760681 | BA164: 23.06888616 | BB164: 2295 | BC164: Hargreaves-Samani | BD164: MJ /m^2 dia | BE164: h | BF164: BARATTO, R. L. Coeficiente de proporcionalidade Krs da equação de Hargreaves e Samani para o Brasil. Curitiba, 2016. 72p. Monografia (Trabalho de Conclusão de Curso - Agronomia) – Setor de Ciências Agrárias, Universidade Federal do Paraná.
Z165: Minas Gerais - MG | AA165: 209 | AB165: Ituiutaba | AC165: -18.95 | AD165: -49.5 | AE165: Aw | AF165: 0.145831847 | AG165: 0.1559502296 | AH165: 0.1591569274 | AI165: 0.1619962443 | AJ165: 0.1621228986 | AK165: 0.1597952948 | AL165: 0.157595817 | AM165: 0.1532066106 | AN165: 0.1411180435 | AO165: 0.14225338 | AP165: 0.1489494055 | AQ165: 0.1495611942 | AR165: 0.1517435327 | AS165: 0.16156944 | AT165: 0.1529545439 | AU165: 0.1449537096 | AV165: 0.1528862671 | AW165: 0.02781623334 | AX165: 0.2211099922 | AY165: 0.1531836879 | AZ165: 0.03108542693 | BA165: 20.29290935 | BB165: 2729 | BC165: Hargreaves-Samani | BD165: MJ /m^2 dia | BE165: h | BF165: BARATTO, R. L. Coeficiente de proporcionalidade Krs da equação de Hargreaves e Samani para o Brasil. Curitiba, 2016. 72p. Monografia (Trabalho de Conclusão de Curso - Agronomia) – Setor de Ciências Agrárias, Universidade Federal do Paraná.
Z166: Minas Gerais - MG | AA166: 236 | AB166: Jaiba | AC166: -15.0833 | AD166: -44 | AE166: As | AF166: 0.1698884727 | AG166: 0.1747005002 | AH166: 0.1705929249 | AI166: 0.1781839436 | AJ166: 0.1733143693 | AK166: 0.1793522005 | AL166: 0.1712992601 | AM166: 0.1622893296 | AN166: 0.1567525059 | AO166: 0.1683570514 | AP166: 0.1493319283 | AQ166: 0.1605291747 | AR166: 0.1720055949 | AS166: 0.1763172494 | AT166: 0.1660387662 | AU166: 0.1569990722 | AV166: 0.1673032325 | AW166: 0.03130281728 | AX166: 0.2973754314 | AY166: 0.1682399839 | AZ166: 0.03366213195 | BA166: 20.00840179 | BB166: 2129 | BC166: Hargreaves-Samani | BD166: MJ /m^2 dia | BE166: h | BF166: BARATTO, R. L. Coeficiente de proporcionalidade Krs da equação de Hargreaves e Samani para o Brasil. Curitiba, 2016. 72p. Monografia (Trabalho de Conclusão de Curso - Agronomia) – Setor de Ciências Agrárias, Universidade Federal do Paraná.
Z167: Minas Gerais - MG | AA167: 250 | AB167: João Pinheiro | AC167: -17.3167 | AD167: -45.8167 | AE167: Aw | AF167: 0.1683216964 | AG167: 0.1824424922 | AH167: 0.1786828306 | AI167: 0.1913162465 | AJ167: 0.1982366308 | AK167: 0.2009244026 | AL167: 0.2012608515 | AM167: 0.1951625736 | AN167: 0.1803907033 | AO167: 0.1636943954 | AP167: 0.1599706857 | AQ167: 0.1713280299 | AR167: 0.1746032798 | AS167: 0.1947137331 | AT167: 0.1950730774 | AU167: 0.1640203018 | AV167: 0.1821755235 | AW167: 0.04248841028 | AX167: 0.2598345166 | AY167: 0.1827829871 | AZ167: 0.0369859549 | BA167: 20.23490013 | BB167: 2292 | BC167: Hargreaves-Samani | BD167: MJ /m^2 dia | BE167: h | BF167: BARATTO, R. L. Coeficiente de proporcionalidade Krs da equação de Hargreaves e Samani para o Brasil. Curitiba, 2016. 72p. Monografia (Trabalho de Conclusão de Curso - Agronomia) – Setor de Ciências Agrárias, Universidade Federal do Paraná.
Z168: Minas Gerais - MG | AA168: 215 | AB168: Juiz de Fora | AC168: -21.7667 | AD168: -43.35 | AE168: Cwa | AF168: 0.1478232817 | AG168: 0.1699274199 | AH168: 0.1566856982 | AI168: 0.1703005114 | AJ168: 0.1753003782 | AK168: 0.1808712055 | AL168: 0.1879695322 | AM168: 0.1764148392 | AN168: 0.159563786 | AO168: 0.1422716475 | AP168: 0.1321062697 | AQ168: 0.1440721841 | AR168: 0.1602029158 | AS168: 0.1768073471 | AT168: 0.1780055621 | AU168: 0.1385351581 | AV168: 0.1622174998 | AW168: 0.02680385725 | AX168: 0.3186390502 | AY168: 0.1621668981 | AZ168: 0.05040803885 | BA168: 31.08404947 | BB168: 2361 | BC168: Hargreaves-Samani | BD168: MJ /m^2 dia | BE168: h | BF168: BARATTO, R. L. Coeficiente de proporcionalidade Krs da equação de Hargreaves e Samani para o Brasil. Curitiba, 2016. 72p. Monografia (Trabalho de Conclusão de Curso - Agronomia) – Setor de Ciências Agrárias, Universidade Federal do Paraná.
Z169: Minas Gerais - MG | AA169: 237 | AB169: Mantena | AC169: -18.8 | AD169: -40.9333 | AE169: Aw | AF169: 0.1550605269 | AG169: 0.1633333191 | AH169: 0.1630660237 | AI169: 0.1650959073 | AJ169: 0.1614306871 | AK169: 0.1704386729 | AL169: 0.1663457579 | AM169: 0.1577920333 | AN169: 0.1490404237 | AO169: 0.1423046464 | AP169: 0.1433898914 | AQ169: 0.1487952692 | AR169: 0.1610297538 | AS169: 0.1653304818 | AT169: 0.1600889021 | AU169: 0.142789003 | AV169: 0.156104992 | AW169: 0.02699004318 | AX169: 0.2467061955 | AY169: 0.1568479096 | AZ169: 0.03711203907 | BA169: 23.6611627 | BB169: 2271 | BC169: Hargreaves-Samani | BD169: MJ /m^2 dia | BE169: h | BF169: BARATTO, R. L. Coeficiente de proporcionalidade Krs da equação de Hargreaves e Samani para o Brasil. Curitiba, 2016. 72p. Monografia (Trabalho de Conclusão de Curso - Agronomia) – Setor de Ciências Agrárias, Universidade Federal do Paraná.
Z170: Minas Gerais - MG | AA170: 228 | AB170: Maria da Fé | AC170: -22.3 | AD170: -45.3667 | AE170: Cwb | AF170: 0.1272294328 | AG170: 0.145210859 | AH170: 0.144472876 | AI170: 0.1537053071 | AJ170: 0.1523635004 | AK170: 0.1523460319 | AL170: 0.1554911074 | AM170: 0.1564863682 | AN170: 0.1465116601 | AO170: 0.1392947933 | AP170: 0.136484673 | AQ170: 0.1358261484 | AR170: 0.1360453437 | AS170: 0.1524461855 | AT170: 0.1539903503 | AU170: 0.1386834689 | AV170: 0.144814741 | AW170: 0.02897709651 | AX170: 0.2466936289 | AY170: 0.1456878591 | AZ170: 0.03734597371 | BA170: 25.6342388 | BB170: 2460 | BC170: Hargreaves-Samani | BD170: MJ /m^2 dia | BE170: h | BF170: BARATTO, R. L. Coeficiente de proporcionalidade Krs da equação de Hargreaves e Samani para o Brasil. Curitiba, 2016. 72p. Monografia (Trabalho de Conclusão de Curso - Agronomia) – Setor de Ciências Agrárias, Universidade Federal do Paraná.
Z171: Minas Gerais - MG | AA171: 223 | AB171: Montalvânia | AC171: -14.4 | AD171: -44.35 | AE171: Aw | AF171: 0.1669692006 | AG171: 0.1663968783 | AH171: 0.1642237608 | AI171: 0.1638946689 | AJ171: 0.1593557196 | AK171: 0.1614851422 | AL171: 0.1571157321 | AM171: 0.1567550874 | AN171: 0.152147518 | AO171: 0.1503496026 | AP171: 0.1465390356 | AQ171: 0.1584903001 | AR171: 0.1675968081 | AS171: 0.1622542996 | AT171: 0.1562455254 | AU171: 0.1506171382 | AV171: 0.1582004227 | AW171: 0.0285337082 | AX171: 0.2393635426 | AY171: 0.1585690373 | AZ171: 0.0312870106 | BA171: 19.73084477 | BB171: 2338 | BC171: Hargreaves-Samani | BD171: MJ /m^2 dia | BE171: h | BF171: BARATTO, R. L. Coeficiente de proporcionalidade Krs da equação de Hargreaves e Samani para o Brasil. Curitiba, 2016. 72p. Monografia (Trabalho de Conclusão de Curso - Agronomia) – Setor de Ciências Agrárias, Universidade Federal do Paraná.
Z172: Minas Gerais - MG | AA172: 203 | AB172: Montes Claros | AC172: -16.7167 | AD172: -43.8667 | AE172: As | AF172: 0.1646504636 | AG172: 0.1796818874 | AH172: 0.1714313332 | AI172: 0.1853039775 | AJ172: 0.1839002346 | AK172: 0.1827075803 | AL172: 0.1790990651 | AM172: 0.1762461315 | AN172: 0.1689821922 | AO172: 0.1602352222 | AP172: 0.1512244498 | AQ172: 0.1619390073 | AR172: 0.1728382643 | AS172: 0.1821910642 | AT172: 0.1766008384 | AU172: 0.156548097 | AV172: 0.1715503261 | AW172: 0.03199496069 | AX172: 0.2707884354 | AY172: 0.1723878601 | AZ172: 0.03824495413 | BA172: 22.18541033 | BB172: 2443 | BC172: Hargreaves-Samani | BD172: MJ /m^2 dia | BE172: h | BF172: BARATTO, R. L. Coeficiente de proporcionalidade Krs da equação de Hargreaves e Samani para o Brasil. Curitiba, 2016. 72p. Monografia (Trabalho de Conclusão de Curso - Agronomia) – Setor de Ciências Agrárias, Universidade Federal do Paraná.
Z173: Minas Gerais - MG | AA173: 214 | AB173: Muriaé | AC173: -21.1 | AD173: -42.3833 | AE173: Aw | AF173: 0.1412005838 | AG173: 0.155747594 | AH173: 0.1553056323 | AI173: 0.1612255058 | AJ173: 0.1675589851 | AK173: 0.1690744294 | AL173: 0.1702313118 | AM173: 0.1689567857 | AN173: 0.1525709718 | AO173: 0.1424385438 | AP173: 0.1432846058 | AQ173: 0.1446998243 | AR173: 0.1475463299 | AS173: 0.1646807023 | AT173: 0.1637750237 | AU173: 0.1436473911 | AV173: 0.1545958819 | AW173: 0.03212850554 | AX173: 0.2645880335 | AY173: 0.1558984779 | AZ173: 0.03573599557 | BA173: 22.9226071 | BB173: 2664 | BC173: Hargreaves-Samani | BD173: MJ /m^2 dia | BE173: h | BF173: BARATTO, R. L. Coeficiente de proporcionalidade Krs da equação de Hargreaves e Samani para o Brasil. Curitiba, 2016. 72p. Monografia (Trabalho de Conclusão de Curso - Agronomia) – Setor de Ciências Agrárias, Universidade Federal do Paraná.
Z174: Minas Gerais - MG | AA174: 210 | AB174: Ouro Branco | AC174: -20.5167 | AD174: -43.6833 | AE174: Cwb | AF174: 0.1740372311 | AG174: 0.1760664385 | AH174: 0.1682699193 | AI174: 0.1786813734 | AJ174: 0.1728004619 | AK174: 0.1648122491 | AL174: 0.1609976766 | AM174: 0.1649210372 | AN174: 0.1562577278 | AO174: 0.15245754 | AP174: 0.1468883724 | AQ174: 0.1666362745 | AR174: 0.1733762919 | AS174: 0.1738565877 | AT174: 0.1634350529 | AU174: 0.1529267487 | AV174: 0.1646641589 | AW174: 0.02143000822 | AX174: 0.2540228492 | AY174: 0.1464705886 | AZ174: 0.04071972669 | BA174: 27.80061655 | BB174: 2678 | BC174: Hargreaves-Samani | BD174: MJ /m^2 dia | BE174: h | BF174: BARATTO, R. L. Coeficiente de proporcionalidade Krs da equação de Hargreaves e Samani para o Brasil. Curitiba, 2016. 72p. Monografia (Trabalho de Conclusão de Curso - Agronomia) – Setor de Ciências Agrárias, Universidade Federal do Paraná.
Z175: Minas Gerais - MG | AA175: 226 | AB175: Passa Quatro | AC175: -22.3833 | AD175: -44.95 | AE175: Cwb | AF175: 0.1367877282 | AG175: 0.1558740395 | AH175: 0.1579518288 | AI175: 0.1593947435 | AJ175: 0.1586207626 | AK175: 0.1596455783 | AL175: 0.1632607331 | AM175: 0.1625563662 | AN175: 0.1522363357 | AO175: 0.1442524272 | AP175: 0.1457290386 | AQ175: 0.1474708852 | AR175: 0.1472193978 | AS175: 0.1602621589 | AT175: 0.1607015064 | AU175: 0.1449698765 | AV175: 0.1536452563 | AW175: 0.02563803868 | AX175: 0.3425564611 | AY175: 0.1536763481 | AZ175: 0.04443707726 | BA175: 28.9160159 | BB175: 2082 | BC175: Hargreaves-Samani | BD175: MJ /m^2 dia | BE175: h | BF175: BARATTO, R. L. Coeficiente de proporcionalidade Krs da equação de Hargreaves e Samani para o Brasil. Curitiba, 2016. 72p. Monografia (Trabalho de Conclusão de Curso - Agronomia) – Setor de Ciências Agrárias, Universidade Federal do Paraná.
Z176: Minas Gerais - MG | AA176: 213 | AB176: Passos | AC176: -20.7333 | AD176: -46.6333 | AE176: Cwa | AF176: 0.146053402 | AG176: 0.1569894028 | AH176: 0.1557852122 | AI176: 0.1643131794 | AJ176: 0.1662489305 | AK176: 0.1648009575 | AL176: 0.1656593072 | AM176: 0.1667706351 | AN176: 0.1549173651 | AO176: 0.1512700681 | AP176: 0.15283869 | AQ176: 0.1535135677 | AR176: 0.1505478824 | AS176: 0.1642951523 | AT176: 0.165027121 | AU176: 0.1522691016 | AV176: 0.1581272989 | AW176: 0.01503501175 | AX176: 0.2422316683 | AY176: 0.1586887257 | AZ176: 0.03451017127 | BA176: 21.74708451 | BB176: 2626 | BC176: Hargreaves-Samani | BD176: MJ /m^2 dia | BE176: h | BF176: BARATTO, R. L. Coeficiente de proporcionalidade Krs da equação de Hargreaves e Samani para o Brasil. Curitiba, 2016. 72p. Monografia (Trabalho de Conclusão de Curso - Agronomia) – Setor de Ciências Agrárias, Universidade Federal do Paraná.
Z177: Minas Gerais - MG | AA177: 220 | AB177: Patrocínio | AC177: -19 | AD177: -46.9667 | AE177: Cwb | AF177: 0.1402672291 | AG177: 0.1549584459 | AH177: 0.1465641019 | AI177: 0.1615689614 | AJ177: 0.1689917258 | AK177: 0.170252297 | AL177: 0.1684311935 | AM177: 0.1678829103 | AN177: 0.1553961409 | AO177: 0.1425971365 | AP177: 0.1444102622 | AQ177: 0.1396333452 | AR177: 0.1469959244 | AS177: 0.1652421791 | AT177: 0.1654615079 | AU177: 0.1429247281 | AV177: 0.1544102642 | AW177: 0.03731498184 | AX177: 0.2334255964 | AY177: 0.1552142832 | AZ177: 0.03410085787 | BA177: 21.9701803 | BB177: 2548 | BC177: Hargreaves-Samani | BD177: MJ /m^2 dia | BE177: h | BF177: BARATTO, R. L. Coeficiente de proporcionalidade Krs da equação de Hargreaves e Samani para o Brasil. Curitiba, 2016. 72p. Monografia (Trabalho de Conclusão de Curso - Agronomia) – Setor de Ciências Agrárias, Universidade Federal do Paraná.
Z178: Minas Gerais - MG | AA178: 242 | AB178: Pirapora | AC178: -17.3333 | AD178: -44.9333 | AE178: Aw | AF178: 0.1670780798 | AG178: 0.1814272231 | AH178: 0.1713650725 | AI178: 0.1781477457 | AJ178: 0.1709049314 | AK178: 0.1711686611 | AL178: 0.1671663208 | AM178: 0.1662277224 | AN178: 0.1621950236 | AO178: 0.1597459106 | AP178: 0.1546307886 | AQ178: 0.1579645275 | AR178: 0.171310009 | AS178: 0.1734460768 | AT178: 0.1666416037 | AU178: 0.157565088 | AV178: 0.1671238769 | AW178: 0.05008479877 | AX178: 0.2530193 | AY178: 0.1672374107 | AZ178: 0.03444809443 | BA178: 20.59831846 | BB178: 2302 | BC178: Hargreaves-Samani | BD178: MJ /m^2 dia | BE178: h | BF178: BARATTO, R. L. Coeficiente de proporcionalidade Krs da equação de Hargreaves e Samani para o Brasil. Curitiba, 2016. 72p. Monografia (Trabalho de Conclusão de Curso - Agronomia) – Setor de Ciências Agrárias, Universidade Federal do Paraná.
Z179: Minas Gerais - MG | AA179: 222 | AB179: Sacramento | AC179: -19.8833 | AD179: -47.4333 | AE179: Cwa | AF179: 0.1392589022 | AG179: 0.1597328733 | AH179: 0.1556093696 | AI179: 0.1698984743 | AJ179: 0.1783199221 | AK179: 0.1817971343 | AL179: 0.1831999741 | AM179: 0.1792042587 | AN179: 0.1617742361 | AO179: 0.1520298717 | AP179: 0.1492522811 | AQ179: 0.1496713278 | AR179: 0.1505902107 | AS179: 0.1742770448 | AT179: 0.176600557 | AU179: 0.1506791491 | AV179: 0.1626068001 | AW179: 0.02350937285 | AX179: 0.2471076353 | AY179: 0.1636676784 | AZ179: 0.03889748587 | BA179: 23.76613773 | BB179: 2644 | BC179: Hargreaves-Samani | BD179: MJ /m^2 dia | BE179: h | BF179: BARATTO, R. L. Coeficiente de proporcionalidade Krs da equação de Hargreaves e Samani para o Brasil. Curitiba, 2016. 72p. Monografia (Trabalho de Conclusão de Curso - Agronomia) – Setor de Ciências Agrárias, Universidade Federal do Paraná.
Z180: Minas Gerais - MG | AA180: 249 | AB180: Salinas | AC180: -16.1667 | AD180: -42.2833 | AE180: As | AF180: 0.1635545288 | AG180: 0.162988624 | AH180: 0.1554984139 | AI180: 0.1572275794 | AJ180: 0.143351355 | AK180: 0.1415640791 | AL180: 0.145482709 | AM180: 0.1483587884 | AN180: 0.1454731892 | AO180: 0.1422008325 | AP180: 0.142251335 | AQ180: 0.1557888863 | AR180: 0.1625595142 | AS180: 0.1488920782 | AT180: 0.148413985 | AU180: 0.1445904918 | AV180: 0.1493412681 | AW180: 0.02121259968 | AX180: 0.247970289 | AY180: 0.1496446279 | AZ180: 0.03503586356 | BA180: 23.41271054 | BB180: 2230 | BC180: Hargreaves-Samani | BD180: MJ /m^2 dia | BE180: h | BF180: BARATTO, R. L. Coeficiente de proporcionalidade Krs da equação de Hargreaves e Samani para o Brasil. Curitiba, 2016. 72p. Monografia (Trabalho de Conclusão de Curso - Agronomia) – Setor de Ciências Agrárias, Universidade Federal do Paraná.
Z181: Minas Gerais - MG | AA181: 225 | AB181: São Gonçalo do Abaeté | AC181: -18.2 | AD181: -45.4667 | AE181: Cwa | AF181: 0.1632565205 | AG181: 0.1864194708 | AH181: 0.1812404527 | AI181: 0.200469159 | AJ181: 0.2086848938 | AK181: 0.2136124326 | AL181: 0.2145441512 | AM181: 0.2041989302 | AN181: 0.1837920197 | AO181: 0.1602707169 | AP181: 0.1535656216 | AQ181: 0.1577741561 | AR181: 0.1731670935 | AS181: 0.2046367762 | AT181: 0.2030459127 | AU181: 0.1577531184 | AV181: 0.1824533756 | AW181: 0.03725822865 | AX181: 0.2821087665 | AY181: 0.1852677861 | AZ181: 0.0432948847 | BA181: 23.36881419 | BB181: 2666 | BC181: Hargreaves-Samani | BD181: MJ /m^2 dia | BE181: h | BF181: BARATTO, R. L. Coeficiente de proporcionalidade Krs da equação de Hargreaves e Samani para o Brasil. Curitiba, 2016. 72p. Monografia (Trabalho de Conclusão de Curso - Agronomia) – Setor de Ciências Agrárias, Universidade Federal do Paraná.
Z182: Minas Gerais - MG | AA182: 211 | AB182: São João Del Rei | AC182: -21.1 | AD182: -44.25 | AE182: Cwb | AF182: 0.135832143 | AG182: 0.154433114 | AH182: 0.1533164472 | AI182: 0.1606964974 | AJ182: 0.1610309068 | AK182: 0.15836488 | AL182: 0.1586166518 | AM182: 0.1571964344 | AN182: 0.147369081 | AO182: 0.1377559097 | AP182: 0.1375348996 | AQ182: 0.1417832269 | AR182: 0.1453246205 | AS182: 0.1590014156 | AT182: 0.1562501141 | AU182: 0.1388751751 | AV182: 0.1500208697 | AW182: 0.03345964795 | AX182: 0.2537012558 | AY182: 0.1505652006 | AZ182: 0.03601760222 | BA182: 23.92159813 | BB182: 2576 | BC182: Hargreaves-Samani | BD182: MJ /m^2 dia | BE182: h | BF182: BARATTO, R. L. Coeficiente de proporcionalidade Krs da equação de Hargreaves e Samani para o Brasil. Curitiba, 2016. 72p. Monografia (Trabalho de Conclusão de Curso - Agronomia) – Setor de Ciências Agrárias, Universidade Federal do Paraná.
Z183: Minas Gerais - MG | AA183: 244 | AB183: São Romão | AC183: -16.3667 | AD183: -45.0667 | AE183: As | AF183: 0.1651683712 | AG183: 0.1737462738 | AH183: 0.1700685434 | AI183: 0.1762865527 | AJ183: 0.1680041125 | AK183: 0.1666539751 | AL183: 0.1613949875 | AM183: 0.1594315291 | AN183: 0.1546730866 | AO183: 0.1527493105 | AP183: 0.1501552565 | AQ183: 0.1540107891 | AR183: 0.1670191944 | AS183: 0.1709269867 | AT183: 0.1593777605 | AU183: 0.1530870502 | AV183: 0.1619993539 | AW183: 0.05057442848 | AX183: 0.2378070172 | AY183: 0.1624779082 | AZ183: 0.03154579175 | BA183: 19.41543444 | BB183: 2328 | BC183: Hargreaves-Samani | BD183: MJ /m^2 dia | BE183: h | BF183: BARATTO, R. L. Coeficiente de proporcionalidade Krs da equação de Hargreaves e Samani para o Brasil. Curitiba, 2016. 72p. Monografia (Trabalho de Conclusão de Curso - Agronomia) – Setor de Ciências Agrárias, Universidade Federal do Paraná.
Z184: Minas Gerais - MG | AA184: 219 | AB184: Serra dos Aimorés | AC184: -17.8 | AD184: -40.25 | AE184: Aw | AF184: 0.1622086284 | AG184: 0.1638209464 | AH184: 0.1627752883 | AI184: 0.1677685971 | AJ184: 0.161132468 | AK184: 0.159864018 | AL184: 0.1643614887 | AM184: 0.1567983177 | AN184: 0.1463245355 | AO184: 0.1421750072 | AP184: 0.1458256698 | AQ184: 0.1579782665 | AR184: 0.1645742378 | AS184: 0.1629881603 | AT184: 0.1566269395 | AU184: 0.1456546855 | AV184: 0.155546265 | AW184: 0.02240771388 | AX184: 0.2334988476 | AY184: 0.1574589489 | AZ184: 0.03646534918 | BA184: 23.15863876 | BB184: 2549 | BC184: Hargreaves-Samani | BD184: MJ /m^2 dia | BE184: h | BF184: BARATTO, R. L. Coeficiente de proporcionalidade Krs da equação de Hargreaves e Samani para o Brasil. Curitiba, 2016. 72p. Monografia (Trabalho de Conclusão de Curso - Agronomia) – Setor de Ciências Agrárias, Universidade Federal do Paraná.
Z185: Minas Gerais - MG | AA185: 224 | AB185: Teófilo Otoni | AC185: -17.9 | AD185: -41.5167 | AE185: Aw | AF185: 0.1714769832 | AG185: 0.1802541639 | AH185: 0.1763383392 | AI185: 0.1758413436 | AJ185: 0.168434148 | AK185: 0.1730575425 | AL185: 0.1729342671 | AM185: 0.1689696416 | AN185: 0.1524690635 | AO185: 0.1476830955 | AP185: 0.1467189614 | AQ185: 0.1622324512 | AR185: 0.1735273783 | AS185: 0.1733952662 | AT185: 0.1661412048 | AU185: 0.1484997576 | AV185: 0.1637287193 | AW185: 0.02446436375 | AX185: 0.2564698424 | AY185: 0.1660737251 | AZ185: 0.04015142442 | BA185: 24.17686748 | BB185: 2659 | BC185: Hargreaves-Samani | BD185: MJ /m^2 dia | BE185: h | BF185: BARATTO, R. L. Coeficiente de proporcionalidade Krs da equação de Hargreaves e Samani para o Brasil. Curitiba, 2016. 72p. Monografia (Trabalho de Conclusão de Curso - Agronomia) – Setor de Ciências Agrárias, Universidade Federal do Paraná.
Z186: Minas Gerais - MG | AA186: 208 | AB186: Timóteo | AC186: -19.5667 | AD186: -42.6333 | AE186: Aw | AF186: 0.132065303 | AG186: 0.1520689495 | AH186: 0.1442718217 | AI186: 0.1550383565 | AJ186: 0.1627517147 | AK186: 0.1654757078 | AL186: 0.1713083395 | AM186: 0.1599163825 | AN186: 0.141552692 | AO186: 0.1303275671 | AP186: 0.1260521778 | AQ186: 0.1349559264 | AR186: 0.1420636255 | AS186: 0.1588770552 | AT186: 0.1609356483 | AU186: 0.1285425675 | AV186: 0.1478906296 | AW186: 0.01864301401 | AX186: 0.251372931 | AY186: 0.1485878391 | AZ186: 0.04302053046 | BA186: 28.95292826 | BB186: 2590 | BC186: Hargreaves-Samani | BD186: MJ /m^2 dia | BE186: h | BF186: BARATTO, R. L. Coeficiente de proporcionalidade Krs da equação de Hargreaves e Samani para o Brasil. Curitiba, 2016. 72p. Monografia (Trabalho de Conclusão de Curso - Agronomia) – Setor de Ciências Agrárias, Universidade Federal do Paraná.
Z187: Minas Gerais - MG | AA187: 204 | AB187: Uberlândia | AC187: -18.9167 | AD187: -48.25 | AE187: Cwa | AF187: 0.1595463671 | AG187: 0.1741874425 | AH187: 0.1803691646 | AI187: 0.1994656161 | AJ187: 0.2046344867 | AK187: 0.208094717 | AL187: 0.2058493001 | AM187: 0.2027800666 | AN187: 0.182343617 | AO187: 0.1696237203 | AP187: 0.1662349402 | AQ187: 0.1611251364 | AR187: 0.168596939 | AS187: 0.2024830065 | AT187: 0.2000420291 | AU187: 0.167119599 | AV187: 0.1848955478 | AW187: 0.01602082576 | AX187: 0.3066961077 | AY187: 0.1842338715 | AZ187: 0.04648659932 | BA187: 25.23238476 | BB187: 2663 | BC187: Hargreaves-Samani | BD187: MJ /m^2 dia | BE187: h | BF187: BARATTO, R. L. Coeficiente de proporcionalidade Krs da equação de Hargreaves e Samani para o Brasil. Curitiba, 2016. 72p. Monografia (Trabalho de Conclusão de Curso - Agronomia) – Setor de Ciências Agrárias, Universidade Federal do Paraná.
Z188: Minas Gerais - MG | AA188: 239 | AB188: Unai | AC188: -16.55 | AD188: -46.8667 | AE188: Aw | AF188: 0.1615212709 | AG188: 0.1703609093 | AH188: 0.1697449176 | AI188: 0.180379499 | AJ188: 0.1751082191 | AK188: 0.1751774989 | AL188: 0.1731858538 | AM188: 0.1713822648 | AN188: 0.1612076596 | AO188: 0.1523332107 | AP188: 0.1499239898 | AQ188: 0.1566823367 | AR188: 0.1647599889 | AS188: 0.1780787162 | AT188: 0.17034027 | AU188: 0.1526557622 | AV188: 0.1662238456 | AW188: 0.03025231522 | AX188: 0.2363956724 | AY188: 0.1665690128 | AZ188: 0.03259243953 | BA188: 19.56692844 | BB188: 2306 | BC188: Hargreaves-Samani | BD188: MJ /m^2 dia | BE188: h | BF188: BARATTO, R. L. Coeficiente de proporcionalidade Krs da equação de Hargreaves e Samani para o Brasil. Curitiba, 2016. 72p. Monografia (Trabalho de Conclusão de Curso - Agronomia) – Setor de Ciências Agrárias, Universidade Federal do Paraná.
Z189: Minas Gerais - MG | AA189: 212 | AB189: Varginha | AC189: -21.5667 | AD189: -45.4 | AE189: Cwb | AF189: 0.1409547439 | AG189: 0.1557470644 | AH189: 0.1557155182 | AI189: 0.1621835438 | AJ189: 0.1690694877 | AK189: 0.1708847907 | AL189: 0.1698521459 | AM189: 0.1690334588 | AN189: 0.1531367517 | AO189: 0.142541502 | AP189: 0.1430872589 | AQ189: 0.1443715472 | AR189: 0.1474601377 | AS189: 0.1659700122 | AT189: 0.1661363434 | AU189: 0.1435768513 | AV189: 0.1556919669 | AW189: 0.03241698095 | AX189: 0.2672554825 | AY189: 0.1565420336 | AZ189: 0.03592032539 | BA189: 22.9461216 | BB189: 2712 | BC189: Hargreaves-Samani | BD189: MJ /m^2 dia | BE189: h | BF189: BARATTO, R. L. Coeficiente de proporcionalidade Krs da equação de Hargreaves e Samani para o Brasil. Curitiba, 2016. 72p. Monografia (Trabalho de Conclusão de Curso - Agronomia) – Setor de Ciências Agrárias, Universidade Federal do Paraná.
Z190: Minas Gerais - MG | AA190: 248 | AB190: Verdelândia | AC190: -15.6 | AD190: -43.6 | AE190: As | AF190: 0.1619031198 | AG190: 0.1677211241 | AH190: 0.1629166797 | AI190: 0.162417041 | AJ190: 0.1544951353 | AK190: 0.1502198694 | AL190: 0.1503353264 | AM190: 0.1461544666 | AN190: 0.1440797815 | AO190: 0.1417084188 | AP190: 0.1403987568 | AQ190: 0.152860392 | AR190: 0.1655559842 | AS190: 0.1582891127 | AT190: 0.1484946881 | AU190: 0.1426727721 | AV190: 0.152642549 | AW190: 0.02255876267 | AX190: 0.2252482299 | AY190: 0.1535721354 | AZ190: 0.03474458449 | BA190: 22.62427647 | BB190: 2156 | BC190: Hargreaves-Samani | BD190: MJ /m^2 dia | BE190: h | BF190: BARATTO, R. L. Coeficiente de proporcionalidade Krs da equação de Hargreaves e Samani para o Brasil. Curitiba, 2016. 72p. Monografia (Trabalho de Conclusão de Curso - Agronomia) – Setor de Ciências Agrárias, Universidade Federal do Paraná.
Z191: Minas Gerais - MG | AA191: 207 | AB191: Viçosa | AC191: -20.7667 | AD191: -42.8667 | AE191: Cwa | AF191: 0.1329408652 | AG191: 0.1521943473 | AH191: 0.1421198568 | AI191: 0.1440205128 | AJ191: 0.1439687509 | AK191: 0.1404041474 | AL191: 0.1443890431 | AM191: 0.1402673645 | AN191: 0.1285693254 | AO191: 0.1230604868 | AP191: 0.1229518305 | AQ191: 0.1274447512 | AR191: 0.1390468766 | AS191: 0.1429041159 | AT191: 0.1395019355 | AU191: 0.1230798149 | AV191: 0.1359985231 | AW191: 0.02052160898 | AX191: 0.227821279 | AY191: 0.136396255 | AZ191: 0.03686012617 | BA191: 27.02429489 | BB191: 2713 | BC191: Hargreaves-Samani | BD191: MJ /m^2 dia | BE191: h | BF191: BARATTO, R. L. Coeficiente de proporcionalidade Krs da equação de Hargreaves e Samani para o Brasil. Curitiba, 2016. 72p. Monografia (Trabalho de Conclusão de Curso - Agronomia) – Setor de Ciências Agrárias, Universidade Federal do Paraná.
Y192: 14 | Z192: Pará - PA | AA192: 171 | AB192: Belém | AC192: -1.4 | AD192: -48.4333 | AE192: Af | AF192: 0.1361139285 | AG192: 0.1298750919 | AH192: 0.1314734561 | AI192: 0.1339576321 | AJ192: 0.1456536054 | AK192: 0.1580876531 | AL192: 0.1653506909 | AM192: 0.1747339165 | AN192: 0.1587793216 | AO192: 0.1556402611 | AP192: 0.1513327267 | AQ192: 0.1439338596 | AR192: 0.1388804088 | AS192: 0.1429798251 | AT192: 0.1693292874 | AU192: 0.1517664021 | AV192: 0.1513060194 | AW192: 0.04893654149 | AX192: 0.2518765285 | AY192: 0.1491309565 | AZ192: 0.03470973996 | BA192: 23.27467133 | BB192: 2219 | BC192: Hargreaves-Samani | BD192: MJ /m^2 dia | BE192: h | BF192: BARATTO, R. L. Coeficiente de proporcionalidade Krs da equação de Hargreaves e Samani para o Brasil. Curitiba, 2016. 72p. Monografia (Trabalho de Conclusão de Curso - Agronomia) – Setor de Ciências Agrárias, Universidade Federal do Paraná.
Z193: Pará - PA | AA193: 177 | AB193: Bragrança | AC193: -1.0667 | AD193: -46.7667 | AE193: Am | AF193: 0.1652795009 | AG193: 0.1498127561 | AH193: 0.1538434219 | AI193: 0.1480994736 | AJ193: 0.1507594218 | AK193: 0.1671951997 | AL193: 0.1743718558 | AM193: 0.1867353543 | AN193: 0.1874378844 | AO193: 0.1870912359 | AP193: 0.1853916454 | AQ193: 0.1755036439 | AR193: 0.1602716807 | AS193: 0.1527151309 | AT193: 0.1815826385 | AU193: 0.1854394328 | AV193: 0.1707784486 | AW193: 0.01836000435 | AX193: 0.2364590535 | AY193: 0.170777569 | AZ193: 0.03961911329 | BA193: 23.1992489 | BB193: 1925 | BC193: Hargreaves-Samani | BD193: MJ /m^2 dia | BE193: h | BF193: BARATTO, R. L. Coeficiente de proporcionalidade Krs da equação de Hargreaves e Samani para o Brasil. Curitiba, 2016. 72p. Monografia (Trabalho de Conclusão de Curso - Agronomia) – Setor de Ciências Agrárias, Universidade Federal do Paraná.
Z194: Pará - PA | AA194: 172 | AB194: Castanhal | AC194: -1.3 | AD194: -47.9167 | AE194: Am | AF194: 0.1497555218 | AG194: 0.1439974595 | AH194: 0.1437040512 | AI194: 0.1526449574 | AJ194: 0.163931522 | AK194: 0.1798878889 | AL194: 0.1796308175 | AM194: 0.1800653234 | AN194: 0.1694745485 | AO194: 0.1585003958 | AP194: 0.1558116576 | AQ194: 0.148223765 | AR194: 0.1486389903 | AS194: 0.1631678573 | AT194: 0.1779523784 | AU194: 0.1545906728 | AV194: 0.1601307852 | AW194: 0.03831359368 | AX194: 0.4243859964 | AY194: 0.1615545208 | AZ194: 0.03658933321 | BA194: 22.64828804 | BB194: 2003 | BC194: Hargreaves-Samani | BD194: MJ /m^2 dia | BE194: h | BF194: BARATTO, R. L. Coeficiente de proporcionalidade Krs da equação de Hargreaves e Samani para o Brasil. Curitiba, 2016. 72p. Monografia (Trabalho de Conclusão de Curso - Agronomia) – Setor de Ciências Agrárias, Universidade Federal do Paraná.
Z195: Pará - PA | AA195: 169 | AB195: Gurupá | AC195: -0.7 | AD195: -51.4167 | AE195: Am | AF195: 0.1343472063 | AG195: 0.1299837071 | AH195: 0.1368563032 | AI195: 0.1428100265 | AJ195: 0.1493283746 | AK195: 0.1565089382 | AL195: 0.155865038 | AM195: 0.1546671222 | AN195: 0.1508051294 | AO195: 0.1469520846 | AP195: 0.1414185454 | AQ195: 0.1313787359 | AR195: 0.1314920253 | AS195: 0.1470707411 | AT195: 0.1536425971 | AU195: 0.1418941927 | AV195: 0.1434124636 | AW195: 0.03095843585 | AX195: 0.2132161792 | AY195: 0.1445213284 | AZ195: 0.03227463833 | BA195: 22.3320936 | BB195: 1916 | BC195: Hargreaves-Samani | BD195: MJ /m^2 dia | BE195: h | BF195: BARATTO, R. L. Coeficiente de proporcionalidade Krs da equação de Hargreaves e Samani para o Brasil. Curitiba, 2016. 72p. Monografia (Trabalho de Conclusão de Curso - Agronomia) – Setor de Ciências Agrárias, Universidade Federal do Paraná.
Z196: Pará - PA | AA196: 181 | AB196: Itaituba | AC196: -4.2667 | AD196: -55.9833 | AE196: Af | AF196: 0.1580866813 | AG196: 0.1591124345 | AH196: 0.1685497817 | AI196: 0.1808751122 | AJ196: 0.1775943419 | AK196: 0.1951789466 | AL196: 0.1892888238 | AM196: 0.184309223 | AN196: 0.1800018028 | AO196: 0.1711763326 | AP196: 0.1637952511 | AQ196: 0.1631592545 | AR196: 0.1588337014 | AS196: 0.1830882906 | AT196: 0.186359859 | AU196: 0.1680103152 | AV196: 0.1748325338 | AW196: 0.01888829447 | AX196: 0.2481034882 | AY196: 0.1746970796 | AZ196: 0.04132718958 | BA196: 23.65648567 | BB196: 1823 | BC196: Hargreaves-Samani | BD196: MJ /m^2 dia | BE196: h | BF196: BARATTO, R. L. Coeficiente de proporcionalidade Krs da equação de Hargreaves e Samani para o Brasil. Curitiba, 2016. 72p. Monografia (Trabalho de Conclusão de Curso - Agronomia) – Setor de Ciências Agrárias, Universidade Federal do Paraná.
Z197: Pará - PA | AA197: 173 | AB197: Medicilândia | AC197: -3.5 | AD197: -52.95 | AE197: Am | AF197: 0.1436112509 | AG197: 0.1517563696 | AH197: 0.154649561 | AI197: 0.1578886814 | AJ197: 0.1684358483 | AK197: 0.1860051622 | AL197: 0.1837013319 | AM197: 0.1741446876 | AN197: 0.1624768956 | AO197: 0.1681058745 | AP197: 0.160169796 | AQ197: 0.1493465546 | AR197: 0.1483392675 | AS197: 0.1675897334 | AT197: 0.1749656222 | AU197: 0.1613576468 | AV197: 0.1634629879 | AW197: 0.03125554071 | AX197: 0.2457063687 | AY197: 0.1637582744 | AZ197: 0.03537647333 | BA197: 21.60286157 | BB197: 2094 | BC197: Hargreaves-Samani | BD197: MJ /m^2 dia | BE197: h | BF197: BARATTO, R. L. Coeficiente de proporcionalidade Krs da equação de Hargreaves e Samani para o Brasil. Curitiba, 2016. 72p. Monografia (Trabalho de Conclusão de Curso - Agronomia) – Setor de Ciências Agrárias, Universidade Federal do Paraná.
Z198: Pará - PA | AA198: 170 | AB198: Melgaço | AC198: -1.4833 | AD198: -50.9167 | AE198: Af | AF198: 0.1361042532 | AG198: 0.1336061904 | AH198: 0.1431477542 | AI198: 0.1435725655 | AJ198: 0.1498494025 | AK198: 0.1624564347 | AL198: 0.1629346299 | AM198: 0.1592950476 | AN198: 0.155269531 | AO198: 0.1529292038 | AP198: 0.1515995152 | AQ198: 0.1417490738 | AR198: 0.1370863295 | AS198: 0.1491966261 | AT198: 0.1607375677 | AU198: 0.1503751189 | AV198: 0.1503933751 | AW198: 0.03206371047 | AX198: 0.2297042147 | AY198: 0.149896828 | AZ198: 0.03621275491 | BA198: 24.15845312 | BB198: 1936 | BC198: Hargreaves-Samani | BD198: MJ /m^2 dia | BE198: h | BF198: BARATTO, R. L. Coeficiente de proporcionalidade Krs da equação de Hargreaves e Samani para o Brasil. Curitiba, 2016. 72p. Monografia (Trabalho de Conclusão de Curso - Agronomia) – Setor de Ciências Agrárias, Universidade Federal do Paraná.
Z199: Pará - PA | AA199: 174 | AB199: Paragominas | AC199: -3 | AD199: -47.3333 | AE199: Am | AF199: 0.1595685634 | AG199: 0.1633547784 | AH199: 0.1682863803 | AI199: 0.1710491047 | AJ199: 0.1760347275 | AK199: 0.1792251864 | AL199: 0.1756424246 | AM199: 0.162431013 | AN199: 0.1647793815 | AO199: 0.1589761779 | AP199: 0.1554073498 | AQ199: 0.1606055569 | AR199: 0.1619867137 | AS199: 0.1735070387 | AT199: 0.1696912135 | AU199: 0.1578834353 | AV199: 0.1644822418 | AW199: 0.06591073256 | AX199: 0.2342412199 | AY199: 0.166556659 | AZ199: 0.02903135768 | BA199: 17.43031942 | BB199: 2199 | BC199: Hargreaves-Samani | BD199: MJ /m^2 dia | BE199: h | BF199: BARATTO, R. L. Coeficiente de proporcionalidade Krs da equação de Hargreaves e Samani para o Brasil. Curitiba, 2016. 72p. Monografia (Trabalho de Conclusão de Curso - Agronomia) – Setor de Ciências Agrárias, Universidade Federal do Paraná.
Z200: Pará - PA | AA200: 180 | AB200: Paraupebas | AC200: -6.0667 | AD200: -50.1333 | AE200: Am | AF200: 0.1511756416 | AG200: 0.1467268643 | AH200: 0.1572076822 | AI200: 0.1601352223 | AJ200: 0.1810498516 | AK200: 0.2036234939 | AL200: 0.2035091155 | AM200: 0.1741890106 | AN200: 0.1544552578 | AO200: 0.1513314233 | AP200: 0.1472067466 | AQ200: 0.1506383947 | AR200: 0.1529832491 | AS200: 0.1758981789 | AT200: 0.1805015339 | AU200: 0.150368258 | AV200: 0.1639867979 | AW200: 0.02137698512 | AX200: 0.2827692448 | AY200: 0.1652895766 | AZ200: 0.04891061864 | BA200: 29.59086692 | BB200: 1862 | BC200: Hargreaves-Samani | BD200: MJ /m^2 dia | BE200: h | BF200: BARATTO, R. L. Coeficiente de proporcionalidade Krs da equação de Hargreaves e Samani para o Brasil. Curitiba, 2016. 72p. Monografia (Trabalho de Conclusão de Curso - Agronomia) – Setor de Ciências Agrárias, Universidade Federal do Paraná.
... 176 more rows

Sheet Plan1 (hidden)
J3: Acre - AC | K3: 11
J4: Alagoas - AL | K4: 46 | L4: =K3 -> 11
J5: Amapá - AP | K5: 7 | L5: =L4+K4 -> 57
J6: Amazonas - AM | K6: 6 | L6: 64
J7: Bahia - BA | K7: 35 | L7: 70
J8: Ceará - CE | K8: 8 | L8: 105
J9: Distrito Federal - DF | K9: 1 | L9: 113
J10: Espirito Santo - ES | K10: 24 | L10: 114
J11: Goiás - GO | K11: 79 | L11: 138
J12: Maranhão - MA | K12: 160 | L12: 217
J13: Mato Grosso - MT | K13: 22 | L13: 377
J14: Mato Grosso do Sul - MS | K14: 108 | L14: 399
J15: Minas Gerais - MG | K15: 68 | L15: 507
J16: Pará - PA | K16: 76 | L16: 575
J17: Paraíba - PB | K17: 91 | L17: 651
J18: Paraná - PR | K18: 58 | L18: 742
J19: Pernanbuco - PE | K19: 23 | L19: 800
J20: Piauí - PI | K20: 105 | L20: 823
J21: Rio de Janeiro - RJ | K21: 64 | L21: 928
J22: Rio Grande do Norte - RN | K22: 167 | L22: 992
J23: Rio Grande do Sul - RS | K23: 18 | L23: 1159
J24: Rondônia - RO | K24: 34 | L24: 1177
J25: Roraima - RR | K25: 5 | L25: 1211
J26: Santa Catarina - SC | K26: 61 | L26: 1216
J27: São Paulo - SP | K27: 91 | L27: 1277
J28: Sergipe - SE | K28: 49 | L28: 1368
J29: Tocantins - TO | K29: 21 | L29: 1417
B31: Eliminar | D31: Paraná | E31: Projeto Noroenste, SUCEPAR. | F31: Jacarezinho | G31: 23º 09' 38" S | H31: 49º 58' 10" W | I31: 31200 | K31: 50 | M31: 1.38 | N31: Tr = 3 anos | P31: mm/h | Q31: minuto | R31: anos | S31: PROJETO NOROENSTE, SUCEPAR, citado em FESTI, A. V. Coletânia das equações de chuvas no Brasil. XII Simpósio Brasileiro de Recursos Hídricos, São Paulo, 2007.
B32: Eliminar | D32: Paraná | E32: Fendrich, 1986. | F32: Palotina | G32: 24º 17' 02" S | H32: 53º 50' 24" W | I32: 2737.79 | K32: 29 | M32: 0.833 | N32: Tr = 10 anos | P32: mm/h | Q32: minuto | R32: anos | S32: FENDRICH (1986), citado em FESTI, A. V. Coletânia das equações de chuvas no Brasil. XII Simpósio Brasileiro de Recursos Hídricos, São Paulo, 2007.
B33: Eliminar | D33: Rondônia | F33: Rondônia | G33: 9º 45' 43" S | H33: 64º 54' 14" W | I33: 2362.74 | J33: 0.12 | K33: 24 | M33: 0.89 | P33: mm/h | Q33: minuto | R33: anos | S33: TISCHER. L, P. Equações de chuvas intensas no estado de Roraima. Universidade Federal de Roraima. Boa Vista-RR, 2015.
B34: Trocar posição | D34: Paraíba | E34: Reg. Não-Linear | F34: João Pessoa | G34: 07° 6′ 55″ S | H34: 34° 51′ 40″ W | I34: 369.4 | J34: 0.15 | K34: 5 | M34: 0.568 | P34: mm/h | Q34: minuto | R34: anos | S34: SOUZA, J. A. Estudo das chuvas intesas nas zonas rural e urbana de João Pessoa. 1972. 87 f. Dissertação (Mestrado em Ciências) - Universidade Federal da Paraíba, Campina Grande (PB), 1972.
I36: Latitude | N36: Longitude
C38: Acre | E38: Bujari | F38: 09º 34' 00" S | G38: 68º 17' 00" W | I38: =MID(F38,1,2) -> 09 | J38: =MID(F38,5,2) -> 34 | K38: =MID(F38,9,2) -> 00 | L38: =MID(F38,13,1) -> S | M38: =-((I38*1)+(J38*1/60)+(K38*1/(60*60))) -> -9.566666667 | N38: =MID(G38,1,2) -> 68 | O38: =MID(G38,5,2) -> 17 | P38: =MID(G38,9,2) -> 00 | Q38: =MID(G38,13,1) -> W | R38: =-((N38*1)+(O38*1/60)+(P38*1/(60*60))) -> -68.28333333
C39: Acre | E39: Capixaba | F39: 10º 34' 33" S | G39: 67º 40' 36" W | I39: 10 | J39: 34 | K39: =MID(F39,9,2) -> 33 | L39: =MID(F39,13,1) -> S | M39: =-((I39*1)+(J39*1/60)+(K39*1/(60*60))) -> -10.57583333 | N39: =MID(G39,1,2) -> 67 | O39: =MID(G39,5,2) -> 40 | P39: =MID(G39,9,2) -> 36 | Q39: =MID(G39,13,1) -> W | R39: -67.67666667
C40: Acre | E40: Cruzeiro do Sul | F40: 07º 26' 08" S | G40: 73º 39' 08" W | I40: 07 | J40: 26 | K40: 08 | L40: S | M40: -7.435555556 | N40: 73 | O40: 39 | P40: 08 | Q40: W | R40: -73.65222222
C41: Acre | E41: Feijó | F41: 08º 09' 49" S | G41: 70º 21' 23" W | I41: 08 | J41: 09 | K41: 49 | L41: S | M41: -8.163611111 | N41: 70 | O41: 21 | P41: 23 | Q41: W | R41: -70.35638889
C42: Acre | E42: Marechal Thaumaturgo (872000) | F42: 08º 56' 07" S | G42: 72º 47' 06" W | I42: 08 | J42: 56 | K42: 07 | L42: S | M42: -8.935277778 | N42: 72 | O42: 47 | P42: 06 | Q42: W | R42: -72.785
C43: Acre | E43: Marechal Thaumaturgo (972000) | F43: 09º 24' 06" S | G43: 72º 42' 09" W | I43: 09 | J43: 24 | K43: 06 | L43: S | M43: -9.401666667 | N43: 72 | O43: 42 | P43: 09 | Q43: W | R43: -72.7025
C44: Acre | E44: Plácido de Castro | F44: 10º 19' 27" S | G44: 67º 11' 19" W | I44: 10 | J44: 19 | K44: 27 | L44: S | M44: -10.32416667 | N44: 67 | O44: 11 | P44: 19 | Q44: W | R44: =-((N44*1)+(O44*1/60)+(P44*1/(60*60))) -> -67.18861111
C45: Acre | E45: Porto Walter | F45: 08º 16' 03" S | G45: 72º 44' 04" W | I45: 08 | J45: 16 | K45: 03 | L45: S | M45: -8.2675 | N45: 72 | O45: 44 | P45: 04 | Q45: W | R45: -72.73444444
C46: Acre | E46: Rio Branco | F46: 09º 58' 29" S | G46: 67º 48' 36" W | I46: 09 | J46: 58 | K46: 29 | L46: S | M46: -9.974722222 | N46: 67 | O46: 48 | P46: 36 | Q46: W | R46: -67.81
C47: Acre | E47: Tarauacá | F47: 07º 51' 01" S | G47: 72º 01' 09" W | I47: 07 | J47: 51 | K47: 01 | L47: S | M47: -7.850277778 | N47: 72 | O47: 01 | P47: 09 | Q47: W | R47: -72.01916667
C48: Acre | E48: Xapuri | F48: 10º 38' 59" S | G48: 68º 30' 24" W | I48: 10 | J48: 38 | K48: 59 | L48: S | M48: -10.64972222 | N48: 68 | O48: 30 | P48: 24 | Q48: W | R48: -68.50666667
C49: Alagoas | E49: Anadia | F49: 09º 41' 01" S | G49: 36º 18' 13" W | I49: 09 | J49: 41 | K49: 01 | L49: S | M49: -9.683611111 | N49: 36 | O49: 18 | P49: 13 | Q49: W | R49: -36.30361111
C50: Alagoas | E50: Arapiraca | F50: 09º 45' 09" S | G50: 36º 39' 40" W | I50: 09 | J50: 45 | K50: 09 | L50: S | M50: -9.7525 | N50: 36 | O50: 39 | P50: 40 | Q50: W | R50: -36.66111111
C51: Alagoas | E51: Arapiraca | F51: 09º 45' 00" S | G51: 36º 39' 00" W | I51: 09 | J51: 45 | K51: 00 | L51: S | M51: -9.75 | N51: 36 | O51: 39 | P51: 00 | Q51: W | R51: -36.65
C52: Alagoas | E52: Atalaia | F52: 09º 30' 26" S | G52: 36º 01' 24" W | I52: 09 | J52: 30 | K52: 26 | L52: S | M52: -9.507222222 | N52: 36 | O52: 01 | P52: 24 | Q52: W | R52: -36.02333333
C53: Alagoas | E53: Canapi | F53: 09º 11' 00" S | G53: 37º 26' 00" W | I53: 09 | J53: 11 | K53: 00 | L53: S | M53: -9.183333333 | N53: 37 | O53: 26 | P53: 00 | Q53: W | R53: -37.43333333
C54: Alagoas | E54: Capela | F54: 09º 26' 00" S | G54: 36º 05' 00" W | I54: 09 | J54: 26 | K54: 00 | L54: S | M54: -9.433333333 | N54: 36 | O54: 05 | P54: 00 | Q54: W | R54: -36.08333333
C55: Alagoas | E55: Coruripe (1036011) | F55: 10º 07' 00" S | G55: 36º 24' 00" W | I55: 10 | J55: 07 | K55: 00 | L55: S | M55: -10.11666667 | N55: 36 | O55: 24 | P55: 00 | Q55: W | R55: -36.4
C56: Alagoas | E56: Coruripe (1036012) | F56: 10º 07' 00" S | G56: 36º 10' 00" W | I56: 10 | J56: 07 | K56: 00 | L56: S | M56: -10.11666667 | N56: 36 | O56: 10 | P56: 00 | Q56: W | R56: -36.16666667
C57: Alagoas | E57: Coruripe (1036013) | F57: 10º 01' 53" S | G57: 36º 18' 14" W | I57: 10 | J57: 01 | K57: 53 | L57: S | M57: -10.03138889 | N57: 36 | O57: 18 | P57: 14 | Q57: W | R57: -36.30388889
C58: Alagoas | E58: Delmiro Gouvéia | F58: 09º 23' 34" S | G58: 37º 59' 39" W | I58: 09 | J58: 23 | K58: 34 | L58: S | M58: -9.392777778 | N58: 37 | O58: 59 | P58: 39 | Q58: W | R58: -37.99416667
C59: Alagoas | E59: Flexeiras | F59: 09º 17' 00" S | G59: 35º 43' 00" W | I59: 09 | J59: 17 | K59: 00 | L59: S | M59: -9.283333333 | N59: 35 | O59: 43 | P59: 00 | Q59: W | R59: -35.71666667
C60: Alagoas | E60: Igreja Nova | F60: 10º 07' 00" S | G60: 36º 39' 00" W | I60: 10 | J60: 07 | K60: 00 | L60: S | M60: -10.11666667 | N60: 36 | O60: 39 | P60: 00 | Q60: W | R60: -36.65
C61: Alagoas | E61: Jacuípe | F61: 08º 50' 31" S | G61: 35º 26' 51" W | I61: 08 | J61: 50 | K61: 31 | L61: S | M61: -8.841944444 | N61: 35 | O61: 26 | P61: 51 | Q61: W | R61: -35.4475
C62: Alagoas | E62: Maceió | F62: 09º 39' 57" S | G62: 35º 44' 07" W | I62: 09 | J62: 39 | K62: 57 | L62: S | M62: -9.665833333 | N62: 35 | O62: 44 | P62: 07 | Q62: W | R62: -35.73527778
C63: Alagoas | E63: Mar Vermelho | F63: 09º 27' 00" S | G63: 36º 23' 00" W | I63: 09 | J63: 27 | K63: 00 | L63: S | M63: -9.45 | N63: 36 | O63: 23 | P63: 00 | Q63: W | R63: -36.38333333
C64: Alagoas | E64: Maragogi | F64: 09º 01' 00" S | G64: 35º 14' 00" W | I64: 09 | J64: 01 | K64: 00 | L64: S | M64: -9.016666667 | N64: 35 | O64: 14 | P64: 00 | Q64: W | R64: -35.23333333
C65: Alagoas | E65: Marechal Deodoro | F65: 09º 42' 59" S | G65: 35º 53' 30" W | I65: 09 | J65: 42 | K65: 59 | L65: S | M65: -9.716388889 | N65: 35 | O65: 53 | P65: 30 | Q65: W | R65: -35.89166667
C66: Alagoas | E66: Murici | F66: 09º 18' 49" S | G66: 35º 56' 59" W | I66: 09 | J66: 18 | K66: 49 | L66: S | M66: -9.313611111 | N66: 35 | O66: 56 | P66: 59 | Q66: W | R66: -35.94972222
C67: Alagoas | E67: Olho D’água das Flores | F67: 09º 32' 00" S | G67: 37º 17' 00" W | I67: 09 | J67: 32 | K67: 00 | L67: S | M67: -9.533333333 | N67: 37 | O67: 17 | P67: 00 | Q67: W | R67: -37.28333333
C68: Alagoas | E68: Olho D’água do Casado | F68: 09º 31' 00" S | G68: 37º 51' 00" W | I68: 09 | J68: 31 | K68: 00 | L68: S | M68: -9.516666667 | N68: 37 | O68: 51 | P68: 00 | Q68: W | R68: -37.85
C69: Alagoas | E69: Palmeira dos Índios | F69: 09º 19' 00" S | G69: 36º 52' 00" W | I69: 09 | J69: 19 | K69: 00 | L69: S | M69: -9.316666667 | N69: 36 | O69: 52 | P69: 00 | Q69: W | R69: -36.86666667
C70: Alagoas | E70: Pão de Açúcar (937018) | F70: 09º 44' 55" S | G70: 37º 26' 59" W | I70: 09 | J70: 44 | K70: 55 | L70: S | M70: -9.748611111 | N70: 37 | O70: 26 | P70: 59 | Q70: W | R70: -37.44972222
C71: Alagoas | E71: Pão de Açúcar (937019) | F71: 09º 44' 00" S | G71: 37º 26' 00" W | I71: 09 | J71: 44 | K71: 00 | L71: S | M71: -9.733333333 | N71: 37 | O71: 26 | P71: 00 | Q71: W | R71: -37.43333333
C72: Alagoas | E72: Passo de Camaragibe | F72: 09º 14' 00" S | G72: 35º 29' 00" W | I72: 09 | J72: 14 | K72: 00 | L72: S | M72: -9.233333333 | N72: 35 | O72: 29 | P72: 00 | Q72: W | R72: -35.48333333
C73: Alagoas | E73: Penedo | F73: 10º 17' 06" S | G73: 36º 33' 23" W | I73: 10 | J73: 17 | K73: 06 | L73: S | M73: -10.285 | N73: 36 | O73: 33 | P73: 23 | Q73: W | R73: -36.55638889
C74: Alagoas | E74: Piaçabuçú (1036007) | F74: 10º 24' 23" S | G74: 36º 25' 34" W | I74: 10 | J74: 24 | K74: 23 | L74: S | M74: -10.40638889 | N74: 36 | O74: 25 | P74: 34 | Q74: W | R74: -36.42611111
C75: Alagoas | E75: Piaçabuçú (1036008) | F75: 10º 24' 19" S | G75: 36º 25' 19" W | I75: 10 | J75: 24 | K75: 19 | L75: S | M75: -10.40527778 | N75: 36 | O75: 25 | P75: 19 | Q75: W | R75: -36.42194444
C76: Alagoas | E76: Piranhas | F76: 09º 37 '34" S | G76: 37º 45' 22" W | I76: 09 | J76: 37 | K76: 34 | L76: S | M76: -9.626111111 | N76: 37 | O76: 45 | P76: 22 | Q76: W | R76: -37.75611111
C77: Alagoas | E77: Poço das Trincheiras | F77: 09º 13' 00" S | G77: 37º 17' 00" W | I77: 09 | J77: 13 | K77: 00 | L77: S | M77: -9.216666667 | N77: 37 | O77: 17 | P77: 00 | Q77: W | R77: -37.28333333
C78: Alagoas | E78: Porto Real do Colégio | F78: 10º 11' 00" S | G78: 36º 50' 00" W | I78: 10 | J78: 11 | K78: 00 | L78: S | M78: -10.18333333 | N78: 36 | O78: 50 | P78: 00 | Q78: W | R78: -36.83333333
C79: Alagoas | E79: Quebrangulo | F79: 09º 19' 09" S | G79: 36º 28' 23" W | I79: 09 | J79: 19 | K79: 09 | L79: S | M79: -9.319166667 | N79: 36 | O79: 28 | P79: 23 | Q79: W | R79: -36.47305556
C80: Alagoas | E80: Rio Largo | F80: 09º 28' 03" S | G80: 35º 51' 23" W | I80: 09 | J80: 28 | K80: 03 | L80: S | M80: -9.4675 | N80: 35 | O80: 51 | P80: 23 | Q80: W | R80: -35.85638889
C81: Alagoas | E81: Santana do Ipanema | F81: 09º 22' 22" S | G81: 37º 14' 43" W | I81: 09 | J81: 22 | K81: 22 | L81: S | M81: -9.372777778 | N81: 37 | O81: 14 | P81: 43 | Q81: W | R81: -37.24527778
C82: Alagoas | E82: Santana do Ipanema (937005) | F82: 09º 28' 00" S | G82: 37º 28' 00" W | I82: 09 | J82: 28 | K82: 00 | L82: S | M82: -9.466666667 | N82: 37 | O82: 28 | P82: 00 | Q82: W | R82: -37.46666667
C83: Alagoas | E83: Santana do Ipanema (937006) | F83: 09º 22' 02" S | G83: 37º 13' 45" W | I83: 09 | J83: 22 | K83: 02 | L83: S | M83: -9.367222222 | N83: 37 | O83: 13 | P83: 45 | Q83: W | R83: -37.22916667
C84: Alagoas | E84: Santana do Mundaú | F84: 09º 10' 00" S | G84: 36º 13' 00" W | I84: 09 | J84: 10 | K84: 00 | L84: S | M84: -9.166666667 | N84: 36 | O84: 13 | P84: 00 | Q84: W | R84: -36.21666667
C85: Alagoas | E85: São José da Laje | F85: 09º 00' 15" S | G85: 36º 03' 04" W | I85: 09 | J85: 00 | K85: 15 | L85: S | M85: -9.004166667 | N85: 36 | O85: 03 | P85: 04 | Q85: W | R85: -36.05111111
C86: Alagoas | E86: São Miguel Dos Campos | F86: 09º 47' 00" S | G86: 36º 06' 00" W | I86: 09 | J86: 47 | K86: 00 | L86: S | M86: -9.783333333 | N86: 36 | O86: 06 | P86: 00 | Q86: W | R86: -36.1
C87: Alagoas | E87: Satuba | F87: 09º 35' 00" S | G87: 35º 49' 00" W | I87: 09 | J87: 35 | K87: 00 | L87: S | M87: -9.583333333 | N87: 35 | O87: 49 | P87: 00 | Q87: W | R87: -35.81666667
C88: Alagoas | E88: Tanque D’arca | F88: 09º 32' 00" S | G88: 36º 26' 00" W | I88: 09 | J88: 32 | K88: 00 | L88: S | M88: -9.533333333 | N88: 36 | O88: 26 | P88: 00 | Q88: W | R88: -36.43333333
C89: Alagoas | E89: Traipu | F89: 09º 58' 00" S | G89: 36º 59' 00" W | I89: 09 | J89: 58 | K89: 00 | L89: S | M89: -9.966666667 | N89: 36 | O89: 59 | P89: 00 | Q89: W | R89: -36.98333333
C90: Alagoas | E90: Traipu | F90: 09º 58' 22" S | G90: 37º 00' 12" W | I90: 09 | J90: 58 | K90: 22 | L90: S | M90: -9.972777778 | N90: 37 | O90: 00 | P90: 12 | Q90: W | R90: -37.00333333
C91: Alagoas | E91: União dos Palmares | F91: 09º 10' 00" S | G91: 36º 03' 00" W | I91: 09 | J91: 10 | K91: 00 | L91: S | M91: -9.166666667 | N91: 36 | O91: 03 | P91: 00 | Q91: W | R91: -36.05
C92: Alagoas | E92: União dos Palmares | F92: 09º 09' 16" S | G92: 36º 02' 09" W | I92: 09 | J92: 09 | K92: 16 | L92: S | M92: -9.154444444 | N92: 36 | O92: 02 | P92: 09 | Q92: W | R92: -36.03583333
C93: Alagoas | E93: Viçosa (936057) | F93: 09º 23' 00" S | G93: 36º 15' 00" W | I93: 09 | J93: 23 | K93: 00 | L93: S | M93: -9.383333333 | N93: 36 | O93: 15 | P93: 00 | Q93: W | R93: -36.25
C94: Alagoas | E94: Viçosa (936111) | F94: 09º 22' 45" S | G94: 36º 14' 57" W | I94: 09 | J94: 22 | K94: 45 | L94: S | M94: -9.379166667 | N94: 36 | O94: 14 | P94: 57 | Q94: W | R94: -36.24916667
C95: Amapá | E95: Calçoene | F95: 02º 29' 51" N | G95: 50º 56' 55" W | I95: 02 | J95: 29 | K95: 51 | L95: N | M95: =((I95*1)+(J95*1/60)+(K95*1/(60*60))) -> 2.4975 | N95: 50 | O95: 56 | P95: 55 | Q95: W | R95: -50.94861111
C96: Amapá | E96: Laranjal do Jarí | F96: 01º 07' 12" S | G96: 52º 00' 00" W | I96: 01 | J96: 07 | K96: 12 | L96: S | M96: -1.12 | N96: 52 | O96: 00 | P96: 00 | Q96: W | R96: -52
C97: Amapá | E97: Macapá | F97: 00º 02' 20" N | G97: 51º 03' 59" W | I97: 00 | J97: 02 | K97: 20 | L97: N | M97: =((I97*1)+(J97*1/60)+(K97*1/(60*60))) -> 0.03888888889 | N97: 51 | O97: 03 | P97: 59 | Q97: W | R97: -51.06638889
C98: Amapá | E98: Mazagão | F98: 00º 06' 54" S | G98: 51º 17' 22" W | I98: 00 | J98: 06 | K98: 54 | L98: S | M98: -0.115 | N98: 51 | O98: 17 | P98: 22 | Q98: W | R98: -51.28944444
C99: Amapá | E99: Oiapoque | F99: 03º 50' 35" N | G99: 51º 50' 06" W | I99: 03 | J99: 50 | K99: 35 | L99: N | M99: =((I99*1)+(J99*1/60)+(K99*1/(60*60))) -> 3.843055556 | N99: 51 | O99: 50 | P99: 06 | Q99: W | R99: -51.835
C100: Amapá | E100: Serra do Navio | F100: 00º 52' 01" N | G100: 52º 01' 33" W | I100: 00 | J100: 52 | K100: 01 | L100: N | M100: =((I100*1)+(J100*1/60)+(K100*1/(60*60))) -> 0.8669444444 | N100: 52 | O100: 01 | P100: 33 | Q100: W | R100: -52.02583333
C101: Amapá | E101: Tartarugalzinho | F101: 01º 30' 20" N | G101: 50º 54' 43" W | I101: 01 | J101: 30 | K101: 20 | L101: N | M101: =((I101*1)+(J101*1/60)+(K101*1/(60*60))) -> 1.505555556 | N101: 50 | O101: 54 | P101: 43 | Q101: W | R101: -50.91194444
C102: Amazonas | E102: Barreirinha | F102: 02° 47' 36" S | G102: 57° 04' 12" W | I102: =MID(F102,1,2) -> 02 | J102: =MID(F102,5,2) -> 47 | K102: 36 | L102: S | M102: -2.793333333 | N102: 57 | O102: 04 | P102: 12 | Q102: W | R102: -57.07
C103: Amazonas | E103: Boa Vista dos Ramos | F103: 02° 58' 11" S | G103: 57° 35' 25" W | I103: 02 | J103: 58 | K103: =MID(F103,9,2) -> 11 | L103: =MID(F103,13,1) -> S | M103: =-((I103*1)+(J103*1/60)+(K103*1/(60*60))) -> -2.969722222 | N103: =MID(G103,1,2) -> 57 | O103: =MID(G103,5,2) -> 35 | P103: =MID(G103,9,2) -> 25 | Q103: =MID(G103,13,1) -> W | R103: -57.59027778
C104: Amazonas | E104: Maúes | F104: 03° 23' 01" S | G104: 57° 43' 07" W | I104: 03 | J104: 23 | K104: 01 | L104: S | M104: -3.383611111 | N104: 57 | O104: 43 | P104: 07 | Q104: W | R104: -57.71861111
C105: Amazonas | E105: Nhamundá | F105: 02° 11' 10" S | G105: 56° 42' 47" W | I105: 02 | J105: 11 | K105: 10 | L105: S | M105: -2.186111111 | N105: 56 | O105: 42 | P105: 47 | Q105: W | R105: -56.71305556
C106: Amazonas | E106: Parintins | F106: 02° 37' 42" S | G106: 56° 44' 09" W | I106: 02 | J106: 37 | K106: 42 | L106: S | M106: -2.628333333 | N106: 56 | O106: 44 | P106: 09 | Q106: W | R106: -56.73583333
C107: Amazonas | E107: Manaus | F107: 03º 06' 07" S | G107: 60º 01' 30" W | I107: 03 | J107: 06 | K107: 07 | L107: S | M107: -3.101944444 | N107: 60 | O107: 01 | P107: 30 | Q107: W | R107: -60.025
C108: Bahia | E108: Alagoinhas | F108: 12° 08' 08" S | G108: 38° 25' 09" W | I108: 12 | J108: 08 | K108: 08 | L108: S | M108: -12.13555556 | N108: 38 | O108: 25 | P108: 09 | Q108: W | R108: =-((N108*1)+(O108*1/60)+(P108*1/(60*60))) -> -38.41916667
C109: Bahia | E109: Argoim | F109: 12º 55' 27" S | G109: 39º 53' 03" W | I109: 12 | J109: 55 | K109: 27 | L109: S | M109: -12.92416667 | N109: 39 | O109: 53 | P109: 03 | Q109: W | R109: -39.88416667
C110: Bahia | E110: Barreiras | F110: 12º 09' 10" S | G110: 44º 59' 24" W | I110: 12 | J110: 09 | K110: 10 | L110: S | M110: -12.15277778 | N110: 44 | O110: 59 | P110: 24 | Q110: W | R110: -44.99
C111: Bahia | E111: Brotas de Macaúbas | F111: 11º 59' 56" S | G111: 42º 37' 33" W | I111: 11 | J111: 59 | K111: 56 | L111: S | M111: -11.99888889 | N111: 42 | O111: 37 | P111: 33 | Q111: W | R111: -42.62583333
C112: Bahia | E112: Camaçari | F112: 12° 41' 51" S | G112: 38° 19' 27" W | I112: 12 | J112: 41 | K112: 51 | L112: S | M112: -12.6975 | N112: 38 | O112: 19 | P112: 27 | Q112: W | R112: -38.32416667
C113: Bahia | E113: Cândido Sales | F113: 15º 30' 18" S | G113: 41º 14' 21" W | I113: 15 | J113: 30 | K113: 18 | L113: S | M113: -15.505 | N113: 41 | O113: 14 | P113: 21 | Q113: W | R113: -41.23916667
C114: Bahia | E114: Carinhanha | F114: 14º 18' 17" S | G114: 43º 45' 54" W | I114: 14 | J114: 18 | K114: 17 | L114: S | M114: -14.30472222 | N114: 43 | O114: 45 | P114: 54 | Q114: W | R114: -43.765
C115: Bahia | E115: Correntina | F115: 13° 20' 36" S | G115: 44° 38' 12" W | I115: 13 | J115: 20 | K115: 36 | L115: S | M115: -13.34333333 | N115: 44 | O115: 38 | P115: 12 | Q115: W | R115: -44.63666667
C116: Bahia | E116: Fazenda Porto Alegre | F116: 14º 16' 06" S | G116: 44º 31' 18" W | I116: 14 | J116: 16 | K116: 06 | L116: S | M116: -14.26833333 | N116: 44 | O116: 31 | P116: 18 | Q116: W | R116: -44.52166667
C117: Bahia | E117: Fazenda Refrigério | F117: 11º 21' 22" S | G117: 42º 16' 25" W | I117: 11 | J117: 21 | K117: 22 | L117: S | M117: -11.35611111 | N117: 42 | O117: 16 | P117: 25 | Q117: W | R117: -42.27361111
C118: Bahia | E118: Feira de Santana | F118: 12° 16' 00" S | G118: 38° 58' 00" W | I118: 12 | J118: 16 | K118: 00 | L118: S | M118: -12.26666667 | N118: 38 | O118: 58 | P118: 00 | Q118: W | R118: -38.96666667
C119: Bahia | E119: Formosa do Rio Preto | F119: 11º 02' 54" S | G119: 45º 11' 35" W | I119: 11 | J119: 02 | K119: 54 | L119: S | M119: -11.04833333 | N119: 45 | O119: 11 | P119: 35 | Q119: W | R119: -45.19305556
C120: Bahia | E120: Ilhéus | F120: 14° 47' 20" S | G120: 39° 02' 58" W | I120: 14 | J120: 47 | K120: 20 | L120: S | M120: -14.78888889 | N120: 39 | O120: 02 | P120: 58 | Q120: W | R120: -39.04944444
C121: Bahia | E121: Ipiaú | F121: 14º 08' 14" S | G121: 39º 44' 02" W | I121: 14 | J121: 08 | K121: 14 | L121: S | M121: -14.13722222 | N121: 39 | O121: 44 | P121: 02 | Q121: W | R121: -39.73388889
C122: Bahia | E122: Itaberaba | F122: 12° 31' 39" S | G122: 40° 18' 25" W | I122: 12 | J122: 31 | K122: 39 | L122: S | M122: -12.5275 | N122: 40 | O122: 18 | P122: 25 | Q122: W | R122: -40.30694444
C123: Bahia | E123: Itabuna | F123: 14° 47' 08" S | G123: 39° 16' 49" W | I123: 14 | J123: 47 | K123: 08 | L123: S | M123: -14.78555556 | N123: 39 | O123: 16 | P123: 49 | Q123: W | R123: -39.28027778
C124: Bahia | E124: Itamaraju | F124: 17º 02' 21" S | G124: 39º 31' 52" W | I124: 17 | J124: 02 | K124: 21 | L124: S | M124: -17.03916667 | N124: 39 | O124: 31 | P124: 52 | Q124: W | R124: -39.53111111
C125: Bahia | E125: Itapebi | F125: 15° 57' 39" S | G125: 39° 31' 34" W | I125: 15 | J125: 57 | K125: 39 | L125: S | M125: -15.96083333 | N125: 39 | O125: 31 | P125: 34 | Q125: W | R125: -39.52611111
C126: Bahia | E126: Ituaçu | F126: 13° 48' 48" S | G126: 41° 17' 48" W | I126: 13 | J126: 48 | K126: 48 | L126: S | M126: -13.81333333 | N126: 41 | O126: 17 | P126: 48 | Q126: W | R126: -41.29666667
C127: Bahia | E127: Ituberá | F127: 13º 43' 56" S | G127: 39º 08' 57" W | I127: 13 | J127: 43 | K127: 56 | L127: S | M127: -13.73222222 | N127: 39 | O127: 08 | P127: 57 | Q127: W | R127: -39.14916667
C128: Bahia | E128: Jequié | F128: 13° 51' 27" S | G128: 40° 05' 01" W | I128: 13 | J128: 51 | K128: 27 | L128: S | M128: -13.8575 | N128: 40 | O128: 05 | P128: 01 | Q128: W | R128: -40.08361111
C129: Bahia | E129: Juazeiro | F129: 09º 24' 42" S | G129: 40º 29' 55" W | I129: 09 | J129: 24 | K129: 42 | L129: S | M129: -9.411666667 | N129: 40 | O129: 29 | P129: 55 | Q129: W | R129: -40.49861111
C130: Bahia | E130: Lauro de Freitas | F130: 12° 53' 40" S | G130: 38° 19' 38" W | I130: 12 | J130: 53 | K130: 40 | L130: S | M130: -12.89444444 | N130: 38 | O130: 19 | P130: 38 | Q130: W | R130: -38.32722222
C131: Bahia | E131: Medeiros Neto | F131: 17° 22' 33" S | G131: 40° 13' 17" W | I131: 17 | J131: 22 | K131: 33 | L131: S | M131: -17.37583333 | N131: 40 | O131: 13 | P131: 17 | Q131: W | R131: -40.22138889
C132: Bahia | E132: Morpará | F132: 11º 33' 31" S | G132: 43º 16' 51" W | I132: 11 | J132: 33 | K132: 31 | L132: S | M132: -11.55861111 | N132: 43 | O132: 16 | P132: 51 | Q132: W | R132: -43.28083333
C133: Bahia | E133: Paulo Afonso | F133: 09° 24' 22" S | G133: 38° 12' 53" W | I133: 09 | J133: 24 | K133: 22 | L133: S | M133: -9.406111111 | N133: 38 | O133: 12 | P133: 53 | Q133: W | R133: -38.21472222
C134: Bahia | E134: Ponte Serafim | F134: 11° 53' 46" S | G134: 45° 36' 43" W | I134: 11 | J134: 53 | K134: 46 | L134: S | M134: -11.89611111 | N134: 45 | O134: 36 | P134: 43 | Q134: W | R134: -45.61194444
C135: Bahia | E135: Porto Seguro | F135: 16° 26' 59" S | G135: 39° 03' 53" W | I135: 16 | J135: 26 | K135: 59 | L135: S | M135: -16.44972222 | N135: 39 | O135: 03 | P135: 53 | Q135: W | R135: -39.06472222
C136: Bahia | E136: Salvador | F136: 12° 58' 16" S | G136: 38° 30' 39" W | I136: 12 | J136: 58 | K136: 16 | L136: S | M136: -12.97111111 | N136: 38 | O136: 30 | P136: 39 | Q136: W | R136: -38.51083333
C137: Bahia | E137: Santa Cruz da Vitória | F137: 14° 57' 32" S | G137: 39° 48' 27" W | I137: 14 | J137: 57 | K137: 32 | L137: S | M137: -14.95888889 | N137: 39 | O137: 48 | P137: 27 | Q137: W | R137: -39.8075
C138: Bahia | E138: Santa Maria da Vitória | F138: 13º 23' 41" S | G138: 44º 11' 19" W | I138: 13 | J138: 23 | K138: 41 | L138: S | M138: -13.39472222 | N138: 44 | O138: 11 | P138: 19 | Q138: W | R138: -44.18861111
C139: Bahia | E139: Simões Filho | F139: 12° 47' 04" S | G139: 38° 24' 14" W | I139: 12 | J139: 47 | K139: 04 | L139: S | M139: -12.78444444 | N139: 38 | O139: 24 | P139: 14 | Q139: W | R139: -38.40388889
C140: Bahia | E140: Teixeira de Freitas | F140: 17° 32' 06" S | G140: 39° 44' 31" W | I140: 17 | J140: 32 | K140: 06 | L140: S | M140: -17.535 | N140: 39 | O140: 44 | P140: 31 | Q140: W | R140: -39.74194444
C141: Bahia | E141: Teodoro Sampaio | F141: 12º 17' 36" S | G141: 38º 37' 42" W | I141: 12 | J141: 17 | K141: 36 | L141: S | M141: -12.29333333 | N141: 38 | O141: 37 | P141: 42 | Q141: W | R141: -38.62833333
C142: Bahia | E142: Vitória da Conquista | F142: 14° 51' 58" S | G142: 40° 50' 22" W | I142: 14 | J142: 51 | K142: 58 | L142: S | M142: -14.86611111 | N142: 40 | O142: 50 | P142: 22 | Q142: W | R142: -40.83944444
C143: Ceará | E143: Caucaia | F143: 03º 44' 10" S | G143: 38º 39' 11" W | I143: 03 | J143: 44 | K143: 10 | L143: S | M143: -3.736111111 | N143: 38 | O143: 39 | P143: 11 | Q143: W | R143: -38.65305556
C144: Ceará | E144: Crato | F144: 07º 14' 03" S | G144: 39º 24' 34" W | I144: 07 | J144: 14 | K144: 03 | L144: S | M144: -7.234166667 | N144: 39 | O144: 24 | P144: 34 | Q144: W | R144: -39.40944444
C145: Ceará | E145: Fortaleza | F145: 03º 43' 02" S | G145: 38º 32' 35" W | I145: 03 | J145: 43 | K145: 02 | L145: S | M145: -3.717222222 | N145: 38 | O145: 32 | P145: 35 | Q145: W | R145: -38.54305556
C146: Ceará | E146: Itapipoca | F146: 03º 21' 42" S | G146: 39º 49' 54" W | I146: 03 | J146: 21 | K146: 42 | L146: S | M146: -3.361666667 | N146: 39 | O146: 49 | P146: 54 | Q146: W | R146: -39.83166667
C147: Ceará | E147: Juazeiro do Norte | F147: 07º 12' 47" S | G147: 39º 18' 55" W | I147: 07 | J147: 12 | K147: 47 | L147: S | M147: -7.213055556 | N147: 39 | O147: 18 | P147: 55 | Q147: W | R147: -39.31527778
C148: Ceará | E148: Maracanaú | F148: 03º 52' 36" S | G148: 38º 37' 32" W | I148: 03 | J148: 52 | K148: 36 | L148: S | M148: -3.876666667 | N148: 38 | O148: 37 | P148: 32 | Q148: W | R148: -38.62555556
A149: 1 | C149: Ceará | E149: Maranguape | F149: 03º 53' 27" S | G149: 38º 40' 50" W | I149: 03 | J149: 53 | K149: 27 | L149: S | M149: -3.890833333 | N149: 38 | O149: 40 | P149: 50 | Q149: W | R149: -38.68055556
C150: Ceará | E150: Sobral | F150: 03º 41' 10" S | G150: 40º 20' 59" W | I150: 03 | J150: 41 | K150: 10 | L150: S | M150: -3.686111111 | N150: 40 | O150: 20 | P150: 59 | Q150: W | R150: -40.34972222
C151: Distrito Federal | E151: Distrito Federal | F151: 15° 46′ 46″ S | G151: 47° 55′ 46″ W | I151: 15 | J151: 46 | K151: 46 | L151: S | M151: -15.77944444 | N151: 47 | O151: 55 | P151: 46 | Q151: W | R151: -47.92944444
C152: Espirito Santo | E152: Alegre | F152: 20° 46' 00" S | G152: 41° 28' 00" W | I152: 20 | J152: 46 | K152: 00 | L152: S | M152: -20.76666667 | N152: 41 | O152: 28 | P152: 00 | Q152: W | R152: -41.46666667
C153: Espirito Santo | E153: Aracruz | F153: 19° 49' 00" S | G153: 40° 15' 00" W | I153: 19 | J153: 49 | K153: 00 | L153: S | M153: -19.81666667 | N153: 40 | O153: 15 | P153: 00 | Q153: W | R153: -40.25
C154: Espirito Santo | E154: Boa Esperança | F154: 18° 31' 00" S | G154: 40° 19' 00" W | I154: 18 | J154: 31 | K154: 00 | L154: S | M154: -18.51666667 | N154: 40 | O154: 19 | P154: 00 | Q154: W | R154: -40.31666667
C155: Espirito Santo | E155: Cachoeiro de Itapemirim | F155: 20º 50' 56" S | G155: 41º 06' 46" W | I155: 20 | J155: 50 | K155: 56 | L155: S | M155: -20.84888889 | N155: 41 | O155: 06 | P155: 46 | Q155: W | R155: -41.11277778
C156: Espirito Santo | E156: Cariacica | F156: 20º 15' 50" S | G156: 40º 25' 12" W | I156: 20 | J156: 15 | K156: 50 | L156: S | M156: -20.26388889 | N156: 40 | O156: 25 | P156: 12 | Q156: W | R156: -40.42
C157: Espirito Santo | E157: Colatina | F157: 19° 32' 00" S | G157: 40° 38' 45" W | I157: 19 | J157: 32 | K157: 00 | L157: S | M157: -19.53333333 | N157: 40 | O157: 38 | P157: 45 | Q157: W | R157: -40.64583333
C158: Espirito Santo | E158: Domingos Martins (Aracê) | F158: 20° 22' 00" S | G158: 41° 03' 40" W | I158: 20 | J158: 22 | K158: 00 | L158: S | M158: -20.36666667 | N158: 41 | O158: 03 | P158: 40 | Q158: W | R158: -41.06111111
C159: Espirito Santo | E159: Ecoporanga | F159: 18° 21' 57" S | G159: 40° 50' 26" W | I159: 18 | J159: 21 | K159: 57 | L159: S | M159: -18.36583333 | N159: 40 | O159: 50 | P159: 26 | Q159: W | R159: -40.84055556
C160: Espirito Santo | E160: Ecoporanga (Patrimônio Santa Luzia do Norte) | F160: 18° 12' 21" S | G160: 40° 36' 15" W | I160: 18 | J160: 12 | K160: 21 | L160: S | M160: -18.20583333 | N160: 40 | O160: 36 | P160: 15 | Q160: W | R160: -40.60416667
C161: Espirito Santo | E161: Linhares | F161: 19° 24' 00" S | G161: 40° 04' 00" W | I161: 19 | J161: 24 | K161: 00 | L161: S | M161: -19.4 | N161: 40 | O161: 04 | P161: 00 | Q161: W | R161: -40.06666667
C162: Espirito Santo | E162: Lúna (Santa Cruz do Caparaó) | F162: 20° 19' 22" S | G162: 41° 42' 15" W | I162: 20 | J162: 19 | K162: 22 | L162: S | M162: -20.32277778 | N162: 41 | O162: 42 | P162: 15 | Q162: W | R162: -41.70416667
C163: Espirito Santo | E163: Nova Venécia (Cedrolândia) | F163: 18° 48' 53" S | G163: 40° 41' 27" W | I163: 18 | J163: 48 | K163: 53 | L163: S | M163: -18.81472222 | N163: 40 | O163: 41 | P163: 27 | Q163: W | R163: -40.69083333
C164: Espirito Santo | E164: Nova Venécia (Córrego da Boa Esperança) | F164: 18° 42' 00" S | G164: 40° 26' 30" W | I164: 18 | J164: 42 | K164: 00 | L164: S | M164: -18.7 | N164: 40 | O164: 26 | P164: 30 | Q164: W | R164: -40.44166667
C165: Espirito Santo | E165: Pancas | F165: 19° 13' 13" S | G165: 40° 51' 12" W | I165: 19 | J165: 13 | K165: 13 | L165: S | M165: -19.22027778 | N165: 40 | O165: 51 | P165: 12 | Q165: W | R165: -40.85333333
C166: Espirito Santo | E166: Pancas (Alto Rio Novo) | F166: 19° 03' 33" S | G166: 41° 01' 39" W | I166: =MID(F166,1,2) -> 19 | J166: =MID(F166,5,2) -> 03 | K166: 33 | L166: S | M166: -19.05916667 | N166: 41 | O166: 01 | P166: 39 | Q166: W | R166: -41.0275
C167: Espirito Santo | E167: Santa Tereza | F167: 19° 51' 00" S | G167: 40° 36' 00" W | I167: 19 | J167: 51 | K167: =MID(F167,9,2) -> 00 | L167: =MID(F167,13,1) -> S | M167: =-((I167*1)+(J167*1/60)+(K167*1/(60*60))) -> -19.85 | N167: =MID(G167,1,2) -> 40 | O167: =MID(G167,5,2) -> 36 | P167: =MID(G167,9,2) -> 00 | Q167: =MID(G167,13,1) -> W | R167: -40.6
C168: Espirito Santo | E168: Santa Tereza (Caldeirão) | F168: 19° 57' 18" S | G168: 40° 44' 30" W | I168: 19 | J168: 57 | K168: 18 | L168: S | M168: -19.955 | N168: 40 | O168: 44 | P168: 30 | Q168: W | R168: -40.74166667
C169: Espirito Santo | E169: São Gabriel da Palha | F169: 19° 01' 00" S | G169: 40° 34' 00" W | I169: 19 | J169: 01 | K169: 00 | L169: S | M169: -19.01666667 | N169: 40 | O169: 34 | P169: 00 | Q169: W | R169: -40.56666667
C170: Espirito Santo | E170: São Mateus | F170: 18° 42' 00" S | G170: 39° 51' 00" W | I170: 18 | J170: 42 | K170: 00 | L170: S | M170: -18.7 | N170: 39 | O170: 51 | P170: 00 | Q170: W | R170: -39.85
C171: Espirito Santo | E171: São Mateus (São João da Cachoeira Grande) | F171: 18° 33' 50" S | G171: 40° 20' 10" W | I171: 18 | J171: 33 | K171: 50 | L171: S | M171: -18.56388889 | N171: 40 | O171: 20 | P171: 10 | Q171: W | R171: -40.33611111
C172: Espirito Santo | E172: Serra | F172: 20º 07' 43" S | G172: 40º 18' 28" W | I172: 20 | J172: 07 | K172: 43 | L172: S | M172: -20.12861111 | N172: 40 | O172: 18 | P172: 28 | Q172: W | R172: =-((N172*1)+(O172*1/60)+(P172*1/(60*60))) -> -40.30777778
C173: Espirito Santo | E173: Venda Nova | F173: 20° 19' 00" S | G173: 41° 10' 00" W | I173: 20 | J173: 19 | K173: 00 | L173: S | M173: -20.31666667 | N173: 41 | O173: 10 | P173: 00 | Q173: W | R173: -41.16666667
C174: Espirito Santo | E174: Vila Velha | F174: 20º 19' 47" S | G174: 40º 17' 33" W | I174: 20 | J174: 19 | K174: 47 | L174: S | M174: -20.32972222 | N174: 40 | O174: 17 | P174: 33 | Q174: W | R174: -40.2925
C175: Espirito Santo | E175: Vitória | F175: 20° 19' 00" S | G175: 41° 20' 00" W | I175: 20 | J175: 19 | K175: 00 | L175: S | M175: -20.31666667 | N175: 41 | O175: 20 | P175: 00 | Q175: W | R175: -41.33333333
C176: Goiás | E176: Águas Lindas de Goiás | F176: 15º 45' 43" S | G176: 48º 16' 54" W | I176: 15 | J176: 45 | K176: 43 | L176: S | M176: -15.76194444 | N176: 48 | O176: 16 | P176: 54 | Q176: W | R176: -48.28166667
C177: Goiás | E177: Alto Garças | F177: 16° 56' 00" S | G177: 53° 32' 00" W | I177: 16 | J177: 56 | K177: 00 | L177: S | M177: -16.93333333 | N177: 53 | O177: 32 | P177: 00 | Q177: W | R177: -53.53333333
C178: Goiás | E178: Alto Paraíso de Goiás | F178: 14° 08' 00" S | G178: 47° 30' 30" W | I178: 14 | J178: 08 | K178: 00 | L178: S | M178: -14.13333333 | N178: 47 | O178: 30 | P178: 30 | Q178: W | R178: -47.50833333
C179: Goiás | E179: Alvorada do Norte | F179: 14° 29' 00" S | G179: 46° 29' 30" W | I179: 14 | J179: 29 | K179: 00 | L179: S | M179: -14.48333333 | N179: 46 | O179: 29 | P179: 30 | Q179: W | R179: -46.49166667
C180: Goiás | E180: Anápolis | F180: 16º 19' 36" S | G180: 48º 57' 10" W | I180: 16 | J180: 19 | K180: 36 | L180: S | M180: -16.32666667 | N180: 48 | O180: 57 | P180: 10 | Q180: W | R180: -48.95277778
C181: Goiás | E181: Anicuns | F181: 16° 28' 00" S | G181: 49° 56' 24" W | I181: 16 | J181: 28 | K181: 00 | L181: S | M181: -16.46666667 | N181: 49 | O181: 56 | P181: 24 | Q181: W | R181: -49.94
C182: Goiás | E182: Aparecida de Goiânia | F182: 16º 49' 24" S | G182: 49º 14' 38" W | I182: 16 | J182: 49 | K182: 24 | L182: S | M182: -16.82333333 | N182: 49 | O182: 14 | P182: 38 | Q182: W | R182: -49.24388889
C183: Goiás | E183: Aporé | F183: 18° 59' 00" S | G183: 52° 00' 00" W | I183: 18 | J183: 59 | K183: 00 | L183: S | M183: -18.98333333 | N183: 52 | O183: 00 | P183: 00 | Q183: W | R183: -52
C184: Goiás | E184: Aragoiânia | F184: 16° 56' 00" S | G184: 49° 26' 00" W | I184: 16 | J184: 56 | K184: 00 | L184: S | M184: -16.93333333 | N184: 49 | O184: 26 | P184: 00 | Q184: W | R184: -49.43333333
C185: Goiás | E185: Aruamã | F185: 14° 49' 00" S | G185: 51° 10' 00" W | I185: 14 | J185: 49 | K185: 00 | L185: S | M185: -14.81666667 | N185: 51 | O185: 10 | P185: 00 | Q185: W | R185: -51.16666667
C186: Goiás | E186: Balisa | F186: 16° 15' 00" S | G186: 52° 30' 00" W | I186: 16 | J186: 15 | K186: 00 | L186: S | M186: -16.25 | N186: 52 | O186: 30 | P186: 00 | Q186: W | R186: -52.5
C187: Goiás | E187: Bandeirantes | F187: 13° 41' 00" S | G187: 50° 48' 00" W | I187: 13 | J187: 41 | K187: 00 | L187: S | M187: -13.68333333 | N187: 50 | O187: 48 | P187: 00 | Q187: W | R187: -50.8
C188: Goiás | E188: Bela Vista de Goiás | F188: 16° 58' 00" S | G188: 48° 57' 00" W | I188: 16 | J188: 58 | K188: 00 | L188: S | M188: -16.96666667 | N188: 48 | O188: 57 | P188: 00 | Q188: W | R188: -48.95
C189: Goiás | E189: Bom Jardim de Goiás | F189: 16° 16' 00" S | G189: 52° 07' 00" W | I189: 16 | J189: 16 | K189: 00 | L189: S | M189: -16.26666667 | N189: 52 | O189: 07 | P189: 00 | Q189: W | R189: -52.11666667
C190: Goiás | E190: Bom Jardim de Goiás | F190: 16° 16' 00" S | G190: 52° 07' 00" W | I190: 16 | J190: 16 | K190: 00 | L190: S | M190: -16.26666667 | N190: 52 | O190: 07 | P190: 00 | Q190: W | R190: -52.11666667
C191: Goiás | E191: Cabeceiras | F191: 15° 47' 00" S | G191: 46° 59' 00" W | I191: 15 | J191: 47 | K191: 00 | L191: S | M191: -15.78333333 | N191: 46 | O191: 59 | P191: 00 | Q191: W | R191: -46.98333333
C192: Goiás | E192: Cachoeira de Goiás | F192: 16° 44' 00" S | G192: 50° 39' 00" W | I192: 16 | J192: 44 | K192: 00 | L192: S | M192: -16.73333333 | N192: 50 | O192: 39 | P192: 00 | Q192: W | R192: -50.65
C193: Goiás | E193: Caiapônia | F193: 16° 57' 00" S | G193: 51° 50' 00" W | I193: 16 | J193: 57 | K193: 00 | L193: S | M193: -16.95 | N193: 51 | O193: 50 | P193: 00 | Q193: W | R193: -51.83333333
C194: Goiás | E194: Campo Alegre | F194: 18° 35' 00" S | G194: 51° 49' 00" W | I194: 18 | J194: 35 | K194: 00 | L194: S | M194: -18.58333333 | N194: 51 | O194: 49 | P194: 00 | Q194: W | R194: -51.81666667
C195: Goiás | E195: Canastra | F195: 19° 02' 00" S | G195: 51° 08' 00" W | I195: 19 | J195: 02 | K195: 00 | L195: S | M195: -19.03333333 | N195: 51 | O195: 08 | P195: 00 | Q195: W | R195: -51.13333333
C196: Goiás | E196: Carumbaíba | F196: 18° 09' 00" S | G196: 48° 34' 00" W | I196: 18 | J196: 09 | K196: 00 | L196: S | M196: -18.15 | N196: 48 | O196: 34 | P196: 00 | Q196: W | R196: -48.56666667
C197: Goiás | E197: Carumbazul | F197: 18° 15' 00" S | G197: 48° 50' 00" W | I197: 18 | J197: 15 | K197: 00 | L197: S | M197: -18.25 | N197: 48 | O197: 50 | P197: 00 | Q197: W | R197: -48.83333333
C198: Goiás | E198: Catalão | F198: 18° 11' 00" S | G198: 47° 57' 00" W | I198: 18 | J198: 11 | K198: 00 | L198: S | M198: -18.18333333 | N198: 47 | O198: 57 | P198: 00 | Q198: W | R198: -47.95
C199: Goiás | E199: Cavalcante | F199: 13° 47' 48" S | G199: 47° 27' 30" W | I199: 13 | J199: 47 | K199: 48 | L199: S | M199: -13.79666667 | N199: 47 | O199: 27 | P199: 30 | Q199: W | R199: -47.45833333
C200: Goiás | E200: Ceres | F200: 15° 18' 30" S | G200: 49° 36' 00" W | I200: 15 | J200: 18 | K200: 30 | L200: S | M200: -15.30833333 | N200: 49 | O200: 36 | P200: 00 | Q200: W | R200: -49.6
C201: Goiás | E201: Colina do Sul | F201: 14° 09' 00" S | G201: 48° 04' 36" W | I201: 14 | J201: 09 | K201: 00 | L201: S | M201: -14.15 | N201: 48 | O201: 04 | P201: 36 | Q201: W | R201: -48.07666667
C202: Goiás | E202: Córrego do Ouro | F202: 16° 17' 18" S | G202: 50° 33' 00" W | I202: 16 | J202: 17 | K202: 18 | L202: S | M202: -16.28833333 | N202: 50 | O202: 33 | P202: 00 | Q202: W | R202: -50.55
C203: Goiás | E203: Cristalina | F203: 16° 45' 00" S | G203: 47° 37' 00" W | I203: 16 | J203: 45 | K203: 00 | L203: S | M203: -16.75 | N203: 47 | O203: 37 | P203: 00 | Q203: W | R203: -47.61666667
C204: Goiás | E204: Cristianópolis | F204: 17° 13' 00" S | G204: 48° 45' 00" W | I204: 17 | J204: 13 | K204: 00 | L204: S | M204: -17.21666667 | N204: 48 | O204: 45 | P204: 00 | Q204: W | R204: -48.75
C205: Goiás | E205: Edéia | F205: 17° 18' 00" S | G205: 49° 55' 00" W | I205: 17 | J205: 18 | K205: 00 | L205: S | M205: -17.3 | N205: 49 | O205: 55 | P205: 00 | Q205: W | R205: -49.91666667
... 1267 more rows
